Ref No,Fund Type,Dept,Cost Centre Description    ,Description    ,Creditor Name    ,GL Code Net Amount,Payment date        
2,Revenue,CAHD,Central - Commissioned Services,Fees & Charges Income - General,1 St Georges House,-425.60, 03-May-2022
3,Revenue,CAHD,Central - Commissioned Services,Fees & Charges Income - General,1 St Georges House,-425.60, 31-May-2022
4,Revenue,CAHD,Central - Commissioned Services,Permanent Residential,1 St Georges House,13333.52, 03-May-2022
5,Revenue,CAHD,Central - Commissioned Services,Permanent Residential,1 St Georges House,13333.52, 31-May-2022
6,Revenue,CAHD,Early Years High Needs Support,Other Private Contractors,100 Acre Wood Day Nursery,910.07, 20-May-2022
7,Revenue,CAHD,South - Commissioned Services,Fees & Charges Income - General,2Nd Floor Building,-438.80, 03-May-2022
8,Revenue,CAHD,South - Commissioned Services,Fees & Charges Income - General,2Nd Floor Building,-438.80, 31-May-2022
9,Revenue,CAHD,South - Commissioned Services,Permanent Residential,2Nd Floor Building,5630.76, 03-May-2022
10,Revenue,CAHD,South - Commissioned Services,Permanent Residential,2Nd Floor Building,5630.76, 31-May-2022
11,Revenue,CAHD,North - Community based support,Fees & Charges Income - General,2Nd Floor Building,-438.80, 03-May-2022
12,Revenue,CAHD,North - Community based support,Fees & Charges Income - General,2Nd Floor Building,-438.80, 31-May-2022
13,Revenue,CAHD,North - Community based support,Permanent Residential,2Nd Floor Building,4938.12, 03-May-2022
14,Revenue,CAHD,North - Community based support,Permanent Residential,2Nd Floor Building,4938.12, 31-May-2022
15,Revenue,CAHD,Central - Commissioned Services,Supported Living,3 Trees Community Support Ltd,3188.66, 03-May-2022
16,Revenue,CAHD,Central - Commissioned Services,Supported Living,3 Trees Community Support Ltd,3188.66, 06-May-2022
17,Revenue,CAHD,Central - Commissioned Services,Supported Living,3 Trees Community Support Ltd,3188.66, 12-May-2022
18,Revenue,CAHD,Central - Commissioned Services,Supported Living,3 Trees Community Support Ltd,3188.66, 18-May-2022
19,Revenue,CAHD,Central - Commissioned Services,Supported Living,3 Trees Community Support Ltd,3188.66, 26-May-2022
20,Revenue,CAHD,Central - Commissioned Services,Supported Living,3 Trees Community Support Ltd,3188.66, 26-May-2022
21,Revenue,CAHD,Central - Commissioned Services,Other Small Contracts,3 Trees Community Support Ltd,8051.01, 03-May-2022
22,Revenue,CAHD,Central - Commissioned Services,Other Small Contracts,3 Trees Community Support Ltd,8051.01, 06-May-2022
23,Revenue,CAHD,Central - Commissioned Services,Other Small Contracts,3 Trees Community Support Ltd,8051.01, 12-May-2022
24,Revenue,CAHD,Central - Commissioned Services,Other Small Contracts,3 Trees Community Support Ltd,8051.01, 18-May-2022
25,Revenue,CAHD,Central - Commissioned Services,Other Small Contracts,3 Trees Community Support Ltd,8051.01, 26-May-2022
26,Revenue,CAHD,Central - Commissioned Services,Other Small Contracts,3 Trees Community Support Ltd,8051.01, 26-May-2022
27,Revenue,CAHD,Ukranian Refugees,Other Public Bodies,3rd Wallscourt Farm Group,4500.00, 04-May-2022
28,Revenue,CAHD,South - Commissioned Services,Fees & Charges Income - General,5Th Floor Harlech Court,-582.88, 03-May-2022
29,Revenue,CAHD,South - Commissioned Services,Fees & Charges Income - General,5Th Floor Harlech Court,-582.88, 31-May-2022
30,Revenue,CAHD,South - Commissioned Services,Fees & Charges Income - General,5Th Floor Harlech Court,-438.80, 03-May-2022
31,Revenue,CAHD,South - Commissioned Services,Fees & Charges Income - General,5Th Floor Harlech Court,-438.80, 31-May-2022
32,Revenue,CAHD,South - Commissioned Services,Fees & Charges Income - General,5Th Floor Harlech Court,-418.80, 03-May-2022
33,Revenue,CAHD,South - Commissioned Services,Fees & Charges Income - General,5Th Floor Harlech Court,-418.80, 31-May-2022
34,Revenue,CAHD,S28A cases,Fees & Charges Income - General,5Th Floor Harlech Court,-399.80, 03-May-2022
35,Revenue,CAHD,S28A cases,Fees & Charges Income - General,5Th Floor Harlech Court,-399.80, 31-May-2022
36,Revenue,CAHD,S28A cases,Permanent Residential,5Th Floor Harlech Court,11719.96, 31-May-2022
37,Revenue,CAHD,S28A cases,Permanent Residential,5Th Floor Harlech Court,11805.30, 03-May-2022
38,Revenue,CAHD,South - Commissioned Services,Permanent Residential,5Th Floor Harlech Court,12291.40, 31-May-2022
39,Revenue,CAHD,South - Commissioned Services,Permanent Residential,5Th Floor Harlech Court,12380.90, 03-May-2022
40,Revenue,CAHD,South - Commissioned Services,Permanent Residential,5Th Floor Harlech Court,17913.24, 31-May-2022
41,Revenue,CAHD,South - Commissioned Services,Permanent Residential,5Th Floor Harlech Court,18043.68, 03-May-2022
42,Revenue,CAHD,South - Commissioned Services,Permanent Residential,5Th Floor Harlech Court,18839.56, 31-May-2022
43,Revenue,CAHD,South - Commissioned Services,Permanent Residential,5Th Floor Harlech Court,18976.74, 03-May-2022
44,Revenue,CAHD,North - Community based support,Fees & Charges Income - General,5Th Floor Harlech Court,-542.88, 03-May-2022
45,Revenue,CAHD,North - Community based support,Fees & Charges Income - General,5Th Floor Harlech Court,-542.88, 31-May-2022
46,Revenue,CAHD,North - Community based support,Permanent Residential,5Th Floor Harlech Court,12498.56, 03-May-2022
47,Revenue,CAHD,North - Community based support,Permanent Residential,5Th Floor Harlech Court,12498.56, 31-May-2022
48,Revenue,CAHD,Central - Commissioned Services,Fees & Charges Income - General,5Th Floor Harlech Court,-438.80, 03-May-2022
49,Revenue,CAHD,North - Community based support,Fees & Charges Income - General,5Th Floor Harlech Court,-438.80, 03-May-2022
50,Revenue,CAHD,Central - Commissioned Services,Fees & Charges Income - General,5Th Floor Harlech Court,-438.80, 31-May-2022
51,Revenue,CAHD,North - Community based support,Fees & Charges Income - General,5Th Floor Harlech Court,-438.80, 31-May-2022
52,Revenue,CAHD,North - Community based support,Permanent Residential,5Th Floor Harlech Court,9071.12, 03-May-2022
53,Revenue,CAHD,North - Community based support,Permanent Residential,5Th Floor Harlech Court,9071.12, 31-May-2022
54,Revenue,CAHD,North - Community based support,Permanent Residential,5Th Floor Harlech Court,10537.24, 03-May-2022
55,Revenue,CAHD,North - Community based support,Permanent Residential,5Th Floor Harlech Court,10537.24, 31-May-2022
56,Revenue,CAHD,Central - Commissioned Services,Permanent Residential,5Th Floor Harlech Court,14891.36, 03-May-2022
57,Revenue,CAHD,Central - Commissioned Services,Permanent Residential,5Th Floor Harlech Court,14891.36, 31-May-2022
58,Revenue,CAHD,Central - Commissioned Services,Non Residential Care Income,A4E Management Ltd,-112.74, 13-May-2022
59,Revenue,CAHD,Central - Commissioned Services,Non Residential Care Income,A4E Management Ltd,-112.74, 27-May-2022
60,Revenue,CAHD,Early Years Inclusion Fund,Other Public Bodies,Abacus @ Baileys Court Activity Centre,1300.00, 24-May-2022
61,Revenue,CAHD,Early Years Inclusion Fund,Other Public Bodies,Abacus Pre School @ Mangotsfield,650.00, 24-May-2022
62,Revenue,CAHD,Early Years Inclusion Fund,Other Public Bodies,Abacus Pre-School (Meadowbrook),1300.00, 24-May-2022
63,Revenue,CAHD,CSC - Asylum Seekers - Unaccompanied,Independent Living,Ability Supported Living Limited,6484.28, 23-May-2022
64,Revenue,CAHD,CSC - Asylum Seekers - Unaccompanied,Independent Living,Ability Supported Living Limited,6700.42, 23-May-2022
65,Revenue,CAHD,CSC - Asylum Seekers - Unaccompanied,Independent Living,Ability Supported Living Limited,6771.42, 23-May-2022
66,Revenue,CAHD,CSC - Asylum Seekers - Unaccompanied,Independent Living,Ability Supported Living Limited,6996.13, 23-May-2022
67,Revenue,CAHD,Community Emergency Beds,Respite Emergency - Residential,Able Care Homes,6071.43, 10-May-2022
68,Revenue,CAHD,Central - Commissioned Services,Other Small Contracts,About Me Care and Support Limited,137.52, 19-May-2022
69,Revenue,CAHD,Central - Commissioned Services,Other Small Contracts,About Me Care and Support Limited,206.28, 25-May-2022
70,Revenue,CAHD,South - Commissioned Services,Other Small Contracts,About Me Care and Support Limited,504.24, 19-May-2022
71,Revenue,CAHD,South - Commissioned Services,Other Small Contracts,About Me Care and Support Limited,888.15, 25-May-2022
72,Revenue,CAHD,South - Commissioned Services,Fees & Charges Income - General,Acacia House,-1074.60, 03-May-2022
73,Revenue,CAHD,South - Commissioned Services,Fees & Charges Income - General,Acacia House,-1074.60, 31-May-2022
74,Revenue,CAHD,South - Commissioned Services,Permanent Nursing,Acacia House,3085.88, 03-May-2022
75,Revenue,CAHD,South - Commissioned Services,Permanent Nursing,Acacia House,3085.88, 31-May-2022
76,Revenue,CAHD,Central - Commissioned Services,Permanent Nursing,Acacia House,3587.76, 03-May-2022
77,Revenue,CAHD,Central - Commissioned Services,Permanent Nursing,Acacia House,4015.62, 31-May-2022
78,Revenue,CAHD,Home Care Monitoring (CM2000),Other Supplies & Services,Access UK Limited,15287.55, 13-May-2022
79,Revenue,CAHD,Home Care Monitoring (CM2000),Other Supplies & Services,Access UK Limited,15455.80, 30-May-2022
80,Revenue,CAHD,Central - Commissioned Services,Fees & Charges Income - General,Acer House Care Home.,-1093.68, 03-May-2022
81,Revenue,CAHD,Central - Commissioned Services,Fees & Charges Income - General,Acer House Care Home.,-1093.68, 31-May-2022
82,Revenue,CAHD,Central - Commissioned Services,Permanent Residential,Acer House Care Home.,3800.00, 03-May-2022
83,Revenue,CAHD,Central - Commissioned Services,Permanent Residential,Acer House Care Home.,3800.00, 31-May-2022
84,Revenue,CAHD,Jointly Funded H&SC Packages,Permanent Residential,Acorn Care Providers,2193.40, 03-May-2022
85,Revenue,CAHD,Jointly Funded H&SC Packages,Permanent Residential,Acorn Care Providers,2193.40, 31-May-2022
86,Revenue,CAHD,Jointly Funded H&SC Packages,Permanent Residential,Acorn Care Providers,2366.36, 03-May-2022
87,Revenue,CAHD,Jointly Funded H&SC Packages,Permanent Residential,Acorn Care Providers,2366.36, 31-May-2022
88,Revenue,CAHD,Jointly Funded H&SC Packages,Permanent Residential,Acorn Care Providers,3515.52, 03-May-2022
89,Revenue,CAHD,Jointly Funded H&SC Packages,Permanent Residential,Acorn Care Providers,3515.52, 31-May-2022
90,Revenue,CAHD,North - S117,Permanent Residential,Acorn Care Providers,4311.40, 31-May-2022
91,Revenue,CAHD,North - S117,Permanent Residential,Acorn Care Providers,4372.41, 03-May-2022
92,Revenue,CAHD,Section 117 Placements MH Younger,Permanent Residential,Acorn Care Providers,5941.40, 31-May-2022
93,Revenue,CAHD,Section 117 Placements MH Younger,Permanent Residential,Acorn Care Providers,6025.48, 03-May-2022
94,Revenue,CAHD,MH Purchasing - Younger,Permanent Residential,Acorn Care Providers,6795.68, 31-May-2022
95,Revenue,CAHD,MH Purchasing - Younger,Permanent Residential,Acorn Care Providers,6891.85, 03-May-2022
96,Revenue,CAHD,MH Purchasing - Younger,Permanent Residential,Acorn Care Providers,6920.56, 31-May-2022
97,Revenue,CAHD,MH Purchasing - Younger,Permanent Residential,Acorn Care Providers,7018.49, 03-May-2022
98,Revenue,CAHD,Training - Adult Services,Training Expenses,Acorn Health & Safety Limited,432.25, 25-May-2022
99,Revenue,CAHD,Training Budget - Children`s Social Serv,Training Expenses,Acorn Health & Safety Limited,479.00, 25-May-2022
100,Revenue,CAHD,Training - Adult Services,Training Expenses,Acorn Health & Safety Limited,660.00, 24-May-2022
101,Revenue,CAHD,Training - Adult Services,Training Expenses,Acorn Health & Safety Limited,990.00, 11-May-2022
102,Revenue,CAHD,CSC - Agency Fostering,Foster Parent Allowances,Action for Children,3595.50, 20-May-2022
103,Revenue,CAHD,CSC - Agency Fostering,Foster Parent Allowances,Action for Children,3595.50, 20-May-2022
104,Revenue,CAHD,CSC - Agency Fostering,Foster Parent Allowances,Action for Children,3771.30, 20-May-2022
105,Revenue,CAHD,Independent Special Placements - Pre 16,Other Private Contractors,Action for Children,34724.00, 06-May-2022
106,Revenue,CAHD,CSC - Asylum Seekers - Unaccompanied,Independent Living,Adolescent Support Home Services Ltd,6473.40, 23-May-2022
107,Revenue,CAHD,CSC - Asylum Seekers - Unaccompanied,Independent Living,Adolescent Support Home Services Ltd,6473.40, 23-May-2022
108,Revenue,CAHD,South - Commissioned Services,Other Small Contracts,Advantedge Commercial Finance Limited,546.70, 13-May-2022
109,Revenue,CAHD,South - Commissioned Services,Other Small Contracts,Advantedge Commercial Finance Limited,695.80, 04-May-2022
110,Revenue,CAHD,South - Commissioned Services,Other Small Contracts,Advantedge Commercial Finance Limited,710.71, 13-May-2022
111,Revenue,CAHD,South - Commissioned Services,Other Small Contracts,Advantedge Commercial Finance Limited,1247.47, 13-May-2022
112,Revenue,CAHD,South - Commissioned Services,Other Small Contracts,Advantedge Commercial Finance Limited,1759.38, 13-May-2022
113,Revenue,CAHD,Central - Commissioned Services,Other Small Contracts,Advantedge Commercial Finance Limited,2107.28, 04-May-2022
114,Revenue,CAHD,South - Commissioned Services,Day Care / Social Activities,Age Concern,226.64, 31-May-2022
115,Revenue,CAHD,South - Commissioned Services,Day Care / Social Activities,Age Concern,226.64, 31-May-2022
116,Revenue,CAHD,South - Commissioned Services,Day Care / Social Activities,Age Concern,228.30, 03-May-2022
117,Revenue,CAHD,South - Commissioned Services,Day Care / Social Activities,Age Concern,228.30, 03-May-2022
118,Revenue,CAHD,North - Community based support,Day Care / Social Activities,Age Concern,288.08, 31-May-2022
119,Revenue,CAHD,North - Community based support,Day Care / Social Activities,Age Concern,290.18, 03-May-2022
120,Revenue,CAHD,Central - Commissioned Services,Day Care / Social Activities,Age Concern,324.32, 03-May-2022
121,Revenue,CAHD,Central - Commissioned Services,Day Care / Social Activities,Age Concern,324.32, 31-May-2022
122,Revenue,CAHD,North - Community based support,Day Care / Social Activities,Age Concern,340.80, 31-May-2022
123,Revenue,CAHD,North - Community based support,Day Care / Social Activities,Age Concern,343.28, 03-May-2022
124,Revenue,CAHD,South - Commissioned Services,Day Care / Social Activities,Age UK - Grace Court,-1080.61, 31-May-2022
125,Revenue,CAHD,North - Community based support,Day Care / Social Activities,Age UK - Grace Court,-657.44, 03-May-2022
126,Revenue,CAHD,South - Commissioned Services,Day Care / Social Activities,Age UK - Grace Court,-559.36, 03-May-2022
127,Revenue,CAHD,South - Commissioned Services,Day Care / Social Activities,Age UK - Grace Court,226.48, 31-May-2022
128,Revenue,CAHD,South - Commissioned Services,Day Care / Social Activities,Age UK - Grace Court,226.48, 31-May-2022
129,Revenue,CAHD,South - Commissioned Services,Day Care / Social Activities,Age UK - Grace Court,228.12, 03-May-2022
130,Revenue,CAHD,South - Commissioned Services,Day Care / Social Activities,Age UK - Grace Court,228.12, 03-May-2022
131,Revenue,CAHD,South - Commissioned Services,Day Care / Social Activities,Age UK - Grace Court,228.12, 03-May-2022
132,Revenue,CAHD,South - Commissioned Services,Day Care / Social Activities,Age UK - Grace Court,253.64, 31-May-2022
133,Revenue,CAHD,North - Community based support,Day Care / Social Activities,Age UK - Grace Court,272.48, 31-May-2022
134,Revenue,CAHD,North - Community based support,Day Care / Social Activities,Age UK - Grace Court,274.46, 03-May-2022
135,Revenue,CAHD,Central - Commissioned Services,Day Care / Social Activities,Age UK - Grace Court,288.08, 31-May-2022
136,Revenue,CAHD,South - Commissioned Services,Day Care / Social Activities,Age UK - Grace Court,288.08, 31-May-2022
137,Revenue,CAHD,South - Commissioned Services,Day Care / Social Activities,Age UK - Grace Court,288.08, 31-May-2022
138,Revenue,CAHD,South - Commissioned Services,Day Care / Social Activities,Age UK - Grace Court,288.08, 31-May-2022
139,Revenue,CAHD,Central - Commissioned Services,Day Care / Social Activities,Age UK - Grace Court,290.18, 03-May-2022
140,Revenue,CAHD,South - Commissioned Services,Day Care / Social Activities,Age UK - Grace Court,290.18, 03-May-2022
141,Revenue,CAHD,South - Commissioned Services,Day Care / Social Activities,Age UK - Grace Court,290.18, 03-May-2022
142,Revenue,CAHD,North - Community based support,Day Care / Social Activities,Age UK - Grace Court,504.14, 31-May-2022
143,Revenue,CAHD,South - Commissioned Services,Day Care / Social Activities,Age UK - Grace Court,569.46, 31-May-2022
144,Revenue,CAHD,South - Commissioned Services,Day Care / Social Activities,Age UK - Grace Court,657.11, 03-May-2022
145,Revenue,CAHD,Central - Commissioned Services,Day Care / Social Activities,Age UK - Grace Court,681.60, 31-May-2022
146,Revenue,CAHD,Central - Commissioned Services,Day Care / Social Activities,Age UK - Grace Court,686.56, 03-May-2022
147,Revenue,CAHD,South - Commissioned Services,Day Care / Social Activities,Age UK - Grace Court,1795.52, 03-May-2022
148,Revenue,CAHD,South - Commissioned Services,Day Care / Social Activities,Age UK - Grace Court,4210.95, 03-May-2022
149,Revenue,CAHD,Mental Health and Community Engagement,Grants to Voluntary Bodies,Age UK South Gloucestershire,13725.00, 25-May-2022
150,Revenue,CAHD,Central - Commissioned Services,Day Care / Social Activities,Age UK South Gloucestershire,22145.90, 26-May-2022
151,Revenue,CAHD,South - Commissioned Services,Day Care / Social Activities,Agincare UK Limited,543.28, 03-May-2022
152,Revenue,CAHD,South - Commissioned Services,Day Care / Social Activities,Agincare UK Limited,543.28, 06-May-2022
153,Revenue,CAHD,South - Commissioned Services,Day Care / Social Activities,Agincare UK Limited,543.28, 12-May-2022
154,Revenue,CAHD,South - Commissioned Services,Day Care / Social Activities,Agincare UK Limited,543.28, 18-May-2022
155,Revenue,CAHD,South - Commissioned Services,Day Care / Social Activities,Agincare UK Limited,543.28, 26-May-2022
156,Revenue,CAHD,South - Commissioned Services,Day Care / Social Activities,Agincare UK Limited,543.28, 26-May-2022
157,Revenue,CAHD,Extra Care Housing,Private & Voluntary Home Care,Agincare UK Limited,5458.37, 09-May-2022
158,Revenue,CAHD,Extra Care Housing,Private & Voluntary Home Care,Agincare UK Limited,5458.37, 16-May-2022
159,Revenue,CAHD,Extra Care Housing,Private & Voluntary Home Care,Agincare UK Limited,5458.37, 23-May-2022
160,Revenue,CAHD,Extra Care Housing,Private & Voluntary Home Care,Agincare UK Limited,5458.37, 30-May-2022
161,Revenue,CAHD,Extra Care Housing,Private & Voluntary Home Care,Agincare UK Limited,30860.93, 04-May-2022
162,Revenue,CAHD,Statemented Support Payments to OLAs,Other L.A.s - General,Air Balloon Hill Primary School,801.92, 20-May-2022
163,Revenue,CAHD,South - Commissioned Services,Other Small Contracts,AliMo Care Ltd,676.95, 03-May-2022
164,Revenue,CAHD,South - Commissioned Services,Other Small Contracts,AliMo Care Ltd,676.95, 06-May-2022
165,Revenue,CAHD,South - Commissioned Services,Other Small Contracts,AliMo Care Ltd,676.95, 12-May-2022
166,Revenue,CAHD,South - Commissioned Services,Other Small Contracts,AliMo Care Ltd,676.95, 18-May-2022
167,Revenue,CAHD,South - Commissioned Services,Other Small Contracts,AliMo Care Ltd,676.95, 26-May-2022
168,Revenue,CAHD,South - Commissioned Services,Other Small Contracts,AliMo Care Ltd,676.95, 26-May-2022
169,Revenue,CAHD,South - Commissioned Services,Fees & Charges Income - General,Allambie Court,-823.52, 03-May-2022
170,Revenue,CAHD,South - Commissioned Services,Fees & Charges Income - General,Allambie Court,-823.52, 31-May-2022
171,Revenue,CAHD,South - Commissioned Services,Permanent Nursing,Allambie Court,2734.44, 03-May-2022
172,Revenue,CAHD,South - Commissioned Services,Permanent Nursing,Allambie Court,2734.44, 31-May-2022
173,Revenue,CAHD,"Drugs, Alcohol and Sexual Health",Other Small Contracts,Alveston Pharmacy,600.00, 13-May-2022
174,Revenue,CAHD,Central - Commissioned Services,Fees & Charges Income - General,Alvony House Residential Care Home,-714.84, 03-May-2022
175,Revenue,CAHD,Central - Commissioned Services,Fees & Charges Income - General,Alvony House Residential Care Home,-714.84, 31-May-2022
176,Revenue,CAHD,Central - Commissioned Services,Permanent Residential,Alvony House Residential Care Home,3000.00, 03-May-2022
177,Revenue,CAHD,Central - Commissioned Services,Permanent Residential,Alvony House Residential Care Home,3000.00, 31-May-2022
178,Revenue,CAHD,Mental Health and Community Engagement,Grants to Voluntary Bodies,Alzheimers Society,11143.00, 25-May-2022
179,Revenue,CAHD,CSC - Residential Placements,Permanent Residential,Ambito Care and Education,19920.87, 31-May-2022
180,Revenue,CAHD,CSC - Residential Placements,Permanent Residential,Ambito Care and Education,19930.88, 31-May-2022
181,Revenue,CAHD,CSC - Agency Fostering,Foster Parent Allowances,Amicus Foster Care Ltd,2734.83, 27-May-2022
182,Revenue,CAHD,CSC - Agency Fostering,Foster Parent Allowances,Amicus Foster Care Ltd,4641.72, 04-May-2022
183,Revenue,CAHD,CSC - Agency Fostering,Foster Parent Allowances,Amicus Foster Care Ltd,4721.61, 04-May-2022
184,Revenue,CAHD,Independent Special Placements - Pre 16,Other Private Contractors,Appleford School,7183.00, 04-May-2022
185,Revenue,CAHD,Younger MH non-res purchasing,Supported Living,Archcare Rehab Limited,2002.44, 03-May-2022
186,Revenue,CAHD,Younger MH non-res purchasing,Supported Living,Archcare Rehab Limited,2002.44, 31-May-2022
187,Revenue,CAHD,South - Commissioned Services,Fees & Charges Income - General,Ash Lea House,-438.80, 03-May-2022
188,Revenue,CAHD,South - Commissioned Services,Fees & Charges Income - General,Ash Lea House,-438.80, 31-May-2022
189,Revenue,CAHD,South - Commissioned Services,Permanent Residential,Ash Lea House,5551.92, 03-May-2022
190,Revenue,CAHD,South - Commissioned Services,Permanent Residential,Ash Lea House,5551.92, 31-May-2022
191,Revenue,CAHD,North - Community based support,Fees & Charges Income - General,Ash View House,-438.80, 03-May-2022
192,Revenue,CAHD,North - Community based support,Fees & Charges Income - General,Ash View House,-438.80, 03-May-2022
193,Revenue,CAHD,North - Community based support,Fees & Charges Income - General,Ash View House,-438.80, 31-May-2022
194,Revenue,CAHD,North - Community based support,Fees & Charges Income - General,Ash View House,-438.80, 31-May-2022
195,Revenue,CAHD,South - Commissioned Services,Fees & Charges Income - General,Ash View House,-438.80, 03-May-2022
196,Revenue,CAHD,South - Commissioned Services,Fees & Charges Income - General,Ash View House,-438.80, 31-May-2022
197,Revenue,CAHD,South - Commissioned Services,Fees & Charges Income - General,Ash View House,-387.80, 03-May-2022
198,Revenue,CAHD,South - Commissioned Services,Fees & Charges Income - General,Ash View House,-387.80, 31-May-2022
199,Revenue,CAHD,Jointly Funded H&SC Packages,Permanent Residential,Ash View House,1160.84, 03-May-2022
200,Revenue,CAHD,Jointly Funded H&SC Packages,Permanent Residential,Ash View House,1160.84, 31-May-2022
201,Revenue,CAHD,Jointly Funded H&SC Packages,Permanent Residential,Ash View House,2204.28, 03-May-2022
202,Revenue,CAHD,Jointly Funded H&SC Packages,Permanent Residential,Ash View House,2204.28, 31-May-2022
203,Revenue,CAHD,Section 117 Placements MH Younger,Permanent Residential,Ash View House,5444.12, 31-May-2022
204,Revenue,CAHD,Section 117 Placements MH Younger,Permanent Residential,Ash View House,5521.16, 03-May-2022
205,Revenue,CAHD,South - Commissioned Services,Permanent Residential,Ash View House,5994.80, 31-May-2022
206,Revenue,CAHD,South - Commissioned Services,Permanent Residential,Ash View House,6079.63, 03-May-2022
207,Revenue,CAHD,South - Commissioned Services,Permanent Residential,Ash View House,7317.24, 31-May-2022
208,Revenue,CAHD,South - S117,Permanent Residential,Ash View House,7402.64, 31-May-2022
209,Revenue,CAHD,South - Commissioned Services,Permanent Residential,Ash View House,7420.79, 03-May-2022
210,Revenue,CAHD,South - S117,Permanent Residential,Ash View House,7507.39, 03-May-2022
211,Revenue,CAHD,North - Community based support,Permanent Residential,Ash View House,7525.48, 31-May-2022
212,Revenue,CAHD,North - Community based support,Permanent Residential,Ash View House,7547.20, 31-May-2022
213,Revenue,CAHD,North - Community based support,Permanent Residential,Ash View House,7631.97, 03-May-2022
214,Revenue,CAHD,North - Community based support,Permanent Residential,Ash View House,7654.00, 03-May-2022
215,Revenue,CAHD,S117 Placements PCT,Permanent Residential,Ash View House,8357.80, 31-May-2022
216,Revenue,CAHD,S117 Placements PCT,Permanent Residential,Ash View House,8476.07, 03-May-2022
217,Revenue,CAHD,South - Commissioned Services,Other Small Contracts,Aspirations,1566.38, 03-May-2022
218,Revenue,CAHD,South - Commissioned Services,Other Small Contracts,Aspirations,1566.38, 06-May-2022
219,Revenue,CAHD,South - Commissioned Services,Other Small Contracts,Aspirations,1566.38, 12-May-2022
220,Revenue,CAHD,South - Commissioned Services,Other Small Contracts,Aspirations,1566.38, 18-May-2022
221,Revenue,CAHD,South - Commissioned Services,Other Small Contracts,Aspirations,1566.38, 26-May-2022
222,Revenue,CAHD,South - Commissioned Services,Other Small Contracts,Aspirations,1566.38, 26-May-2022
223,Revenue,CAHD,Central - Commissioned Services,Other Small Contracts,Aspirations,3263.78, 03-May-2022
224,Revenue,CAHD,Central - Commissioned Services,Other Small Contracts,Aspirations,3263.78, 06-May-2022
225,Revenue,CAHD,Central - Commissioned Services,Other Small Contracts,Aspirations,3263.78, 12-May-2022
226,Revenue,CAHD,Central - Commissioned Services,Other Small Contracts,Aspirations,3263.78, 18-May-2022
227,Revenue,CAHD,Central - Commissioned Services,Other Small Contracts,Aspirations,3263.78, 26-May-2022
228,Revenue,CAHD,Central - Commissioned Services,Other Small Contracts,Aspirations,3263.78, 26-May-2022
229,Revenue,CAHD,North - Community based support,Other Small Contracts,Aspirations,3651.11, 03-May-2022
230,Revenue,CAHD,North - Community based support,Other Small Contracts,Aspirations,3651.11, 06-May-2022
231,Revenue,CAHD,North - Community based support,Other Small Contracts,Aspirations,3651.11, 12-May-2022
232,Revenue,CAHD,North - Community based support,Other Small Contracts,Aspirations,3651.11, 18-May-2022
233,Revenue,CAHD,North - Community based support,Other Small Contracts,Aspirations,3651.11, 26-May-2022
234,Revenue,CAHD,North - Community based support,Other Small Contracts,Aspirations,3651.11, 26-May-2022
235,Revenue,CAHD,18-25 Year Olds,Other Small Contracts,Aspirations,4294.62, 03-May-2022
236,Revenue,CAHD,18-25 Year Olds,Other Small Contracts,Aspirations,4294.62, 06-May-2022
237,Revenue,CAHD,18-25 Year Olds,Other Small Contracts,Aspirations,4294.62, 12-May-2022
238,Revenue,CAHD,18-25 Year Olds,Other Small Contracts,Aspirations,4294.62, 18-May-2022
239,Revenue,CAHD,18-25 Year Olds,Other Small Contracts,Aspirations,4294.62, 26-May-2022
240,Revenue,CAHD,18-25 Year Olds,Other Small Contracts,Aspirations,4294.62, 26-May-2022
241,Revenue,CAHD,South - Commissioned Services,Supported Living,Aspirations,15205.36, 03-May-2022
242,Revenue,CAHD,South - Commissioned Services,Supported Living,Aspirations,15205.36, 06-May-2022
243,Revenue,CAHD,South - Commissioned Services,Supported Living,Aspirations,15205.36, 12-May-2022
244,Revenue,CAHD,South - Commissioned Services,Supported Living,Aspirations,15205.36, 18-May-2022
245,Revenue,CAHD,South - Commissioned Services,Supported Living,Aspirations,15205.36, 26-May-2022
246,Revenue,CAHD,South - Commissioned Services,Supported Living,Aspirations,15205.36, 26-May-2022
247,Revenue,CAHD,CSC - Care Leavers Independent Living,Adults - Family Support,Aspirations Support Bristol Limited,15419.68, 24-May-2022
248,Revenue,CAHD,CSC - Vinney Green Secure Unit,R & M by Departments,Assa Abloy Limited,478.00, 13-May-2022
249,Revenue,CAHD,CSC - Vinney Green Secure Unit,R & M by Departments,Assa Abloy Limited,935.42, 13-May-2022
250,Revenue,CAHD,18-25 Year Olds,Adults - Family Support,Ategi Limited,-3507.65, 31-May-2022
251,Revenue,CAHD,18-25 Year Olds,Adults - Family Support,Ategi Limited,-3030.65, 31-May-2022
252,Revenue,CAHD,18-25 Year Olds,Adults - Family Support,Ategi Limited,-2118.15, 31-May-2022
253,Revenue,CAHD,18-25 Year Olds,Adults - Family Support,Ategi Limited,-2118.15, 31-May-2022
254,Revenue,CAHD,Central - Commissioned Services,Adults - Family Support,Ategi Limited,182.79, 31-May-2022
255,Revenue,CAHD,South - Commissioned Services,Adults - Family Support,Ategi Limited,311.04, 31-May-2022
256,Revenue,CAHD,South - Commissioned Services,Adults - Family Support,Ategi Limited,365.71, 31-May-2022
257,Revenue,CAHD,North - Community based support,Adults - Family Support,Ategi Limited,992.03, 31-May-2022
258,Revenue,CAHD,North - Community based support,Adults - Family Support,Ategi Limited,1207.89, 31-May-2022
259,Revenue,CAHD,North - Community based support,Adults - Family Support,Ategi Limited,1224.89, 03-May-2022
260,Revenue,CAHD,North - Community based support,Adults - Family Support,Ategi Limited,1696.41, 31-May-2022
261,Revenue,CAHD,18-25 Year Olds,Adults - Family Support,Ategi Limited,1718.50, 03-May-2022
262,Revenue,CAHD,18-25 Year Olds,Adults - Family Support,Ategi Limited,1718.50, 03-May-2022
263,Revenue,CAHD,South - Commissioned Services,Adults - Family Support,Ategi Limited,1718.50, 03-May-2022
264,Revenue,CAHD,North - Community based support,Adults - Family Support,Ategi Limited,1718.50, 03-May-2022
265,Revenue,CAHD,South - Commissioned Services,Adults - Family Support,Ategi Limited,2007.45, 31-May-2022
266,Revenue,CAHD,South - Commissioned Services,Adults - Family Support,Ategi Limited,2424.79, 31-May-2022
267,Revenue,CAHD,South - Commissioned Services,Adults - Family Support,Ategi Limited,2424.79, 31-May-2022
268,Revenue,CAHD,18-25 Year Olds,Adults - Family Support,Ategi Limited,2458.83, 03-May-2022
269,Revenue,CAHD,South - Commissioned Services,Adults - Family Support,Ategi Limited,2458.83, 03-May-2022
270,Revenue,CAHD,South - Commissioned Services,Adults - Family Support,Ategi Limited,2458.83, 03-May-2022
271,Revenue,CAHD,North - Community based support,Adults - Family Support,Ategi Limited,2514.65, 31-May-2022
272,Revenue,CAHD,18-25 Year Olds,Adults - Family Support,Ategi Limited,2845.83, 03-May-2022
273,Revenue,CAHD,CSC - Direct Payments - Disabled Chi,Adults - Family Support,Ategi Limited,3814.56, 31-May-2022
274,Revenue,CAHD,South - Commissioned Services,Adults - Family Support,Ategi Limited,3814.56, 31-May-2022
275,Revenue,CAHD,South - Commissioned Services,Adults - Family Support,Ategi Limited,4061.61, 03-May-2022
276,Revenue,CAHD,North - Community based support,Adults - Family Support,Ategi Limited,4209.22, 31-May-2022
277,Revenue,CAHD,CSC - Direct Payments - Disabled Chi,Adults - Family Support,Ategi Limited,5455.44, 31-May-2022
278,Revenue,CAHD,North - Community based support,Adults - Family Support,Ategi Limited,5963.27, 03-May-2022
279,Revenue,CAHD,CSC - Direct Payments - Disabled Chi,Adults - Family Support,Ategi Limited,6314.04, 31-May-2022
280,Revenue,CAHD,South - Commissioned Services,Fees & Charges Income - General,Ategi Limited,17750.35, 31-May-2022
281,Revenue,CAHD,South - Commissioned Services,Adults - Family Support,Ategi Limited,22026.01, 31-May-2022
282,Revenue,CAHD,Statemented Support Academies,Other Public Bodies,Athelstan Trust,526.83, 23-May-2022
283,Revenue,CAHD,Statemented Support Academies,Other Public Bodies,Athelstan Trust,588.75, 23-May-2022
284,Revenue,CAHD,Statemented Support Academies,Other Public Bodies,Athelstan Trust,718.08, 23-May-2022
285,Revenue,CAHD,Statemented Support Academies,Other Public Bodies,Athelstan Trust,722.42, 23-May-2022
286,Revenue,CAHD,Statemented Support Academies,Other Public Bodies,Athelstan Trust,771.42, 23-May-2022
287,Revenue,CAHD,Statemented Support Academies,Other Public Bodies,Athelstan Trust,926.58, 23-May-2022
288,Revenue,CAHD,CSC - CLA Placements,Carers Breaks & Services,Athelstan Trust,934.13, 23-May-2022
289,Revenue,CAHD,Statemented Support Academies,Other Public Bodies,Athelstan Trust,1066.65, 23-May-2022
290,Revenue,CAHD,Statemented Support Academies,Other Public Bodies,Athelstan Trust,1342.25, 23-May-2022
291,Revenue,CAHD,Statemented Support Academies,Other Public Bodies,Athelstan Trust,1367.64, 23-May-2022
292,Revenue,CAHD,Statemented Support Academies,Other Public Bodies,Athelstan Trust,1436.25, 23-May-2022
293,Revenue,CAHD,Academy Resource Base Funding,Other Public Bodies,Athelstan Trust,1698.64, 20-May-2022
294,Revenue,CAHD,Academy Resource Base Funding,Other Public Bodies,Athelstan Trust,2513.88, 20-May-2022
295,Revenue,CAHD,Academy Resource Base Funding,Other Public Bodies,Athelstan Trust,2513.88, 20-May-2022
296,Revenue,CAHD,Academy Resource Base Funding,Other Public Bodies,Athelstan Trust,2513.88, 20-May-2022
297,Revenue,CAHD,Academy Resource Base Funding,Other Public Bodies,Athelstan Trust,2513.88, 20-May-2022
298,Revenue,CAHD,Academy Resource Base Funding,Other Public Bodies,Athelstan Trust,2513.88, 20-May-2022
299,Revenue,CAHD,Academy Resource Base Funding,Other Public Bodies,Athelstan Trust,2513.88, 20-May-2022
300,Revenue,CAHD,Academy Resource Base Funding,Other Public Bodies,Athelstan Trust,2513.88, 20-May-2022
301,Revenue,CAHD,Academy Resource Base Funding,Other Public Bodies,Athelstan Trust,2513.88, 20-May-2022
302,Revenue,CAHD,Academy Resource Base Funding,Other Public Bodies,Athelstan Trust,2513.88, 20-May-2022
303,Revenue,CAHD,Academy Resource Base Funding,Other Public Bodies,Athelstan Trust,2513.88, 20-May-2022
304,Revenue,CAHD,Academy Resource Base Funding,Other Public Bodies,Athelstan Trust,2513.88, 20-May-2022
305,Revenue,CAHD,Academy Resource Base Funding,Other Public Bodies,Athelstan Trust,2513.88, 20-May-2022
306,Revenue,CAHD,Statemented Support Academies,Other Public Bodies,Athelstan Trust,3514.12, 23-May-2022
307,Revenue,CAHD,CSC - Vinney Green Secure Unit,R & M by Departments,Atus Systems Limited,6787.35, 13-May-2022
308,Revenue,CAHD,Independent Special Placements - Pre 16,Other Private Contractors,Aurora Hedgeway School,542.54, 24-May-2022
309,Revenue,CAHD,Independent Special Placements - Pre 16,Other Private Contractors,Aurora Hedgeway School,2085.61, 24-May-2022
310,Revenue,CAHD,Independent Special Placements - Pre 16,Other Private Contractors,Aurora Hedgeway School,2085.61, 24-May-2022
311,Revenue,CAHD,Independent Special Placements - Pre 16,Other Private Contractors,Aurora Hedgeway School,2085.61, 24-May-2022
312,Revenue,CAHD,Independent Special Placements - Pre 16,Other Private Contractors,Aurora Hedgeway School,2085.61, 24-May-2022
313,Revenue,CAHD,Independent Special Placements - Pre 16,Other Private Contractors,Aurora Severnside School,15863.31, 06-May-2022
314,Revenue,CAHD,Independent Special Placements - Pre 16,Other Private Contractors,Aurora Severnside School,23474.44, 09-May-2022
315,Revenue,CAHD,South - Commissioned Services,Fees & Charges Income - General,Autism Specialised Care Homes,-438.80, 03-May-2022
316,Revenue,CAHD,South - Commissioned Services,Fees & Charges Income - General,Autism Specialised Care Homes,-438.80, 31-May-2022
317,Revenue,CAHD,South - Commissioned Services,Permanent Residential,Autism Specialised Care Homes,6506.88, 03-May-2022
318,Revenue,CAHD,South - Commissioned Services,Permanent Residential,Autism Specialised Care Homes,6506.88, 31-May-2022
319,Revenue,CAHD,Younger Adult Mental Health,Health Services (Third Party Payments),Avon & Wiltshire Mental Health,1693.33, 06-May-2022
320,Revenue,CAHD,Younger Adult Mental Health,Health Services (Third Party Payments),Avon & Wiltshire Mental Health,1693.33, 09-May-2022
321,Revenue,CAHD,Younger Adult Mental Health,Health Services (Third Party Payments),Avon & Wiltshire Mental Health,1693.33, 27-May-2022
322,Revenue,CAHD,South - Commissioned Services,Fees & Charges Income - General,Avon Lodge Care Centre,-10219.70, 03-May-2022
323,Revenue,CAHD,South - Commissioned Services,Fees & Charges Income - General,Avon Lodge Care Centre,-6345.43, 31-May-2022
324,Revenue,CAHD,Central - Commissioned Services,Permanent Nursing,Avon Lodge Care Centre,-5407.68, 31-May-2022
325,Revenue,CAHD,South - Commissioned Services,Fees & Charges Income - General,Avon Lodge Care Centre,-5000.12, 31-May-2022
326,Revenue,CAHD,South - Commissioned Services,Fees & Charges Income - General,Avon Lodge Care Centre,-3542.04, 31-May-2022
327,Revenue,CAHD,South - Commissioned Services,Fees & Charges Income - General,Avon Lodge Care Centre,-1889.12, 31-May-2022
328,Revenue,CAHD,South - Commissioned Services,Fees & Charges Income - General,Avon Lodge Care Centre,-1864.26, 31-May-2022
329,Revenue,CAHD,North - Community based support,Fees & Charges Income - General,Avon Lodge Care Centre,-1564.75, 31-May-2022
330,Revenue,CAHD,South - Commissioned Services,Fees & Charges Income - General,Avon Lodge Care Centre,-1525.00, 31-May-2022
331,Revenue,CAHD,South - Commissioned Services,Fees & Charges Income - General,Avon Lodge Care Centre,-1525.00, 03-May-2022
332,Revenue,CAHD,North - Community based support,Fees & Charges Income - General,Avon Lodge Care Centre,-1493.16, 31-May-2022
333,Revenue,CAHD,North - Community based support,Fees & Charges Income - General,Avon Lodge Care Centre,-1493.16, 03-May-2022
334,Revenue,CAHD,South - Commissioned Services,Fees & Charges Income - General,Avon Lodge Care Centre,-1481.06, 31-May-2022
335,Revenue,CAHD,South - Commissioned Services,Fees & Charges Income - General,Avon Lodge Care Centre,-1393.76, 31-May-2022
336,Revenue,CAHD,South - Commissioned Services,Fees & Charges Income - General,Avon Lodge Care Centre,-1280.20, 31-May-2022
337,Revenue,CAHD,South - Commissioned Services,Fees & Charges Income - General,Avon Lodge Care Centre,-1280.20, 03-May-2022
338,Revenue,CAHD,South - Commissioned Services,Fees & Charges Income - General,Avon Lodge Care Centre,-1056.84, 31-May-2022
339,Revenue,CAHD,South - Commissioned Services,Fees & Charges Income - General,Avon Lodge Care Centre,-1056.84, 03-May-2022
340,Revenue,CAHD,South - Commissioned Services,Fees & Charges Income - General,Avon Lodge Care Centre,-1017.44, 31-May-2022
341,Revenue,CAHD,South - Commissioned Services,Fees & Charges Income - General,Avon Lodge Care Centre,-1017.44, 03-May-2022
342,Revenue,CAHD,Central - Commissioned Services,Fees & Charges Income - General,Avon Lodge Care Centre,-956.96, 31-May-2022
343,Revenue,CAHD,Central - Commissioned Services,Fees & Charges Income - General,Avon Lodge Care Centre,-956.96, 03-May-2022
344,Revenue,CAHD,South Glos Users in South Glos Homes,Permanent Nursing,Avon Lodge Care Centre,-884.40, 31-May-2022
345,Revenue,CAHD,South - Commissioned Services,Fees & Charges Income - General,Avon Lodge Care Centre,-852.32, 31-May-2022
346,Revenue,CAHD,South - Commissioned Services,Fees & Charges Income - General,Avon Lodge Care Centre,-852.32, 03-May-2022
347,Revenue,CAHD,North - Community based support,Fees & Charges Income - General,Avon Lodge Care Centre,-794.36, 31-May-2022
348,Revenue,CAHD,North - Community based support,Fees & Charges Income - General,Avon Lodge Care Centre,-794.36, 03-May-2022
349,Revenue,CAHD,South - Commissioned Services,Fees & Charges Income - General,Avon Lodge Care Centre,-725.24, 31-May-2022
350,Revenue,CAHD,South - Commissioned Services,Fees & Charges Income - General,Avon Lodge Care Centre,-725.24, 03-May-2022
351,Revenue,CAHD,Central - Commissioned Services,Fees & Charges Income - General,Avon Lodge Care Centre,-698.68, 03-May-2022
352,Revenue,CAHD,South - Commissioned Services,Fees & Charges Income - General,Avon Lodge Care Centre,-679.80, 31-May-2022
353,Revenue,CAHD,South - Commissioned Services,Fees & Charges Income - General,Avon Lodge Care Centre,-679.80, 03-May-2022
354,Revenue,CAHD,South - Commissioned Services,Fees & Charges Income - General,Avon Lodge Care Centre,-627.80, 31-May-2022
355,Revenue,CAHD,South - Commissioned Services,Fees & Charges Income - General,Avon Lodge Care Centre,-627.80, 03-May-2022
356,Revenue,CAHD,South - Commissioned Services,Fees & Charges Income - General,Avon Lodge Care Centre,-613.44, 31-May-2022
357,Revenue,CAHD,South - Commissioned Services,Fees & Charges Income - General,Avon Lodge Care Centre,-613.44, 03-May-2022
358,Revenue,CAHD,South - Commissioned Services,Fees & Charges Income - General,Avon Lodge Care Centre,-438.80, 31-May-2022
359,Revenue,CAHD,South - Commissioned Services,Fees & Charges Income - General,Avon Lodge Care Centre,-438.80, 03-May-2022
360,Revenue,CAHD,South - Commissioned Services,Permanent Nursing,Avon Lodge Care Centre,425.80, 31-May-2022
361,Revenue,CAHD,South Glos Users in South Glos Homes,Permanent Nursing,Avon Lodge Care Centre,750.40, 31-May-2022
362,Revenue,CAHD,South Glos Users in South Glos Homes,Permanent Nursing,Avon Lodge Care Centre,750.40, 31-May-2022
363,Revenue,CAHD,South Glos Users in South Glos Homes,Permanent Nursing,Avon Lodge Care Centre,750.40, 31-May-2022
364,Revenue,CAHD,South Glos Users in South Glos Homes,Permanent Nursing,Avon Lodge Care Centre,750.40, 31-May-2022
365,Revenue,CAHD,South Glos Users in South Glos Homes,Permanent Nursing,Avon Lodge Care Centre,750.40, 31-May-2022
366,Revenue,CAHD,South Glos Users in South Glos Homes,Permanent Nursing,Avon Lodge Care Centre,750.40, 31-May-2022
367,Revenue,CAHD,South Glos Users in South Glos Homes,Permanent Nursing,Avon Lodge Care Centre,750.40, 31-May-2022
368,Revenue,CAHD,South Glos Users in South Glos Homes,Permanent Nursing,Avon Lodge Care Centre,750.40, 31-May-2022
369,Revenue,CAHD,South Glos Users in South Glos Homes,Permanent Nursing,Avon Lodge Care Centre,750.40, 31-May-2022
370,Revenue,CAHD,South Glos Users in South Glos Homes,Permanent Nursing,Avon Lodge Care Centre,750.40, 31-May-2022
371,Revenue,CAHD,South Glos Users in South Glos Homes,Permanent Nursing,Avon Lodge Care Centre,750.40, 31-May-2022
372,Revenue,CAHD,South Glos Users in South Glos Homes,Permanent Nursing,Avon Lodge Care Centre,750.40, 31-May-2022
373,Revenue,CAHD,South Glos Users in South Glos Homes,Permanent Nursing,Avon Lodge Care Centre,750.40, 31-May-2022
374,Revenue,CAHD,South Glos Users in South Glos Homes,Permanent Nursing,Avon Lodge Care Centre,750.40, 31-May-2022
375,Revenue,CAHD,South Glos Users in South Glos Homes,Permanent Nursing,Avon Lodge Care Centre,750.40, 31-May-2022
376,Revenue,CAHD,South Glos Users in South Glos Homes,Permanent Nursing,Avon Lodge Care Centre,750.40, 31-May-2022
377,Revenue,CAHD,South Glos Users in South Glos Homes,Permanent Nursing,Avon Lodge Care Centre,750.40, 31-May-2022
378,Revenue,CAHD,South Glos Users in South Glos Homes,Permanent Nursing,Avon Lodge Care Centre,750.40, 31-May-2022
379,Revenue,CAHD,South Glos Users in South Glos Homes,Permanent Nursing,Avon Lodge Care Centre,750.40, 31-May-2022
380,Revenue,CAHD,South Glos Users in South Glos Homes,Permanent Nursing,Avon Lodge Care Centre,750.40, 31-May-2022
381,Revenue,CAHD,South Glos Users in South Glos Homes,Permanent Nursing,Avon Lodge Care Centre,750.40, 31-May-2022
382,Revenue,CAHD,South Glos Users in South Glos Homes,Permanent Nursing,Avon Lodge Care Centre,750.40, 31-May-2022
383,Revenue,CAHD,South Glos Users in South Glos Homes,Permanent Nursing,Avon Lodge Care Centre,750.40, 31-May-2022
384,Revenue,CAHD,South Glos Users in South Glos Homes,Permanent Nursing,Avon Lodge Care Centre,750.40, 31-May-2022
385,Revenue,CAHD,South Glos Users in South Glos Homes,Permanent Nursing,Avon Lodge Care Centre,750.40, 31-May-2022
386,Revenue,CAHD,South Glos Users in South Glos Homes,Permanent Nursing,Avon Lodge Care Centre,750.40, 31-May-2022
387,Revenue,CAHD,South Glos Users in South Glos Homes,Permanent Nursing,Avon Lodge Care Centre,750.40, 31-May-2022
388,Revenue,CAHD,South Glos Users in South Glos Homes,Permanent Nursing,Avon Lodge Care Centre,750.40, 03-May-2022
389,Revenue,CAHD,South Glos Users in South Glos Homes,Permanent Nursing,Avon Lodge Care Centre,750.40, 03-May-2022
390,Revenue,CAHD,South Glos Users in South Glos Homes,Permanent Nursing,Avon Lodge Care Centre,750.40, 03-May-2022
391,Revenue,CAHD,South Glos Users in South Glos Homes,Permanent Nursing,Avon Lodge Care Centre,750.40, 03-May-2022
392,Revenue,CAHD,South Glos Users in South Glos Homes,Permanent Nursing,Avon Lodge Care Centre,750.40, 03-May-2022
393,Revenue,CAHD,South Glos Users in South Glos Homes,Permanent Nursing,Avon Lodge Care Centre,750.40, 03-May-2022
394,Revenue,CAHD,South Glos Users in South Glos Homes,Permanent Nursing,Avon Lodge Care Centre,750.40, 03-May-2022
395,Revenue,CAHD,South Glos Users in South Glos Homes,Permanent Nursing,Avon Lodge Care Centre,750.40, 03-May-2022
396,Revenue,CAHD,South Glos Users in South Glos Homes,Permanent Nursing,Avon Lodge Care Centre,750.40, 03-May-2022
397,Revenue,CAHD,South Glos Users in South Glos Homes,Permanent Nursing,Avon Lodge Care Centre,750.40, 03-May-2022
398,Revenue,CAHD,South Glos Users in South Glos Homes,Permanent Nursing,Avon Lodge Care Centre,750.40, 03-May-2022
399,Revenue,CAHD,South Glos Users in South Glos Homes,Permanent Nursing,Avon Lodge Care Centre,750.40, 03-May-2022
400,Revenue,CAHD,South Glos Users in South Glos Homes,Permanent Nursing,Avon Lodge Care Centre,750.40, 03-May-2022
401,Revenue,CAHD,South Glos Users in South Glos Homes,Permanent Nursing,Avon Lodge Care Centre,750.40, 03-May-2022
402,Revenue,CAHD,South Glos Users in South Glos Homes,Permanent Nursing,Avon Lodge Care Centre,750.40, 03-May-2022
403,Revenue,CAHD,South Glos Users in South Glos Homes,Permanent Nursing,Avon Lodge Care Centre,750.40, 03-May-2022
404,Revenue,CAHD,South Glos Users in South Glos Homes,Permanent Nursing,Avon Lodge Care Centre,750.40, 03-May-2022
405,Revenue,CAHD,South Glos Users in South Glos Homes,Permanent Nursing,Avon Lodge Care Centre,750.40, 03-May-2022
406,Revenue,CAHD,South Glos Users in South Glos Homes,Permanent Nursing,Avon Lodge Care Centre,750.40, 03-May-2022
407,Revenue,CAHD,South Glos Users in South Glos Homes,Permanent Nursing,Avon Lodge Care Centre,750.40, 03-May-2022
408,Revenue,CAHD,South Glos Users in South Glos Homes,Permanent Nursing,Avon Lodge Care Centre,750.40, 03-May-2022
409,Revenue,CAHD,South Glos Users in South Glos Homes,Permanent Nursing,Avon Lodge Care Centre,750.40, 03-May-2022
410,Revenue,CAHD,South Glos Users in South Glos Homes,Permanent Nursing,Avon Lodge Care Centre,750.40, 03-May-2022
411,Revenue,CAHD,South Glos Users in South Glos Homes,Permanent Nursing,Avon Lodge Care Centre,750.40, 03-May-2022
412,Revenue,CAHD,South Glos Users in South Glos Homes,Permanent Nursing,Avon Lodge Care Centre,750.40, 03-May-2022
413,Revenue,CAHD,South Glos Users in South Glos Homes,Permanent Nursing,Avon Lodge Care Centre,750.40, 03-May-2022
414,Revenue,CAHD,South Glos Users in South Glos Homes,Permanent Nursing,Avon Lodge Care Centre,750.40, 03-May-2022
415,Revenue,CAHD,South Glos Users in South Glos Homes,Permanent Nursing,Avon Lodge Care Centre,750.40, 03-May-2022
416,Revenue,CAHD,Central - Commissioned Services,Fees & Charges Income - General,Avon Lodge Care Centre,897.55, 31-May-2022
417,Revenue,CAHD,South - Commissioned Services,Fees & Charges Income - General,Avon Lodge Care Centre,1987.70, 31-May-2022
418,Revenue,CAHD,South - Commissioned Services,Permanent Residential,Avon Lodge Care Centre,3318.24, 31-May-2022
419,Revenue,CAHD,South - Commissioned Services,Permanent Residential,Avon Lodge Care Centre,3365.20, 03-May-2022
420,Revenue,CAHD,South - Commissioned Services,Permanent Nursing,Avon Lodge Care Centre,3539.44, 31-May-2022
421,Revenue,CAHD,South - Commissioned Services,Permanent Nursing,Avon Lodge Care Centre,3589.53, 03-May-2022
422,Revenue,CAHD,South - Commissioned Services,Permanent Residential,Avon Lodge Care Centre,3667.60, 31-May-2022
423,Revenue,CAHD,South - Commissioned Services,Permanent Residential,Avon Lodge Care Centre,3719.50, 03-May-2022
424,Revenue,CAHD,South - Commissioned Services,Permanent Nursing,Avon Lodge Care Centre,3751.96, 31-May-2022
425,Revenue,CAHD,North - Community based support,Permanent Residential,Avon Lodge Care Centre,3751.96, 31-May-2022
426,Revenue,CAHD,South - Commissioned Services,Permanent Nursing,Avon Lodge Care Centre,3805.05, 03-May-2022
427,Revenue,CAHD,North - Community based support,Permanent Residential,Avon Lodge Care Centre,3805.05, 03-May-2022
428,Revenue,CAHD,South - Commissioned Services,Permanent Residential,Avon Lodge Care Centre,3816.00, 31-May-2022
429,Revenue,CAHD,South - Commissioned Services,Permanent Residential,Avon Lodge Care Centre,3870.00, 03-May-2022
430,Revenue,CAHD,South - Commissioned Services,Respite Planned - Nursing,Avon Lodge Care Centre,3989.59, 31-May-2022
431,Revenue,CAHD,South - Commissioned Services,Permanent Residential,Avon Lodge Care Centre,4028.00, 31-May-2022
432,Revenue,CAHD,South - Commissioned Services,Permanent Nursing,Avon Lodge Care Centre,4028.00, 31-May-2022
433,Revenue,CAHD,South - Commissioned Services,Permanent Nursing,Avon Lodge Care Centre,4085.00, 03-May-2022
434,Revenue,CAHD,Central - Commissioned Services,Permanent Nursing,Avon Lodge Care Centre,4120.64, 31-May-2022
435,Revenue,CAHD,South - Commissioned Services,Permanent Nursing,Avon Lodge Care Centre,4120.64, 31-May-2022
436,Revenue,CAHD,North - Community based support,Permanent Nursing,Avon Lodge Care Centre,4120.64, 31-May-2022
437,Revenue,CAHD,Central - Commissioned Services,Permanent Nursing,Avon Lodge Care Centre,4178.95, 03-May-2022
438,Revenue,CAHD,South - Commissioned Services,Permanent Nursing,Avon Lodge Care Centre,4178.95, 03-May-2022
439,Revenue,CAHD,North - Community based support,Permanent Nursing,Avon Lodge Care Centre,4178.95, 03-May-2022
440,Revenue,CAHD,South - S117,Permanent Nursing,Avon Lodge Care Centre,4213.32, 31-May-2022
441,Revenue,CAHD,Central - Commissioned Services,Permanent Nursing,Avon Lodge Care Centre,4272.21, 03-May-2022
442,Revenue,CAHD,South - S117,Permanent Nursing,Avon Lodge Care Centre,4272.94, 03-May-2022
443,Revenue,CAHD,South - Commissioned Services,Permanent Nursing,Avon Lodge Care Centre,4553.76, 31-May-2022
444,Revenue,CAHD,North - Community based support,Permanent Nursing,Avon Lodge Care Centre,4553.76, 31-May-2022
445,Revenue,CAHD,South - Commissioned Services,Permanent Nursing,Avon Lodge Care Centre,4554.28, 31-May-2022
446,Revenue,CAHD,South - Commissioned Services,Permanent Nursing,Avon Lodge Care Centre,4554.28, 31-May-2022
447,Revenue,CAHD,South - Commissioned Services,Permanent Nursing,Avon Lodge Care Centre,4618.20, 03-May-2022
448,Revenue,CAHD,North - Community based support,Permanent Nursing,Avon Lodge Care Centre,4618.20, 03-May-2022
449,Revenue,CAHD,South - Commissioned Services,Permanent Nursing,Avon Lodge Care Centre,4618.73, 03-May-2022
450,Revenue,CAHD,South - Commissioned Services,Permanent Nursing,Avon Lodge Care Centre,4618.73, 03-May-2022
451,Revenue,CAHD,South - Commissioned Services,Permanent Nursing,Avon Lodge Care Centre,4664.00, 31-May-2022
452,Revenue,CAHD,South - Commissioned Services,Permanent Nursing,Avon Lodge Care Centre,4674.92, 31-May-2022
453,Revenue,CAHD,South - Commissioned Services,Permanent Nursing,Avon Lodge Care Centre,4714.76, 31-May-2022
454,Revenue,CAHD,South - Commissioned Services,Permanent Nursing,Avon Lodge Care Centre,4730.00, 03-May-2022
455,Revenue,CAHD,South - Commissioned Services,Permanent Nursing,Avon Lodge Care Centre,4741.07, 03-May-2022
456,Revenue,CAHD,South - Commissioned Services,Permanent Nursing,Avon Lodge Care Centre,4775.44, 31-May-2022
457,Revenue,CAHD,South - Commissioned Services,Permanent Nursing,Avon Lodge Care Centre,4781.48, 03-May-2022
458,Revenue,CAHD,South - Commissioned Services,Permanent Nursing,Avon Lodge Care Centre,4843.02, 03-May-2022
459,Revenue,CAHD,South - Commissioned Services,Permanent Nursing,Avon Lodge Care Centre,4912.28, 31-May-2022
460,Revenue,CAHD,South - Commissioned Services,Permanent Nursing,Avon Lodge Care Centre,4981.79, 03-May-2022
461,Revenue,CAHD,South - Commissioned Services,Respite Planned - Nursing,Avon Lodge Care Centre,5217.15, 31-May-2022
462,Revenue,CAHD,South - Commissioned Services,Permanent Nursing,Avon Lodge Care Centre,5349.68, 31-May-2022
463,Revenue,CAHD,South - Commissioned Services,Permanent Nursing,Avon Lodge Care Centre,5425.38, 03-May-2022
464,Revenue,CAHD,South - Commissioned Services,Permanent Residential,Avon Lodge Care Centre,5442.14, 03-May-2022
465,Revenue,CAHD,South - Commissioned Services,Permanent Nursing,Avon Lodge Care Centre,7979.18, 31-May-2022
466,Revenue,CAHD,South - Commissioned Services,Permanent Residential,Avon Lodge Care Centre,10279.71, 31-May-2022
467,Revenue,CAHD,South - Commissioned Services,Permanent Residential,Avon Lodge Care Centre,13349.78, 31-May-2022
468,Revenue,CAHD,South - Commissioned Services,Respite Planned - Nursing,Avon Lodge Care Centre,13963.56, 03-May-2022
469,Revenue,CAHD,South - Commissioned Services,Fees & Charges Income - General,Avon Valley Care Home,-1952.05, 31-May-2022
470,Revenue,CAHD,South - Commissioned Services,Fees & Charges Income - General,Avon Valley Care Home,-1285.52, 03-May-2022
471,Revenue,CAHD,South - Commissioned Services,Fees & Charges Income - General,Avon Valley Care Home,-1285.52, 31-May-2022
472,Revenue,CAHD,South - Commissioned Services,Fees & Charges Income - General,Avon Valley Care Home,-1236.49, 03-May-2022
473,Revenue,CAHD,South - Commissioned Services,Fees & Charges Income - General,Avon Valley Care Home,-1210.84, 31-May-2022
474,Revenue,CAHD,South - Commissioned Services,Fees & Charges Income - General,Avon Valley Care Home,-1202.56, 31-May-2022
475,Revenue,CAHD,South - Commissioned Services,Fees & Charges Income - General,Avon Valley Care Home,-1175.92, 03-May-2022
476,Revenue,CAHD,South - Commissioned Services,Fees & Charges Income - General,Avon Valley Care Home,-1175.92, 31-May-2022
477,Revenue,CAHD,South - Commissioned Services,Fees & Charges Income - General,Avon Valley Care Home,-1111.12, 03-May-2022
478,Revenue,CAHD,South - Commissioned Services,Fees & Charges Income - General,Avon Valley Care Home,-1111.12, 31-May-2022
479,Revenue,CAHD,South - Commissioned Services,Fees & Charges Income - General,Avon Valley Care Home,-1100.26, 03-May-2022
480,Revenue,CAHD,South - Commissioned Services,Fees & Charges Income - General,Avon Valley Care Home,-1100.24, 31-May-2022
481,Revenue,CAHD,South - Commissioned Services,Fees & Charges Income - General,Avon Valley Care Home,-1087.47, 03-May-2022
482,Revenue,CAHD,South - Commissioned Services,Fees & Charges Income - General,Avon Valley Care Home,-1040.32, 03-May-2022
483,Revenue,CAHD,South - Commissioned Services,Fees & Charges Income - General,Avon Valley Care Home,-1040.32, 31-May-2022
484,Revenue,CAHD,South - Commissioned Services,Fees & Charges Income - General,Avon Valley Care Home,-1023.05, 03-May-2022
485,Revenue,CAHD,South - Commissioned Services,Fees & Charges Income - General,Avon Valley Care Home,-1009.24, 03-May-2022
486,Revenue,CAHD,South - Commissioned Services,Fees & Charges Income - General,Avon Valley Care Home,-1009.24, 31-May-2022
487,Revenue,CAHD,South - Commissioned Services,Fees & Charges Income - General,Avon Valley Care Home,-997.40, 31-May-2022
488,Revenue,CAHD,Central - Commissioned Services,Fees & Charges Income - General,Avon Valley Care Home,-640.04, 03-May-2022
489,Revenue,CAHD,South - Commissioned Services,Fees & Charges Income - General,Avon Valley Care Home,-628.16, 03-May-2022
490,Revenue,CAHD,South - Commissioned Services,Fees & Charges Income - General,Avon Valley Care Home,-628.16, 31-May-2022
491,Revenue,CAHD,Central - Commissioned Services,Fees & Charges Income - General,Avon Valley Care Home,-613.40, 31-May-2022
492,Revenue,CAHD,South - Commissioned Services,Fees & Charges Income - General,Avon Valley Care Home,469.56, 03-May-2022
493,Revenue,CAHD,South - Commissioned Services,Permanent Residential,Avon Valley Care Home,3214.08, 31-May-2022
494,Revenue,CAHD,South - Commissioned Services,Permanent Residential,Avon Valley Care Home,3259.56, 03-May-2022
495,Revenue,CAHD,South - Commissioned Services,Permanent Residential,Avon Valley Care Home,3860.40, 31-May-2022
496,Revenue,CAHD,South - Commissioned Services,Permanent Residential,Avon Valley Care Home,3915.03, 03-May-2022
497,Revenue,CAHD,South - Commissioned Services,Permanent Residential,Avon Valley Care Home,4294.16, 31-May-2022
498,Revenue,CAHD,South - Commissioned Services,Permanent Residential,Avon Valley Care Home,4294.16, 31-May-2022
499,Revenue,CAHD,Central - Commissioned Services,Permanent Residential,Avon Valley Care Home,4337.52, 31-May-2022
500,Revenue,CAHD,South - Commissioned Services,Permanent Residential,Avon Valley Care Home,4337.52, 31-May-2022
501,Revenue,CAHD,South - Commissioned Services,Permanent Residential,Avon Valley Care Home,4337.52, 31-May-2022
502,Revenue,CAHD,South - S117,Permanent Residential,Avon Valley Care Home,4337.52, 31-May-2022
503,Revenue,CAHD,South - Commissioned Services,Permanent Residential,Avon Valley Care Home,4354.93, 03-May-2022
504,Revenue,CAHD,South - Commissioned Services,Permanent Residential,Avon Valley Care Home,4354.93, 03-May-2022
505,Revenue,CAHD,Central - Commissioned Services,Permanent Residential,Avon Valley Care Home,4398.90, 03-May-2022
506,Revenue,CAHD,South - Commissioned Services,Permanent Residential,Avon Valley Care Home,4398.90, 03-May-2022
507,Revenue,CAHD,South - Commissioned Services,Permanent Residential,Avon Valley Care Home,4398.90, 03-May-2022
508,Revenue,CAHD,South - S117,Permanent Residential,Avon Valley Care Home,4398.90, 03-May-2022
509,Revenue,CAHD,South - Commissioned Services,Permanent Residential,Avon Valley Care Home,4429.64, 31-May-2022
510,Revenue,CAHD,South - Commissioned Services,Permanent Residential,Avon Valley Care Home,4483.80, 31-May-2022
511,Revenue,CAHD,South - Commissioned Services,Permanent Residential,Avon Valley Care Home,4483.80, 31-May-2022
512,Revenue,CAHD,South - Commissioned Services,Permanent Residential,Avon Valley Care Home,4483.80, 31-May-2022
513,Revenue,CAHD,South - Commissioned Services,Permanent Residential,Avon Valley Care Home,4483.80, 31-May-2022
514,Revenue,CAHD,South - Commissioned Services,Permanent Residential,Avon Valley Care Home,4492.32, 03-May-2022
515,Revenue,CAHD,South - Commissioned Services,Permanent Residential,Avon Valley Care Home,4526.20, 31-May-2022
516,Revenue,CAHD,South - Commissioned Services,Permanent Residential,Avon Valley Care Home,4526.20, 31-May-2022
517,Revenue,CAHD,South - Commissioned Services,Permanent Residential,Avon Valley Care Home,4526.20, 31-May-2022
518,Revenue,CAHD,South - Commissioned Services,Permanent Residential,Avon Valley Care Home,4547.25, 03-May-2022
519,Revenue,CAHD,South - Commissioned Services,Permanent Residential,Avon Valley Care Home,4547.25, 03-May-2022
520,Revenue,CAHD,South - Commissioned Services,Permanent Residential,Avon Valley Care Home,4547.25, 03-May-2022
521,Revenue,CAHD,South - Commissioned Services,Permanent Residential,Avon Valley Care Home,4547.25, 03-May-2022
522,Revenue,CAHD,South - Commissioned Services,Permanent Residential,Avon Valley Care Home,4590.25, 03-May-2022
523,Revenue,CAHD,South - Commissioned Services,Permanent Residential,Avon Valley Care Home,4590.25, 03-May-2022
524,Revenue,CAHD,South - Commissioned Services,Permanent Residential,Avon Valley Care Home,4590.25, 03-May-2022
525,Revenue,CAHD,South - Commissioned Services,Permanent Residential,Avon Valley Care Home,9807.86, 31-May-2022
526,Revenue,CAHD,North - Community based support,Fees & Charges Income - General,Avonmere Care Home,-10587.02, 31-May-2022
527,Revenue,CAHD,North - Community based support,Permanent Residential,Avonmere Care Home,-2519.38, 31-May-2022
528,Revenue,CAHD,North - Community based support,Fees & Charges Income - General,Avonmere Care Home,-1354.76, 31-May-2022
529,Revenue,CAHD,North - Community based support,Fees & Charges Income - General,Avonmere Care Home,-1170.96, 31-May-2022
530,Revenue,CAHD,North - Community based support,Fees & Charges Income - General,Avonmere Care Home,-1170.96, 03-May-2022
531,Revenue,CAHD,North - Community based support,Fees & Charges Income - General,Avonmere Care Home,-1111.72, 31-May-2022
532,Revenue,CAHD,North - Community based support,Fees & Charges Income - General,Avonmere Care Home,-1111.72, 03-May-2022
533,Revenue,CAHD,North - Community based support,Fees & Charges Income - General,Avonmere Care Home,-1090.32, 31-May-2022
534,Revenue,CAHD,North - Community based support,Fees & Charges Income - General,Avonmere Care Home,-1090.32, 03-May-2022
535,Revenue,CAHD,North - Community based support,Fees & Charges Income - General,Avonmere Care Home,-1002.96, 31-May-2022
536,Revenue,CAHD,North - Community based support,Fees & Charges Income - General,Avonmere Care Home,-1002.96, 03-May-2022
537,Revenue,CAHD,North - Community based support,Fees & Charges Income - General,Avonmere Care Home,-627.80, 03-May-2022
538,Revenue,CAHD,North - Community based support,Fees & Charges Income - General,Avonmere Care Home,381.16, 31-May-2022
539,Revenue,CAHD,North - Community based support,Permanent Residential,Avonmere Care Home,3980.00, 31-May-2022
540,Revenue,CAHD,North - Community based support,Permanent Residential,Avonmere Care Home,4793.00, 31-May-2022
541,Revenue,CAHD,North - Community based support,Permanent Residential,Avonmere Care Home,4860.83, 03-May-2022
542,Revenue,CAHD,North - Community based support,Permanent Residential,Avonmere Care Home,4876.00, 31-May-2022
543,Revenue,CAHD,North - Community based support,Permanent Residential,Avonmere Care Home,4945.00, 03-May-2022
544,Revenue,CAHD,North - Community based support,Permanent Residential,Avonmere Care Home,4960.80, 31-May-2022
545,Revenue,CAHD,North - Community based support,Permanent Residential,Avonmere Care Home,5003.20, 31-May-2022
546,Revenue,CAHD,North - Community based support,Permanent Residential,Avonmere Care Home,5031.00, 03-May-2022
547,Revenue,CAHD,North - Community based support,Permanent Residential,Avonmere Care Home,5074.00, 03-May-2022
548,Revenue,CAHD,North - Community based support,Permanent Residential,Avonmere Care Home,5075.45, 03-May-2022
549,Revenue,CAHD,North - Community based support,Permanent Residential,Avonmere Care Home,15635.71, 31-May-2022
550,Revenue,CAHD,North - Community based support,Permanent Residential,Avonmere Care Home,28581.43, 31-May-2022
551,Revenue,CAHD,South - Commissioned Services,Fees & Charges Income - General,Badminton Place,-17802.41, 31-May-2022
552,Revenue,CAHD,North - Community based support,Fees & Charges Income - General,Badminton Place,-12301.12, 31-May-2022
553,Revenue,CAHD,Central - Commissioned Services,Fees & Charges Income - General,Badminton Place,-1612.77, 31-May-2022
554,Revenue,CAHD,North - Community based support,Fees & Charges Income - General,Badminton Place,-689.68, 31-May-2022
555,Revenue,CAHD,North - Community based support,Fees & Charges Income - General,Badminton Place,-689.68, 03-May-2022
556,Revenue,CAHD,South - Commissioned Services,Respite Planned - Nursing,Badminton Place,571.43, 31-May-2022
557,Revenue,CAHD,South Glos Users in South Glos Homes,Permanent Nursing,Badminton Place,750.40, 31-May-2022
558,Revenue,CAHD,South Glos Users in South Glos Homes,Permanent Nursing,Badminton Place,750.40, 31-May-2022
559,Revenue,CAHD,South Glos Users in South Glos Homes,Permanent Nursing,Badminton Place,750.40, 31-May-2022
560,Revenue,CAHD,South Glos Users in South Glos Homes,Permanent Nursing,Badminton Place,750.40, 31-May-2022
561,Revenue,CAHD,South Glos Users in South Glos Homes,Permanent Nursing,Badminton Place,750.40, 03-May-2022
562,Revenue,CAHD,South Glos Users in South Glos Homes,Permanent Nursing,Badminton Place,750.40, 03-May-2022
563,Revenue,CAHD,South Glos Users in South Glos Homes,Permanent Nursing,Badminton Place,750.40, 03-May-2022
564,Revenue,CAHD,North - Community based support,Permanent Nursing,Badminton Place,5156.16, 31-May-2022
565,Revenue,CAHD,North - Community based support,Permanent Nursing,Badminton Place,5229.12, 03-May-2022
566,Revenue,CAHD,Central - Commissioned Services,Respite Planned - Nursing,Badminton Place,5604.57, 31-May-2022
567,Revenue,CAHD,North - Community based support,Permanent Nursing,Badminton Place,5974.00, 31-May-2022
568,Revenue,CAHD,North - Community based support,Permanent Nursing,Badminton Place,6017.50, 03-May-2022
569,Revenue,CAHD,South Glos Users in South Glos Homes,Permanent Nursing,Badminton Place,6378.40, 03-May-2022
570,Revenue,CAHD,Central - Commissioned Services,Permanent Residential,Badminton Place,9064.29, 31-May-2022
571,Revenue,CAHD,Central - Commissioned Services,Permanent Nursing,Badminton Place,26088.57, 31-May-2022
572,Revenue,CAHD,North - Community based support,Permanent Residential,Badminton Place,29120.00, 31-May-2022
573,Revenue,CAHD,South - Commissioned Services,Permanent Residential,Badminton Place,42679.08, 31-May-2022
574,Revenue,CAHD,Early Years Inclusion Fund,Other Public Bodies,Baker Street Nursery & Pre-School,1300.00, 24-May-2022
575,Revenue,CAHD,Childrens - Safeguarding Board,Training Expenses,Barnardo Services Limited,1350.00, 26-May-2022
576,Revenue,CAHD,CSC - Vinney Green Secure Unit,Training Expenses,Barnsley College,1095.00, 17-May-2022
577,Revenue,CAHD,Pensions - Non DSG,Unfunded Annual Pension,Bath & North East Somerset Council,6796.20, 05-May-2022
578,Revenue,CAHD,Pensions - Non DSG,Unfunded Annual Pension,Bath & North East Somerset Council,101181.71, 19-May-2022
579,Revenue,CAHD,Independent Special Placements - Post 16,Other Private Contractors,Bath Road Priory,39936.69, 06-May-2022
580,Revenue,CAHD,Training - Adult Services,Training Expenses,Bawa Healthcare & Leisure,4444.59, 31-May-2022
581,Revenue,CAHD,South - Commissioned Services,Permanent Nursing,Beaufort Grange Care Home,-4926.34, 03-May-2022
582,Revenue,CAHD,South Glos Users in South Glos Homes,Permanent Nursing,Beaufort Grange Care Home,-1983.20, 03-May-2022
583,Revenue,CAHD,North - S117,Permanent Nursing,Beaufort Grange Care Home,-1928.57, 03-May-2022
584,Revenue,CAHD,North - Community based support,Fees & Charges Income - General,Beaufort Grange Care Home,-627.80, 03-May-2022
585,Revenue,CAHD,North - Community based support,Fees & Charges Income - General,Beaufort Grange Care Home,-627.80, 31-May-2022
586,Revenue,CAHD,Central - Commissioned Services,Fees & Charges Income - General,Beaufort Grange Care Home,-607.80, 03-May-2022
587,Revenue,CAHD,Central - Commissioned Services,Fees & Charges Income - General,Beaufort Grange Care Home,-607.80, 31-May-2022
588,Revenue,CAHD,North - Community based support,Fees & Charges Income - General,Beaufort Grange Care Home,-438.80, 03-May-2022
589,Revenue,CAHD,North - Community based support,Fees & Charges Income - General,Beaufort Grange Care Home,-438.80, 31-May-2022
590,Revenue,CAHD,South Glos Users in South Glos Homes,Permanent Nursing,Beaufort Grange Care Home,80.40, 31-May-2022
591,Revenue,CAHD,North - Community based support,Permanent Residential,Beaufort Grange Care Home,578.57, 03-May-2022
592,Revenue,CAHD,South - Commissioned Services,Fees & Charges Income - General,Beaufort Grange Care Home,678.78, 03-May-2022
593,Revenue,CAHD,South Glos Users in South Glos Homes,Permanent Nursing,Beaufort Grange Care Home,750.40, 03-May-2022
594,Revenue,CAHD,South Glos Users in South Glos Homes,Permanent Nursing,Beaufort Grange Care Home,750.40, 03-May-2022
595,Revenue,CAHD,South Glos Users in South Glos Homes,Permanent Nursing,Beaufort Grange Care Home,750.40, 03-May-2022
596,Revenue,CAHD,South Glos Users in South Glos Homes,Permanent Nursing,Beaufort Grange Care Home,750.40, 03-May-2022
597,Revenue,CAHD,South Glos Users in South Glos Homes,Permanent Nursing,Beaufort Grange Care Home,750.40, 03-May-2022
598,Revenue,CAHD,South Glos Users in South Glos Homes,Permanent Nursing,Beaufort Grange Care Home,750.40, 03-May-2022
599,Revenue,CAHD,South Glos Users in South Glos Homes,Permanent Nursing,Beaufort Grange Care Home,750.40, 03-May-2022
600,Revenue,CAHD,South Glos Users in South Glos Homes,Permanent Nursing,Beaufort Grange Care Home,750.40, 03-May-2022
601,Revenue,CAHD,South Glos Users in South Glos Homes,Permanent Nursing,Beaufort Grange Care Home,750.40, 03-May-2022
602,Revenue,CAHD,South Glos Users in South Glos Homes,Permanent Nursing,Beaufort Grange Care Home,750.40, 03-May-2022
603,Revenue,CAHD,South Glos Users in South Glos Homes,Permanent Nursing,Beaufort Grange Care Home,750.40, 03-May-2022
604,Revenue,CAHD,South Glos Users in South Glos Homes,Permanent Nursing,Beaufort Grange Care Home,750.40, 03-May-2022
605,Revenue,CAHD,South Glos Users in South Glos Homes,Permanent Nursing,Beaufort Grange Care Home,750.40, 03-May-2022
606,Revenue,CAHD,South Glos Users in South Glos Homes,Permanent Nursing,Beaufort Grange Care Home,750.40, 03-May-2022
607,Revenue,CAHD,South Glos Users in South Glos Homes,Permanent Nursing,Beaufort Grange Care Home,750.40, 03-May-2022
608,Revenue,CAHD,South Glos Users in South Glos Homes,Permanent Nursing,Beaufort Grange Care Home,750.40, 03-May-2022
609,Revenue,CAHD,South Glos Users in South Glos Homes,Permanent Nursing,Beaufort Grange Care Home,750.40, 03-May-2022
610,Revenue,CAHD,South Glos Users in South Glos Homes,Permanent Nursing,Beaufort Grange Care Home,750.40, 03-May-2022
611,Revenue,CAHD,South Glos Users in South Glos Homes,Permanent Nursing,Beaufort Grange Care Home,750.40, 03-May-2022
612,Revenue,CAHD,South Glos Users in South Glos Homes,Permanent Nursing,Beaufort Grange Care Home,750.40, 03-May-2022
613,Revenue,CAHD,South Glos Users in South Glos Homes,Permanent Nursing,Beaufort Grange Care Home,750.40, 03-May-2022
614,Revenue,CAHD,South Glos Users in South Glos Homes,Permanent Nursing,Beaufort Grange Care Home,750.40, 03-May-2022
615,Revenue,CAHD,South Glos Users in South Glos Homes,Permanent Nursing,Beaufort Grange Care Home,750.40, 03-May-2022
616,Revenue,CAHD,South Glos Users in South Glos Homes,Permanent Nursing,Beaufort Grange Care Home,750.40, 03-May-2022
617,Revenue,CAHD,South Glos Users in South Glos Homes,Permanent Nursing,Beaufort Grange Care Home,750.40, 03-May-2022
618,Revenue,CAHD,South Glos Users in South Glos Homes,Permanent Nursing,Beaufort Grange Care Home,750.40, 03-May-2022
619,Revenue,CAHD,South Glos Users in South Glos Homes,Permanent Nursing,Beaufort Grange Care Home,750.40, 03-May-2022
620,Revenue,CAHD,South Glos Users in South Glos Homes,Permanent Nursing,Beaufort Grange Care Home,750.40, 03-May-2022
621,Revenue,CAHD,South Glos Users in South Glos Homes,Permanent Nursing,Beaufort Grange Care Home,750.40, 03-May-2022
622,Revenue,CAHD,South Glos Users in South Glos Homes,Permanent Nursing,Beaufort Grange Care Home,750.40, 03-May-2022
623,Revenue,CAHD,South Glos Users in South Glos Homes,Permanent Nursing,Beaufort Grange Care Home,750.40, 03-May-2022
624,Revenue,CAHD,South Glos Users in South Glos Homes,Permanent Nursing,Beaufort Grange Care Home,750.40, 03-May-2022
625,Revenue,CAHD,South Glos Users in South Glos Homes,Permanent Nursing,Beaufort Grange Care Home,750.40, 03-May-2022
626,Revenue,CAHD,South Glos Users in South Glos Homes,Permanent Nursing,Beaufort Grange Care Home,750.40, 03-May-2022
627,Revenue,CAHD,South Glos Users in South Glos Homes,Permanent Nursing,Beaufort Grange Care Home,750.40, 31-May-2022
628,Revenue,CAHD,South Glos Users in South Glos Homes,Permanent Nursing,Beaufort Grange Care Home,750.40, 31-May-2022
629,Revenue,CAHD,South Glos Users in South Glos Homes,Permanent Nursing,Beaufort Grange Care Home,750.40, 31-May-2022
630,Revenue,CAHD,South Glos Users in South Glos Homes,Permanent Nursing,Beaufort Grange Care Home,750.40, 31-May-2022
631,Revenue,CAHD,South Glos Users in South Glos Homes,Permanent Nursing,Beaufort Grange Care Home,750.40, 31-May-2022
632,Revenue,CAHD,South Glos Users in South Glos Homes,Permanent Nursing,Beaufort Grange Care Home,750.40, 31-May-2022
633,Revenue,CAHD,South Glos Users in South Glos Homes,Permanent Nursing,Beaufort Grange Care Home,750.40, 31-May-2022
634,Revenue,CAHD,South Glos Users in South Glos Homes,Permanent Nursing,Beaufort Grange Care Home,750.40, 31-May-2022
635,Revenue,CAHD,South Glos Users in South Glos Homes,Permanent Nursing,Beaufort Grange Care Home,750.40, 31-May-2022
636,Revenue,CAHD,South Glos Users in South Glos Homes,Permanent Nursing,Beaufort Grange Care Home,750.40, 31-May-2022
637,Revenue,CAHD,South Glos Users in South Glos Homes,Permanent Nursing,Beaufort Grange Care Home,750.40, 31-May-2022
638,Revenue,CAHD,South Glos Users in South Glos Homes,Permanent Nursing,Beaufort Grange Care Home,750.40, 31-May-2022
639,Revenue,CAHD,South Glos Users in South Glos Homes,Permanent Nursing,Beaufort Grange Care Home,750.40, 31-May-2022
640,Revenue,CAHD,South Glos Users in South Glos Homes,Permanent Nursing,Beaufort Grange Care Home,750.40, 31-May-2022
641,Revenue,CAHD,South Glos Users in South Glos Homes,Permanent Nursing,Beaufort Grange Care Home,750.40, 31-May-2022
642,Revenue,CAHD,South Glos Users in South Glos Homes,Permanent Nursing,Beaufort Grange Care Home,750.40, 31-May-2022
643,Revenue,CAHD,South Glos Users in South Glos Homes,Permanent Nursing,Beaufort Grange Care Home,750.40, 31-May-2022
644,Revenue,CAHD,South Glos Users in South Glos Homes,Permanent Nursing,Beaufort Grange Care Home,750.40, 31-May-2022
645,Revenue,CAHD,South Glos Users in South Glos Homes,Permanent Nursing,Beaufort Grange Care Home,750.40, 31-May-2022
646,Revenue,CAHD,South Glos Users in South Glos Homes,Permanent Nursing,Beaufort Grange Care Home,750.40, 31-May-2022
647,Revenue,CAHD,South Glos Users in South Glos Homes,Permanent Nursing,Beaufort Grange Care Home,750.40, 31-May-2022
648,Revenue,CAHD,South Glos Users in South Glos Homes,Permanent Nursing,Beaufort Grange Care Home,750.40, 31-May-2022
649,Revenue,CAHD,South Glos Users in South Glos Homes,Permanent Nursing,Beaufort Grange Care Home,750.40, 31-May-2022
650,Revenue,CAHD,South Glos Users in South Glos Homes,Permanent Nursing,Beaufort Grange Care Home,750.40, 31-May-2022
651,Revenue,CAHD,South Glos Users in South Glos Homes,Permanent Nursing,Beaufort Grange Care Home,750.40, 31-May-2022
652,Revenue,CAHD,South Glos Users in South Glos Homes,Permanent Nursing,Beaufort Grange Care Home,750.40, 31-May-2022
653,Revenue,CAHD,South Glos Users in South Glos Homes,Permanent Nursing,Beaufort Grange Care Home,750.40, 31-May-2022
654,Revenue,CAHD,South Glos Users in South Glos Homes,Permanent Nursing,Beaufort Grange Care Home,750.40, 31-May-2022
655,Revenue,CAHD,South Glos Users in South Glos Homes,Permanent Nursing,Beaufort Grange Care Home,750.40, 31-May-2022
656,Revenue,CAHD,South Glos Users in South Glos Homes,Permanent Nursing,Beaufort Grange Care Home,750.40, 31-May-2022
657,Revenue,CAHD,South Glos Users in South Glos Homes,Permanent Nursing,Beaufort Grange Care Home,750.40, 31-May-2022
658,Revenue,CAHD,South Glos Users in South Glos Homes,Permanent Nursing,Beaufort Grange Care Home,750.40, 31-May-2022
659,Revenue,CAHD,South Glos Users in South Glos Homes,Permanent Nursing,Beaufort Grange Care Home,750.40, 31-May-2022
660,Revenue,CAHD,South Glos Users in South Glos Homes,Permanent Nursing,Beaufort Grange Care Home,750.40, 31-May-2022
661,Revenue,CAHD,South Glos Users in South Glos Homes,Permanent Nursing,Beaufort Grange Care Home,1655.27, 03-May-2022
662,Revenue,CAHD,Central - Commissioned Services,Respite Planned - Nursing,Beaufort Grange Care Home,4125.00, 31-May-2022
663,Revenue,CAHD,North - Community based support,Permanent Nursing,Beaufort Grange Care Home,4369.60, 03-May-2022
664,Revenue,CAHD,North - Community based support,Permanent Nursing,Beaufort Grange Care Home,4369.60, 31-May-2022
665,Revenue,CAHD,Central - Commissioned Services,Permanent Nursing,Beaufort Grange Care Home,5400.00, 03-May-2022
666,Revenue,CAHD,Central - Commissioned Services,Permanent Nursing,Beaufort Grange Care Home,5400.00, 31-May-2022
667,Revenue,CAHD,Central - Commissioned Services,Permanent Nursing,Beaufort Grange Care Home,5500.00, 03-May-2022
668,Revenue,CAHD,Central - Commissioned Services,Permanent Nursing,Beaufort Grange Care Home,5500.00, 03-May-2022
669,Revenue,CAHD,Central - Commissioned Services,Permanent Nursing,Beaufort Grange Care Home,5500.00, 31-May-2022
670,Revenue,CAHD,Central - Commissioned Services,Permanent Nursing,Beaufort Grange Care Home,5500.00, 31-May-2022
671,Revenue,CAHD,Central Team - S117,Permanent Nursing,Beaufort Grange Care Home,6600.00, 03-May-2022
672,Revenue,CAHD,Central Team - S117,Permanent Nursing,Beaufort Grange Care Home,6600.00, 31-May-2022
673,Revenue,CAHD,Central - Commissioned Services,Permanent Residential,Beaufort Grange Care Home,7200.00, 03-May-2022
674,Revenue,CAHD,Central - Commissioned Services,Permanent Residential,Beaufort Grange Care Home,7200.00, 31-May-2022
675,Revenue,CAHD,North - Community based support,Permanent Nursing,Beaufort Grange Care Home,10620.00, 03-May-2022
676,Revenue,CAHD,North - Community based support,Permanent Nursing,Beaufort Grange Care Home,10620.00, 31-May-2022
677,Revenue,CAHD,Central - Commissioned Services,Permanent Nursing,Beaufort Grange Care Home,11684.00, 03-May-2022
678,Revenue,CAHD,Central - Commissioned Services,Permanent Nursing,Beaufort Grange Care Home,11684.00, 31-May-2022
679,Revenue,CAHD,South - Commissioned Services,Permanent Nursing,Beaufort Grange Care Home,23542.86, 31-May-2022
680,Revenue,CAHD,Central - Commissioned Services,Fees & Charges Income - General,Beaufort House,-3906.45, 03-May-2022
681,Revenue,CAHD,Central - Commissioned Services,Fees & Charges Income - General,Beaufort House,-1448.48, 03-May-2022
682,Revenue,CAHD,Central - Commissioned Services,Fees & Charges Income - General,Beaufort House,-1448.48, 31-May-2022
683,Revenue,CAHD,North - Community based support,Fees & Charges Income - General,Beaufort House,-1166.52, 03-May-2022
684,Revenue,CAHD,North - Community based support,Fees & Charges Income - General,Beaufort House,-1166.52, 31-May-2022
685,Revenue,CAHD,Central - Commissioned Services,Fees & Charges Income - General,Beaufort House,-997.32, 31-May-2022
686,Revenue,CAHD,Central - Commissioned Services,Fees & Charges Income - General,Beaufort House,-938.32, 03-May-2022
687,Revenue,CAHD,Central - Commissioned Services,Fees & Charges Income - General,Beaufort House,-938.32, 31-May-2022
688,Revenue,CAHD,Central - Commissioned Services,Fees & Charges Income - General,Beaufort House,-821.12, 03-May-2022
689,Revenue,CAHD,Central - Commissioned Services,Fees & Charges Income - General,Beaufort House,-821.12, 31-May-2022
690,Revenue,CAHD,Central - Commissioned Services,Fees & Charges Income - General,Beaufort House,-751.32, 03-May-2022
691,Revenue,CAHD,Central - Commissioned Services,Fees & Charges Income - General,Beaufort House,-751.32, 31-May-2022
692,Revenue,CAHD,Central - Commissioned Services,Fees & Charges Income - General,Beaufort House,-731.44, 03-May-2022
693,Revenue,CAHD,Central - Commissioned Services,Fees & Charges Income - General,Beaufort House,-731.44, 31-May-2022
694,Revenue,CAHD,North - Community based support,Fees & Charges Income - General,Beaufort House,-663.80, 03-May-2022
695,Revenue,CAHD,North - Community based support,Fees & Charges Income - General,Beaufort House,-663.80, 31-May-2022
696,Revenue,CAHD,Central - Commissioned Services,Fees & Charges Income - General,Beaufort House,-627.80, 03-May-2022
697,Revenue,CAHD,North - Community based support,Fees & Charges Income - General,Beaufort House,-627.80, 03-May-2022
698,Revenue,CAHD,Central - Commissioned Services,Fees & Charges Income - General,Beaufort House,-627.80, 31-May-2022
699,Revenue,CAHD,North - Community based support,Fees & Charges Income - General,Beaufort House,-627.80, 31-May-2022
700,Revenue,CAHD,North - Community based support,Permanent Residential,Beaufort House,2986.32, 31-May-2022
701,Revenue,CAHD,North - Community based support,Permanent Residential,Beaufort House,3028.58, 03-May-2022
702,Revenue,CAHD,Central - Commissioned Services,Permanent Residential,Beaufort House,3070.00, 31-May-2022
703,Revenue,CAHD,Central - Commissioned Services,Permanent Residential,Beaufort House,3113.44, 03-May-2022
704,Revenue,CAHD,Central - Commissioned Services,Permanent Residential,Beaufort House,3171.36, 31-May-2022
705,Revenue,CAHD,Central - Commissioned Services,Permanent Residential,Beaufort House,3216.24, 03-May-2022
706,Revenue,CAHD,Central - Commissioned Services,Permanent Residential,Beaufort House,3392.00, 31-May-2022
707,Revenue,CAHD,Central - Commissioned Services,Permanent Residential,Beaufort House,3440.00, 03-May-2022
708,Revenue,CAHD,Central - Commissioned Services,Permanent Residential,Beaufort House,3582.80, 31-May-2022
709,Revenue,CAHD,Central - Commissioned Services,Permanent Residential,Beaufort House,3633.50, 03-May-2022
710,Revenue,CAHD,Central - Commissioned Services,Permanent Residential,Beaufort House,3816.00, 31-May-2022
711,Revenue,CAHD,Central - Commissioned Services,Permanent Residential,Beaufort House,3816.00, 31-May-2022
712,Revenue,CAHD,Central - Commissioned Services,Permanent Residential,Beaufort House,3870.00, 03-May-2022
713,Revenue,CAHD,Central - Commissioned Services,Permanent Residential,Beaufort House,3870.00, 03-May-2022
714,Revenue,CAHD,Central - Commissioned Services,Permanent Residential,Beaufort House,4028.00, 31-May-2022
715,Revenue,CAHD,Central - Commissioned Services,Permanent Residential,Beaufort House,4085.00, 03-May-2022
716,Revenue,CAHD,Central - Commissioned Services,Permanent Residential,Beaufort House,4240.00, 31-May-2022
717,Revenue,CAHD,Central - Commissioned Services,Permanent Residential,Beaufort House,4240.00, 31-May-2022
718,Revenue,CAHD,North - Community based support,Permanent Residential,Beaufort House,4240.00, 31-May-2022
719,Revenue,CAHD,North - Community based support,Permanent Residential,Beaufort House,4240.00, 31-May-2022
720,Revenue,CAHD,Central - Commissioned Services,Permanent Residential,Beaufort House,4300.00, 03-May-2022
721,Revenue,CAHD,Central - Commissioned Services,Permanent Residential,Beaufort House,4300.00, 03-May-2022
722,Revenue,CAHD,North - Community based support,Permanent Residential,Beaufort House,4300.00, 03-May-2022
723,Revenue,CAHD,North - Community based support,Permanent Residential,Beaufort House,4300.00, 03-May-2022
724,Revenue,CAHD,South - Commissioned Services,Respite Planned - Residential,Beaufort House,5185.71, 03-May-2022
725,Revenue,CAHD,Central - Commissioned Services,Respite Planned - Nursing,Beaufort House,10528.57, 31-May-2022
726,Revenue,CAHD,North - Community based support,Permanent Residential,Beech House,-25600.00, 03-May-2022
727,Revenue,CAHD,North - Community based support,Fees & Charges Income - General,Beech House,-6381.19, 31-May-2022
728,Revenue,CAHD,North - Community based support,Fees & Charges Income - General,Beech House,-6327.23, 31-May-2022
729,Revenue,CAHD,North - Community based support,Fees & Charges Income - General,Beech House,-4146.27, 31-May-2022
730,Revenue,CAHD,North - Community based support,Fees & Charges Income - General,Beech House,-1856.44, 03-May-2022
731,Revenue,CAHD,North - Community based support,Fees & Charges Income - General,Beech House,-1856.44, 31-May-2022
732,Revenue,CAHD,South Glos Users in South Glos Homes,Permanent Nursing,Beech House,-1608.00, 03-May-2022
733,Revenue,CAHD,North - Community based support,Fees & Charges Income - General,Beech House,-1039.92, 03-May-2022
734,Revenue,CAHD,North - Community based support,Fees & Charges Income - General,Beech House,-1039.92, 31-May-2022
735,Revenue,CAHD,North - Community based support,Fees & Charges Income - General,Beech House,-840.16, 03-May-2022
736,Revenue,CAHD,North - Community based support,Fees & Charges Income - General,Beech House,-840.16, 31-May-2022
737,Revenue,CAHD,South - Commissioned Services,Fees & Charges Income - General,Beech House,-789.36, 03-May-2022
738,Revenue,CAHD,South - Commissioned Services,Fees & Charges Income - General,Beech House,-789.36, 31-May-2022
739,Revenue,CAHD,North - Community based support,Permanent Nursing,Beech House,-670.00, 31-May-2022
740,Revenue,CAHD,North - Community based support,Fees & Charges Income - General,Beech House,-663.80, 03-May-2022
741,Revenue,CAHD,North - Community based support,Fees & Charges Income - General,Beech House,-629.00, 03-May-2022
742,Revenue,CAHD,North - Community based support,Fees & Charges Income - General,Beech House,-629.00, 31-May-2022
743,Revenue,CAHD,North - Community based support,Fees & Charges Income - General,Beech House,-627.80, 03-May-2022
744,Revenue,CAHD,North - Community based support,Fees & Charges Income - General,Beech House,-627.80, 31-May-2022
745,Revenue,CAHD,South Glos Users in South Glos Homes,Permanent Nursing,Beech House,80.40, 31-May-2022
746,Revenue,CAHD,South Glos Users in South Glos Homes,Permanent Nursing,Beech House,750.40, 03-May-2022
747,Revenue,CAHD,South Glos Users in South Glos Homes,Permanent Nursing,Beech House,750.40, 03-May-2022
748,Revenue,CAHD,South Glos Users in South Glos Homes,Permanent Nursing,Beech House,750.40, 03-May-2022
749,Revenue,CAHD,South Glos Users in South Glos Homes,Permanent Nursing,Beech House,750.40, 03-May-2022
750,Revenue,CAHD,South Glos Users in South Glos Homes,Permanent Nursing,Beech House,750.40, 03-May-2022
751,Revenue,CAHD,South Glos Users in South Glos Homes,Permanent Nursing,Beech House,750.40, 03-May-2022
752,Revenue,CAHD,South Glos Users in South Glos Homes,Permanent Nursing,Beech House,750.40, 03-May-2022
753,Revenue,CAHD,South Glos Users in South Glos Homes,Permanent Nursing,Beech House,750.40, 03-May-2022
754,Revenue,CAHD,South Glos Users in South Glos Homes,Permanent Nursing,Beech House,750.40, 03-May-2022
755,Revenue,CAHD,South Glos Users in South Glos Homes,Permanent Nursing,Beech House,750.40, 03-May-2022
756,Revenue,CAHD,South Glos Users in South Glos Homes,Permanent Nursing,Beech House,750.40, 03-May-2022
757,Revenue,CAHD,South Glos Users in South Glos Homes,Permanent Nursing,Beech House,750.40, 03-May-2022
758,Revenue,CAHD,South Glos Users in South Glos Homes,Permanent Nursing,Beech House,750.40, 03-May-2022
759,Revenue,CAHD,South Glos Users in South Glos Homes,Permanent Nursing,Beech House,750.40, 03-May-2022
760,Revenue,CAHD,South Glos Users in South Glos Homes,Permanent Nursing,Beech House,750.40, 03-May-2022
761,Revenue,CAHD,South Glos Users in South Glos Homes,Permanent Nursing,Beech House,750.40, 03-May-2022
762,Revenue,CAHD,South Glos Users in South Glos Homes,Permanent Nursing,Beech House,750.40, 03-May-2022
763,Revenue,CAHD,South Glos Users in South Glos Homes,Permanent Nursing,Beech House,750.40, 31-May-2022
764,Revenue,CAHD,South Glos Users in South Glos Homes,Permanent Nursing,Beech House,750.40, 31-May-2022
765,Revenue,CAHD,South Glos Users in South Glos Homes,Permanent Nursing,Beech House,750.40, 31-May-2022
766,Revenue,CAHD,South Glos Users in South Glos Homes,Permanent Nursing,Beech House,750.40, 31-May-2022
767,Revenue,CAHD,South Glos Users in South Glos Homes,Permanent Nursing,Beech House,750.40, 31-May-2022
768,Revenue,CAHD,South Glos Users in South Glos Homes,Permanent Nursing,Beech House,750.40, 31-May-2022
769,Revenue,CAHD,South Glos Users in South Glos Homes,Permanent Nursing,Beech House,750.40, 31-May-2022
770,Revenue,CAHD,South Glos Users in South Glos Homes,Permanent Nursing,Beech House,750.40, 31-May-2022
771,Revenue,CAHD,South Glos Users in South Glos Homes,Permanent Nursing,Beech House,750.40, 31-May-2022
772,Revenue,CAHD,South Glos Users in South Glos Homes,Permanent Nursing,Beech House,750.40, 31-May-2022
773,Revenue,CAHD,South Glos Users in South Glos Homes,Permanent Nursing,Beech House,750.40, 31-May-2022
774,Revenue,CAHD,South Glos Users in South Glos Homes,Permanent Nursing,Beech House,750.40, 31-May-2022
775,Revenue,CAHD,South Glos Users in South Glos Homes,Permanent Nursing,Beech House,750.40, 31-May-2022
776,Revenue,CAHD,South Glos Users in South Glos Homes,Permanent Nursing,Beech House,750.40, 31-May-2022
777,Revenue,CAHD,South Glos Users in South Glos Homes,Permanent Nursing,Beech House,750.40, 31-May-2022
778,Revenue,CAHD,South Glos Users in South Glos Homes,Permanent Nursing,Beech House,750.40, 31-May-2022
779,Revenue,CAHD,South Glos Users in South Glos Homes,Permanent Nursing,Beech House,750.40, 31-May-2022
780,Revenue,CAHD,South Glos Users in South Glos Homes,Permanent Nursing,Beech House,750.40, 31-May-2022
781,Revenue,CAHD,North - Community based support,Permanent Nursing,Beech House,750.40, 31-May-2022
782,Revenue,CAHD,South Glos Users in South Glos Homes,Permanent Nursing,Beech House,1661.60, 03-May-2022
783,Revenue,CAHD,North - Community based support,Permanent Nursing,Beech House,4641.16, 31-May-2022
784,Revenue,CAHD,North - Community based support,Permanent Residential,Beech House,4664.00, 31-May-2022
785,Revenue,CAHD,North - Community based support,Permanent Nursing,Beech House,4664.00, 31-May-2022
786,Revenue,CAHD,North - Community based support,Permanent Nursing,Beech House,4671.56, 31-May-2022
787,Revenue,CAHD,North - Community based support,Permanent Nursing,Beech House,4706.84, 03-May-2022
788,Revenue,CAHD,North - Community based support,Permanent Residential,Beech House,4727.88, 31-May-2022
789,Revenue,CAHD,North - Community based support,Permanent Residential,Beech House,4730.00, 03-May-2022
790,Revenue,CAHD,North - Community based support,Permanent Nursing,Beech House,4730.00, 03-May-2022
791,Revenue,CAHD,North - Community based support,Permanent Nursing,Beech House,4737.67, 03-May-2022
792,Revenue,CAHD,South - Commissioned Services,Permanent Residential,Beech House,4748.80, 31-May-2022
793,Revenue,CAHD,North - Community based support,Permanent Residential,Beech House,4748.80, 31-May-2022
794,Revenue,CAHD,North - Community based support,Permanent Residential,Beech House,4748.80, 31-May-2022
795,Revenue,CAHD,North - Community based support,Permanent Residential,Beech House,4748.80, 31-May-2022
796,Revenue,CAHD,North - Community based support,Permanent Residential,Beech House,4794.78, 03-May-2022
797,Revenue,CAHD,South - Commissioned Services,Permanent Residential,Beech House,4816.00, 03-May-2022
798,Revenue,CAHD,North - Community based support,Permanent Residential,Beech House,4816.00, 03-May-2022
799,Revenue,CAHD,North - Community based support,Permanent Residential,Beech House,4816.00, 03-May-2022
800,Revenue,CAHD,North - Community based support,Permanent Residential,Beech House,4816.00, 03-May-2022
801,Revenue,CAHD,North - Community based support,Permanent Nursing,Beech House,6110.40, 03-May-2022
802,Revenue,CAHD,North - Community based support,Permanent Nursing,Beech House,6164.00, 03-May-2022
803,Revenue,CAHD,North - Community based support,Permanent Nursing,Beech House,18640.00, 31-May-2022
804,Revenue,CAHD,North - Community based support,Fees & Charges Income - General,Beech House,25370.74, 03-May-2022
805,Revenue,CAHD,South Glos Users in South Glos Homes,Permanent Nursing,Beechwood Care Home,1122.40, 03-May-2022
806,Revenue,CAHD,South Glos Users in South Glos Homes,Permanent Nursing,Beechwood Care Home,1122.40, 31-May-2022
807,Revenue,CAHD,18-25 Year Olds,Permanent Residential,Beechwood Court Ltd,14491.31, 26-May-2022
808,Revenue,CAHD,18-25 Year Olds,Permanent Residential,Beechwood Court Ltd,20867.62, 26-May-2022
809,Revenue,CAHD,Central - Commissioned Services,Fees & Charges Income - General,Begbrook House Nursing Home,-2050.92, 03-May-2022
810,Revenue,CAHD,South - Commissioned Services,Fees & Charges Income - General,Begbrook House Nursing Home,-1081.52, 03-May-2022
811,Revenue,CAHD,South - Commissioned Services,Fees & Charges Income - General,Begbrook House Nursing Home,-1081.52, 31-May-2022
812,Revenue,CAHD,South - Commissioned Services,Fees & Charges Income - General,Begbrook House Nursing Home,-895.20, 03-May-2022
813,Revenue,CAHD,South - Commissioned Services,Fees & Charges Income - General,Begbrook House Nursing Home,-895.20, 31-May-2022
814,Revenue,CAHD,Central - Commissioned Services,Fees & Charges Income - General,Begbrook House Nursing Home,-643.04, 31-May-2022
815,Revenue,CAHD,North - Community based support,Fees & Charges Income - General,Begbrook House Nursing Home,-627.80, 03-May-2022
816,Revenue,CAHD,North - Community based support,Fees & Charges Income - General,Begbrook House Nursing Home,-627.80, 31-May-2022
817,Revenue,CAHD,North - Community based support,Permanent Nursing,Begbrook House Nursing Home,3234.72, 03-May-2022
818,Revenue,CAHD,North - Community based support,Permanent Nursing,Begbrook House Nursing Home,3234.72, 31-May-2022
819,Revenue,CAHD,Central - Commissioned Services,Permanent Nursing,Begbrook House Nursing Home,3400.00, 03-May-2022
820,Revenue,CAHD,South - Commissioned Services,Permanent Residential,Begbrook House Nursing Home,3400.00, 03-May-2022
821,Revenue,CAHD,Central - Commissioned Services,Permanent Nursing,Begbrook House Nursing Home,3400.00, 31-May-2022
822,Revenue,CAHD,South - Commissioned Services,Permanent Residential,Begbrook House Nursing Home,3400.00, 31-May-2022
823,Revenue,CAHD,South - Commissioned Services,Permanent Nursing,Begbrook House Nursing Home,3593.88, 03-May-2022
824,Revenue,CAHD,South - Commissioned Services,Permanent Nursing,Begbrook House Nursing Home,3593.88, 31-May-2022
825,Revenue,CAHD,Independent Special Placements - Pre 16,Other Private Contractors,Belgrave School,6932.00, 12-May-2022
826,Revenue,CAHD,Independent Special Placements - Pre 16,Other Private Contractors,Belgrave School,8919.00, 12-May-2022
827,Revenue,CAHD,South - S117,Permanent Residential,Bidna House,3774.24, 03-May-2022
828,Revenue,CAHD,South - S117,Permanent Residential,Bidna House,3774.24, 31-May-2022
829,Revenue,CAHD,Placements OLA Special Schools and RB,Other L.A.s - General,Blaise High School,792.40, 20-May-2022
830,Revenue,CAHD,Placements OLA Special Schools and RB,Other L.A.s - General,Blaise High School,792.40, 20-May-2022
831,Revenue,CAHD,Statemented Support Payments to OLAs,Other L.A.s - General,Blaise High School,907.83, 20-May-2022
832,Revenue,CAHD,North - Community based support,Other Small Contracts,Blakehill Healthcare Ltd,4579.08, 03-May-2022
833,Revenue,CAHD,North - Community based support,Other Small Contracts,Blakehill Healthcare Ltd,4579.08, 06-May-2022
834,Revenue,CAHD,North - Community based support,Other Small Contracts,Blakehill Healthcare Ltd,4579.08, 12-May-2022
835,Revenue,CAHD,North - Community based support,Other Small Contracts,Blakehill Healthcare Ltd,4579.08, 18-May-2022
836,Revenue,CAHD,North - Community based support,Other Small Contracts,Blakehill Healthcare Ltd,4579.08, 26-May-2022
837,Revenue,CAHD,North - Community based support,Other Small Contracts,Blakehill Healthcare Ltd,4579.08, 26-May-2022
838,Revenue,CAHD,South - Commissioned Services,Other Small Contracts,Blakehill Healthcare Ltd,4720.99, 03-May-2022
839,Revenue,CAHD,South - Commissioned Services,Other Small Contracts,Blakehill Healthcare Ltd,4720.99, 06-May-2022
840,Revenue,CAHD,South - Commissioned Services,Other Small Contracts,Blakehill Healthcare Ltd,4720.99, 12-May-2022
841,Revenue,CAHD,South - Commissioned Services,Other Small Contracts,Blakehill Healthcare Ltd,4720.99, 18-May-2022
842,Revenue,CAHD,South - Commissioned Services,Other Small Contracts,Blakehill Healthcare Ltd,4720.99, 26-May-2022
843,Revenue,CAHD,South - Commissioned Services,Other Small Contracts,Blakehill Healthcare Ltd,4720.99, 26-May-2022
844,Revenue,CAHD,Central - Commissioned Services,Other Small Contracts,Blakehill Healthcare Ltd,6229.27, 03-May-2022
845,Revenue,CAHD,Central - Commissioned Services,Other Small Contracts,Blakehill Healthcare Ltd,6229.27, 06-May-2022
846,Revenue,CAHD,Central - Commissioned Services,Other Small Contracts,Blakehill Healthcare Ltd,6229.27, 12-May-2022
847,Revenue,CAHD,Central - Commissioned Services,Other Small Contracts,Blakehill Healthcare Ltd,6229.27, 18-May-2022
848,Revenue,CAHD,Central - Commissioned Services,Other Small Contracts,Blakehill Healthcare Ltd,6229.27, 26-May-2022
849,Revenue,CAHD,Central - Commissioned Services,Other Small Contracts,Blakehill Healthcare Ltd,6229.27, 26-May-2022
850,Revenue,CAHD,South - Commissioned Services,Fees & Charges Income - General,Blossom Fields Nursing Home,-4705.40, 31-May-2022
851,Revenue,CAHD,North - Community based support,Fees & Charges Income - General,Blossom Fields Nursing Home,-3181.56, 03-May-2022
852,Revenue,CAHD,North - Community based support,Fees & Charges Income - General,Blossom Fields Nursing Home,-3152.71, 31-May-2022
853,Revenue,CAHD,South Glos Users in South Glos Homes,Permanent Nursing,Blossom Fields Nursing Home,-1876.00, 31-May-2022
854,Revenue,CAHD,North - Community based support,Fees & Charges Income - General,Blossom Fields Nursing Home,-1665.84, 31-May-2022
855,Revenue,CAHD,South - Commissioned Services,Fees & Charges Income - General,Blossom Fields Nursing Home,-1393.55, 03-May-2022
856,Revenue,CAHD,North - Community based support,Fees & Charges Income - General,Blossom Fields Nursing Home,-939.56, 31-May-2022
857,Revenue,CAHD,North - Community based support,Fees & Charges Income - General,Blossom Fields Nursing Home,-939.56, 03-May-2022
858,Revenue,CAHD,South - Commissioned Services,Fees & Charges Income - General,Blossom Fields Nursing Home,-847.92, 03-May-2022
859,Revenue,CAHD,South Glos Users in South Glos Homes,Permanent Nursing,Blossom Fields Nursing Home,-830.80, 03-May-2022
860,Revenue,CAHD,South - Commissioned Services,Fees & Charges Income - General,Blossom Fields Nursing Home,-750.52, 31-May-2022
861,Revenue,CAHD,South - Commissioned Services,Fees & Charges Income - General,Blossom Fields Nursing Home,-750.52, 03-May-2022
862,Revenue,CAHD,North - Community based support,Fees & Charges Income - General,Blossom Fields Nursing Home,-677.60, 31-May-2022
863,Revenue,CAHD,North - Community based support,Fees & Charges Income - General,Blossom Fields Nursing Home,-677.60, 03-May-2022
864,Revenue,CAHD,North - Community based support,Fees & Charges Income - General,Blossom Fields Nursing Home,-663.80, 31-May-2022
865,Revenue,CAHD,North - Community based support,Fees & Charges Income - General,Blossom Fields Nursing Home,-663.80, 03-May-2022
866,Revenue,CAHD,South - Commissioned Services,Fees & Charges Income - General,Blossom Fields Nursing Home,-627.80, 31-May-2022
867,Revenue,CAHD,North - Community based support,Fees & Charges Income - General,Blossom Fields Nursing Home,-627.80, 31-May-2022
868,Revenue,CAHD,North - Community based support,Fees & Charges Income - General,Blossom Fields Nursing Home,-627.80, 03-May-2022
869,Revenue,CAHD,South Glos Users in South Glos Homes,Permanent Nursing,Blossom Fields Nursing Home,80.40, 03-May-2022
870,Revenue,CAHD,North - Community based support,Respite Planned - Nursing,Blossom Fields Nursing Home,157.14, 03-May-2022
871,Revenue,CAHD,South Glos Users in South Glos Homes,Permanent Nursing,Blossom Fields Nursing Home,294.80, 03-May-2022
872,Revenue,CAHD,South Glos Users in South Glos Homes,Permanent Nursing,Blossom Fields Nursing Home,750.40, 31-May-2022
873,Revenue,CAHD,South Glos Users in South Glos Homes,Permanent Nursing,Blossom Fields Nursing Home,750.40, 31-May-2022
874,Revenue,CAHD,South Glos Users in South Glos Homes,Permanent Nursing,Blossom Fields Nursing Home,750.40, 31-May-2022
875,Revenue,CAHD,South Glos Users in South Glos Homes,Permanent Nursing,Blossom Fields Nursing Home,750.40, 31-May-2022
876,Revenue,CAHD,South Glos Users in South Glos Homes,Permanent Nursing,Blossom Fields Nursing Home,750.40, 31-May-2022
877,Revenue,CAHD,South Glos Users in South Glos Homes,Permanent Nursing,Blossom Fields Nursing Home,750.40, 31-May-2022
878,Revenue,CAHD,South Glos Users in South Glos Homes,Permanent Nursing,Blossom Fields Nursing Home,750.40, 31-May-2022
879,Revenue,CAHD,South Glos Users in South Glos Homes,Permanent Nursing,Blossom Fields Nursing Home,750.40, 31-May-2022
880,Revenue,CAHD,South Glos Users in South Glos Homes,Permanent Nursing,Blossom Fields Nursing Home,750.40, 31-May-2022
881,Revenue,CAHD,South Glos Users in South Glos Homes,Permanent Nursing,Blossom Fields Nursing Home,750.40, 31-May-2022
882,Revenue,CAHD,South Glos Users in South Glos Homes,Permanent Nursing,Blossom Fields Nursing Home,750.40, 31-May-2022
883,Revenue,CAHD,South Glos Users in South Glos Homes,Permanent Nursing,Blossom Fields Nursing Home,750.40, 31-May-2022
884,Revenue,CAHD,South Glos Users in South Glos Homes,Permanent Nursing,Blossom Fields Nursing Home,750.40, 31-May-2022
885,Revenue,CAHD,South Glos Users in South Glos Homes,Permanent Nursing,Blossom Fields Nursing Home,750.40, 31-May-2022
886,Revenue,CAHD,South Glos Users in South Glos Homes,Permanent Nursing,Blossom Fields Nursing Home,750.40, 31-May-2022
887,Revenue,CAHD,South Glos Users in South Glos Homes,Permanent Nursing,Blossom Fields Nursing Home,750.40, 31-May-2022
888,Revenue,CAHD,South Glos Users in South Glos Homes,Permanent Nursing,Blossom Fields Nursing Home,750.40, 31-May-2022
889,Revenue,CAHD,South Glos Users in South Glos Homes,Permanent Nursing,Blossom Fields Nursing Home,750.40, 31-May-2022
890,Revenue,CAHD,South Glos Users in South Glos Homes,Permanent Nursing,Blossom Fields Nursing Home,750.40, 31-May-2022
891,Revenue,CAHD,South Glos Users in South Glos Homes,Permanent Nursing,Blossom Fields Nursing Home,750.40, 31-May-2022
892,Revenue,CAHD,South Glos Users in South Glos Homes,Permanent Nursing,Blossom Fields Nursing Home,750.40, 31-May-2022
893,Revenue,CAHD,South Glos Users in South Glos Homes,Permanent Nursing,Blossom Fields Nursing Home,750.40, 03-May-2022
894,Revenue,CAHD,South Glos Users in South Glos Homes,Permanent Nursing,Blossom Fields Nursing Home,750.40, 03-May-2022
895,Revenue,CAHD,South Glos Users in South Glos Homes,Permanent Nursing,Blossom Fields Nursing Home,750.40, 03-May-2022
896,Revenue,CAHD,South Glos Users in South Glos Homes,Permanent Nursing,Blossom Fields Nursing Home,750.40, 03-May-2022
897,Revenue,CAHD,South Glos Users in South Glos Homes,Permanent Nursing,Blossom Fields Nursing Home,750.40, 03-May-2022
898,Revenue,CAHD,South Glos Users in South Glos Homes,Permanent Nursing,Blossom Fields Nursing Home,750.40, 03-May-2022
899,Revenue,CAHD,South Glos Users in South Glos Homes,Permanent Nursing,Blossom Fields Nursing Home,750.40, 03-May-2022
900,Revenue,CAHD,South Glos Users in South Glos Homes,Permanent Nursing,Blossom Fields Nursing Home,750.40, 03-May-2022
901,Revenue,CAHD,South Glos Users in South Glos Homes,Permanent Nursing,Blossom Fields Nursing Home,750.40, 03-May-2022
902,Revenue,CAHD,South Glos Users in South Glos Homes,Permanent Nursing,Blossom Fields Nursing Home,750.40, 03-May-2022
903,Revenue,CAHD,South Glos Users in South Glos Homes,Permanent Nursing,Blossom Fields Nursing Home,750.40, 03-May-2022
904,Revenue,CAHD,South Glos Users in South Glos Homes,Permanent Nursing,Blossom Fields Nursing Home,750.40, 03-May-2022
905,Revenue,CAHD,South Glos Users in South Glos Homes,Permanent Nursing,Blossom Fields Nursing Home,750.40, 03-May-2022
906,Revenue,CAHD,South Glos Users in South Glos Homes,Permanent Nursing,Blossom Fields Nursing Home,750.40, 03-May-2022
907,Revenue,CAHD,South Glos Users in South Glos Homes,Permanent Nursing,Blossom Fields Nursing Home,750.40, 03-May-2022
908,Revenue,CAHD,South Glos Users in South Glos Homes,Permanent Nursing,Blossom Fields Nursing Home,750.40, 03-May-2022
909,Revenue,CAHD,South Glos Users in South Glos Homes,Permanent Nursing,Blossom Fields Nursing Home,750.40, 03-May-2022
910,Revenue,CAHD,South Glos Users in South Glos Homes,Permanent Nursing,Blossom Fields Nursing Home,750.40, 03-May-2022
911,Revenue,CAHD,South Glos Users in South Glos Homes,Permanent Nursing,Blossom Fields Nursing Home,750.40, 03-May-2022
912,Revenue,CAHD,South Glos Users in South Glos Homes,Permanent Nursing,Blossom Fields Nursing Home,750.40, 03-May-2022
913,Revenue,CAHD,South Glos Users in South Glos Homes,Permanent Nursing,Blossom Fields Nursing Home,750.40, 03-May-2022
914,Revenue,CAHD,South Glos Users in South Glos Homes,Permanent Nursing,Blossom Fields Nursing Home,750.40, 03-May-2022
915,Revenue,CAHD,South Glos Users in South Glos Homes,Permanent Nursing,Blossom Fields Nursing Home,777.20, 03-May-2022
916,Revenue,CAHD,South Glos Users in South Glos Homes,Permanent Nursing,Blossom Fields Nursing Home,2814.00, 31-May-2022
917,Revenue,CAHD,North - Community based support,Permanent Nursing,Blossom Fields Nursing Home,3725.20, 31-May-2022
918,Revenue,CAHD,South Glos Users in South Glos Homes,Permanent Nursing,Blossom Fields Nursing Home,3752.00, 31-May-2022
919,Revenue,CAHD,North - Community based support,Permanent Nursing,Blossom Fields Nursing Home,3859.20, 31-May-2022
920,Revenue,CAHD,North - Community based support,Permanent Nursing,Blossom Fields Nursing Home,4020.48, 31-May-2022
921,Revenue,CAHD,North - Community based support,Permanent Nursing,Blossom Fields Nursing Home,4077.37, 03-May-2022
922,Revenue,CAHD,South - Commissioned Services,Permanent Nursing,Blossom Fields Nursing Home,4337.08, 31-May-2022
923,Revenue,CAHD,North - Community based support,Permanent Nursing,Blossom Fields Nursing Home,4379.92, 31-May-2022
924,Revenue,CAHD,Central - Commissioned Services,Permanent Nursing,Blossom Fields Nursing Home,4380.04, 31-May-2022
925,Revenue,CAHD,North - Community based support,Permanent Nursing,Blossom Fields Nursing Home,4380.04, 31-May-2022
926,Revenue,CAHD,North - Community based support,Permanent Nursing,Blossom Fields Nursing Home,4380.04, 31-May-2022
927,Revenue,CAHD,South Glos Users in South Glos Homes,Permanent Nursing,Blossom Fields Nursing Home,4395.20, 31-May-2022
928,Revenue,CAHD,South - Commissioned Services,Permanent Nursing,Blossom Fields Nursing Home,4398.45, 03-May-2022
929,Revenue,CAHD,North - Community based support,Permanent Nursing,Blossom Fields Nursing Home,4441.90, 03-May-2022
930,Revenue,CAHD,Central - Commissioned Services,Permanent Nursing,Blossom Fields Nursing Home,4442.02, 03-May-2022
931,Revenue,CAHD,North - Community based support,Permanent Nursing,Blossom Fields Nursing Home,4442.02, 03-May-2022
932,Revenue,CAHD,North - Community based support,Permanent Nursing,Blossom Fields Nursing Home,4442.02, 03-May-2022
933,Revenue,CAHD,South - Commissioned Services,Permanent Nursing,Blossom Fields Nursing Home,4664.00, 31-May-2022
934,Revenue,CAHD,North - Community based support,Permanent Nursing,Blossom Fields Nursing Home,4664.00, 31-May-2022
935,Revenue,CAHD,North - Community based support,Permanent Nursing,Blossom Fields Nursing Home,4664.00, 31-May-2022
936,Revenue,CAHD,North - Community based support,Permanent Nursing,Blossom Fields Nursing Home,4730.00, 03-May-2022
937,Revenue,CAHD,South - Commissioned Services,Permanent Nursing,Blossom Fields Nursing Home,5088.00, 31-May-2022
938,Revenue,CAHD,South - Commissioned Services,Permanent Nursing,Blossom Fields Nursing Home,5160.00, 03-May-2022
939,Revenue,CAHD,North - Community based support,Permanent Nursing,Blossom Fields Nursing Home,5204.88, 31-May-2022
940,Revenue,CAHD,North - Community based support,Permanent Nursing,Blossom Fields Nursing Home,5278.53, 03-May-2022
941,Revenue,CAHD,North - Community based support,Permanent Nursing,Blossom Fields Nursing Home,5300.00, 31-May-2022
942,Revenue,CAHD,North - Community based support,Permanent Nursing,Blossom Fields Nursing Home,5375.00, 03-May-2022
943,Revenue,CAHD,North - Community based support,Respite Planned - Nursing,Blossom Fields Nursing Home,6600.00, 31-May-2022
944,Revenue,CAHD,North - Community based support,Permanent Nursing,Blossom Fields Nursing Home,8815.71, 03-May-2022
945,Revenue,CAHD,South - Commissioned Services,Permanent Nursing,Blossom Fields Nursing Home,10230.00, 03-May-2022
946,Revenue,CAHD,Central - Commissioned Services,Respite Planned - Nursing,Blossom Fields Nursing Home,16380.91, 31-May-2022
947,Revenue,CAHD,North - Community based support,Permanent Nursing,Blossom Fields Nursing Home,26671.71, 31-May-2022
948,Revenue,CAHD,North - S117,Permanent Residential,Blossom Fields Nursing Home,-3653.57, 03-May-2022
949,Revenue,CAHD,Central - Commissioned Services,Fees & Charges Income - General,Blossom Fields Nursing Home,-3347.66, 31-May-2022
950,Revenue,CAHD,South Glos Users in South Glos Homes,Permanent Nursing,Blossom Fields Nursing Home,-3323.20, 31-May-2022
951,Revenue,CAHD,Central - Commissioned Services,Fees & Charges Income - General,Blossom Fields Nursing Home,-2891.06, 31-May-2022
952,Revenue,CAHD,Central - Commissioned Services,Fees & Charges Income - General,Blossom Fields Nursing Home,-2766.00, 03-May-2022
953,Revenue,CAHD,Central - Commissioned Services,Fees & Charges Income - General,Blossom Fields Nursing Home,-2718.60, 31-May-2022
954,Revenue,CAHD,Central - Commissioned Services,Fees & Charges Income - General,Blossom Fields Nursing Home,-2439.02, 31-May-2022
955,Revenue,CAHD,South Glos Users in South Glos Homes,Permanent Nursing,Blossom Fields Nursing Home,-2358.40, 03-May-2022
956,Revenue,CAHD,North - Community based support,Fees & Charges Income - General,Blossom Fields Nursing Home,-1580.34, 31-May-2022
957,Revenue,CAHD,South Glos Users in South Glos Homes,Permanent Nursing,Blossom Fields Nursing Home,-1447.20, 03-May-2022
958,Revenue,CAHD,North - Community based support,Fees & Charges Income - General,Blossom Fields Nursing Home,-1420.58, 03-May-2022
959,Revenue,CAHD,North - Community based support,Fees & Charges Income - General,Blossom Fields Nursing Home,-1413.08, 31-May-2022
960,Revenue,CAHD,South Glos Users in South Glos Homes,Permanent Nursing,Blossom Fields Nursing Home,-1259.60, 31-May-2022
961,Revenue,CAHD,Central - Commissioned Services,Fees & Charges Income - General,Blossom Fields Nursing Home,-1241.76, 03-May-2022
962,Revenue,CAHD,Central - Commissioned Services,Fees & Charges Income - General,Blossom Fields Nursing Home,-1241.76, 31-May-2022
963,Revenue,CAHD,Central - Commissioned Services,Fees & Charges Income - General,Blossom Fields Nursing Home,-1209.72, 03-May-2022
964,Revenue,CAHD,Central - Commissioned Services,Fees & Charges Income - General,Blossom Fields Nursing Home,-1209.72, 31-May-2022
965,Revenue,CAHD,Central - Commissioned Services,Fees & Charges Income - General,Blossom Fields Nursing Home,-1186.12, 03-May-2022
966,Revenue,CAHD,Central - Commissioned Services,Fees & Charges Income - General,Blossom Fields Nursing Home,-1186.12, 31-May-2022
967,Revenue,CAHD,South - Commissioned Services,Fees & Charges Income - General,Blossom Fields Nursing Home,-1146.60, 03-May-2022
968,Revenue,CAHD,South - Commissioned Services,Fees & Charges Income - General,Blossom Fields Nursing Home,-1146.60, 31-May-2022
969,Revenue,CAHD,South - Commissioned Services,Fees & Charges Income - General,Blossom Fields Nursing Home,-1028.00, 03-May-2022
970,Revenue,CAHD,South Glos Users in South Glos Homes,Permanent Nursing,Blossom Fields Nursing Home,-991.60, 03-May-2022
971,Revenue,CAHD,South - Commissioned Services,Fees & Charges Income - General,Blossom Fields Nursing Home,-928.60, 03-May-2022
972,Revenue,CAHD,South - Commissioned Services,Fees & Charges Income - General,Blossom Fields Nursing Home,-928.60, 31-May-2022
973,Revenue,CAHD,Central - Commissioned Services,Fees & Charges Income - General,Blossom Fields Nursing Home,-866.68, 03-May-2022
974,Revenue,CAHD,Central - Commissioned Services,Fees & Charges Income - General,Blossom Fields Nursing Home,-866.68, 31-May-2022
975,Revenue,CAHD,South Glos Users in South Glos Homes,Permanent Nursing,Blossom Fields Nursing Home,-857.60, 31-May-2022
976,Revenue,CAHD,South - Commissioned Services,Permanent Nursing,Blossom Fields Nursing Home,-725.46, 31-May-2022
977,Revenue,CAHD,South Glos Users in South Glos Homes,Permanent Nursing,Blossom Fields Nursing Home,-670.00, 03-May-2022
978,Revenue,CAHD,Central - Commissioned Services,Fees & Charges Income - General,Blossom Fields Nursing Home,-627.80, 03-May-2022
979,Revenue,CAHD,North - Community based support,Fees & Charges Income - General,Blossom Fields Nursing Home,-627.80, 03-May-2022
980,Revenue,CAHD,Central - Commissioned Services,Fees & Charges Income - General,Blossom Fields Nursing Home,-627.80, 31-May-2022
981,Revenue,CAHD,North - Community based support,Fees & Charges Income - General,Blossom Fields Nursing Home,-627.80, 31-May-2022
982,Revenue,CAHD,South Glos Users in South Glos Homes,Permanent Nursing,Blossom Fields Nursing Home,-536.00, 03-May-2022
983,Revenue,CAHD,South Glos Users in South Glos Homes,Permanent Nursing,Blossom Fields Nursing Home,-509.20, 03-May-2022
984,Revenue,CAHD,Central - Commissioned Services,Fees & Charges Income - General,Blossom Fields Nursing Home,-486.88, 03-May-2022
985,Revenue,CAHD,Central - Commissioned Services,Fees & Charges Income - General,Blossom Fields Nursing Home,-486.88, 31-May-2022
986,Revenue,CAHD,South Glos Users in South Glos Homes,Permanent Nursing,Blossom Fields Nursing Home,-107.20, 31-May-2022
987,Revenue,CAHD,North - Community based support,Permanent Nursing,Blossom Fields Nursing Home,80.40, 03-May-2022
988,Revenue,CAHD,South - Commissioned Services,Fees & Charges Income - General,Blossom Fields Nursing Home,530.00, 31-May-2022
989,Revenue,CAHD,North - Community based support,Permanent Residential,Blossom Fields Nursing Home,548.04, 03-May-2022
990,Revenue,CAHD,South - Commissioned Services,Fees & Charges Income - General,Blossom Fields Nursing Home,662.50, 03-May-2022
991,Revenue,CAHD,South Glos Users in South Glos Homes,Permanent Nursing,Blossom Fields Nursing Home,750.40, 03-May-2022
992,Revenue,CAHD,South Glos Users in South Glos Homes,Permanent Nursing,Blossom Fields Nursing Home,750.40, 03-May-2022
993,Revenue,CAHD,South Glos Users in South Glos Homes,Permanent Nursing,Blossom Fields Nursing Home,750.40, 03-May-2022
994,Revenue,CAHD,South Glos Users in South Glos Homes,Permanent Nursing,Blossom Fields Nursing Home,750.40, 03-May-2022
995,Revenue,CAHD,South Glos Users in South Glos Homes,Permanent Nursing,Blossom Fields Nursing Home,750.40, 03-May-2022
996,Revenue,CAHD,South Glos Users in South Glos Homes,Permanent Nursing,Blossom Fields Nursing Home,750.40, 03-May-2022
997,Revenue,CAHD,South Glos Users in South Glos Homes,Permanent Nursing,Blossom Fields Nursing Home,750.40, 03-May-2022
998,Revenue,CAHD,South Glos Users in South Glos Homes,Permanent Nursing,Blossom Fields Nursing Home,750.40, 03-May-2022
999,Revenue,CAHD,South Glos Users in South Glos Homes,Permanent Nursing,Blossom Fields Nursing Home,750.40, 03-May-2022
1000,Revenue,CAHD,South Glos Users in South Glos Homes,Permanent Nursing,Blossom Fields Nursing Home,750.40, 03-May-2022
1001,Revenue,CAHD,South Glos Users in South Glos Homes,Permanent Nursing,Blossom Fields Nursing Home,750.40, 03-May-2022
1002,Revenue,CAHD,South Glos Users in South Glos Homes,Permanent Nursing,Blossom Fields Nursing Home,750.40, 03-May-2022
1003,Revenue,CAHD,South Glos Users in South Glos Homes,Permanent Nursing,Blossom Fields Nursing Home,750.40, 03-May-2022
1004,Revenue,CAHD,South Glos Users in South Glos Homes,Permanent Nursing,Blossom Fields Nursing Home,750.40, 03-May-2022
1005,Revenue,CAHD,South Glos Users in South Glos Homes,Permanent Nursing,Blossom Fields Nursing Home,750.40, 03-May-2022
1006,Revenue,CAHD,South Glos Users in South Glos Homes,Permanent Nursing,Blossom Fields Nursing Home,750.40, 03-May-2022
1007,Revenue,CAHD,South Glos Users in South Glos Homes,Permanent Nursing,Blossom Fields Nursing Home,750.40, 03-May-2022
1008,Revenue,CAHD,South Glos Users in South Glos Homes,Permanent Nursing,Blossom Fields Nursing Home,750.40, 03-May-2022
1009,Revenue,CAHD,South Glos Users in South Glos Homes,Permanent Nursing,Blossom Fields Nursing Home,750.40, 03-May-2022
1010,Revenue,CAHD,South Glos Users in South Glos Homes,Permanent Nursing,Blossom Fields Nursing Home,750.40, 03-May-2022
1011,Revenue,CAHD,South Glos Users in South Glos Homes,Permanent Nursing,Blossom Fields Nursing Home,750.40, 03-May-2022
1012,Revenue,CAHD,South Glos Users in South Glos Homes,Permanent Nursing,Blossom Fields Nursing Home,750.40, 03-May-2022
1013,Revenue,CAHD,South Glos Users in South Glos Homes,Permanent Nursing,Blossom Fields Nursing Home,750.40, 03-May-2022
1014,Revenue,CAHD,South Glos Users in South Glos Homes,Permanent Nursing,Blossom Fields Nursing Home,750.40, 03-May-2022
1015,Revenue,CAHD,South Glos Users in South Glos Homes,Permanent Nursing,Blossom Fields Nursing Home,750.40, 03-May-2022
1016,Revenue,CAHD,South Glos Users in South Glos Homes,Permanent Nursing,Blossom Fields Nursing Home,750.40, 03-May-2022
1017,Revenue,CAHD,South Glos Users in South Glos Homes,Permanent Nursing,Blossom Fields Nursing Home,750.40, 03-May-2022
1018,Revenue,CAHD,South Glos Users in South Glos Homes,Permanent Nursing,Blossom Fields Nursing Home,750.40, 03-May-2022
1019,Revenue,CAHD,South Glos Users in South Glos Homes,Permanent Nursing,Blossom Fields Nursing Home,750.40, 03-May-2022
1020,Revenue,CAHD,South Glos Users in South Glos Homes,Permanent Nursing,Blossom Fields Nursing Home,750.40, 03-May-2022
1021,Revenue,CAHD,South Glos Users in South Glos Homes,Permanent Nursing,Blossom Fields Nursing Home,750.40, 03-May-2022
1022,Revenue,CAHD,South Glos Users in South Glos Homes,Permanent Nursing,Blossom Fields Nursing Home,750.40, 03-May-2022
1023,Revenue,CAHD,South Glos Users in South Glos Homes,Permanent Nursing,Blossom Fields Nursing Home,750.40, 03-May-2022
1024,Revenue,CAHD,South Glos Users in South Glos Homes,Permanent Nursing,Blossom Fields Nursing Home,750.40, 03-May-2022
1025,Revenue,CAHD,South Glos Users in South Glos Homes,Permanent Nursing,Blossom Fields Nursing Home,750.40, 03-May-2022
1026,Revenue,CAHD,South Glos Users in South Glos Homes,Permanent Nursing,Blossom Fields Nursing Home,750.40, 03-May-2022
1027,Revenue,CAHD,South Glos Users in South Glos Homes,Permanent Nursing,Blossom Fields Nursing Home,750.40, 03-May-2022
1028,Revenue,CAHD,South Glos Users in South Glos Homes,Permanent Nursing,Blossom Fields Nursing Home,750.40, 03-May-2022
1029,Revenue,CAHD,South Glos Users in South Glos Homes,Permanent Nursing,Blossom Fields Nursing Home,750.40, 03-May-2022
1030,Revenue,CAHD,South Glos Users in South Glos Homes,Permanent Nursing,Blossom Fields Nursing Home,750.40, 03-May-2022
1031,Revenue,CAHD,South Glos Users in South Glos Homes,Permanent Nursing,Blossom Fields Nursing Home,750.40, 03-May-2022
1032,Revenue,CAHD,South Glos Users in South Glos Homes,Permanent Nursing,Blossom Fields Nursing Home,750.40, 03-May-2022
1033,Revenue,CAHD,South Glos Users in South Glos Homes,Permanent Nursing,Blossom Fields Nursing Home,750.40, 03-May-2022
1034,Revenue,CAHD,South Glos Users in South Glos Homes,Permanent Nursing,Blossom Fields Nursing Home,750.40, 03-May-2022
1035,Revenue,CAHD,South Glos Users in South Glos Homes,Permanent Nursing,Blossom Fields Nursing Home,750.40, 31-May-2022
1036,Revenue,CAHD,South Glos Users in South Glos Homes,Permanent Nursing,Blossom Fields Nursing Home,750.40, 31-May-2022
1037,Revenue,CAHD,South Glos Users in South Glos Homes,Permanent Nursing,Blossom Fields Nursing Home,750.40, 31-May-2022
1038,Revenue,CAHD,South Glos Users in South Glos Homes,Permanent Nursing,Blossom Fields Nursing Home,750.40, 31-May-2022
1039,Revenue,CAHD,South Glos Users in South Glos Homes,Permanent Nursing,Blossom Fields Nursing Home,750.40, 31-May-2022
1040,Revenue,CAHD,South Glos Users in South Glos Homes,Permanent Nursing,Blossom Fields Nursing Home,750.40, 31-May-2022
1041,Revenue,CAHD,South Glos Users in South Glos Homes,Permanent Nursing,Blossom Fields Nursing Home,750.40, 31-May-2022
1042,Revenue,CAHD,South Glos Users in South Glos Homes,Permanent Nursing,Blossom Fields Nursing Home,750.40, 31-May-2022
1043,Revenue,CAHD,South Glos Users in South Glos Homes,Permanent Nursing,Blossom Fields Nursing Home,750.40, 31-May-2022
1044,Revenue,CAHD,South Glos Users in South Glos Homes,Permanent Nursing,Blossom Fields Nursing Home,750.40, 31-May-2022
1045,Revenue,CAHD,South Glos Users in South Glos Homes,Permanent Nursing,Blossom Fields Nursing Home,750.40, 31-May-2022
1046,Revenue,CAHD,South Glos Users in South Glos Homes,Permanent Nursing,Blossom Fields Nursing Home,750.40, 31-May-2022
1047,Revenue,CAHD,South Glos Users in South Glos Homes,Permanent Nursing,Blossom Fields Nursing Home,750.40, 31-May-2022
1048,Revenue,CAHD,South Glos Users in South Glos Homes,Permanent Nursing,Blossom Fields Nursing Home,750.40, 31-May-2022
1049,Revenue,CAHD,South Glos Users in South Glos Homes,Permanent Nursing,Blossom Fields Nursing Home,750.40, 31-May-2022
1050,Revenue,CAHD,South Glos Users in South Glos Homes,Permanent Nursing,Blossom Fields Nursing Home,750.40, 31-May-2022
1051,Revenue,CAHD,South Glos Users in South Glos Homes,Permanent Nursing,Blossom Fields Nursing Home,750.40, 31-May-2022
1052,Revenue,CAHD,South Glos Users in South Glos Homes,Permanent Nursing,Blossom Fields Nursing Home,750.40, 31-May-2022
1053,Revenue,CAHD,South Glos Users in South Glos Homes,Permanent Nursing,Blossom Fields Nursing Home,750.40, 31-May-2022
1054,Revenue,CAHD,South Glos Users in South Glos Homes,Permanent Nursing,Blossom Fields Nursing Home,750.40, 31-May-2022
1055,Revenue,CAHD,South Glos Users in South Glos Homes,Permanent Nursing,Blossom Fields Nursing Home,750.40, 31-May-2022
1056,Revenue,CAHD,South Glos Users in South Glos Homes,Permanent Nursing,Blossom Fields Nursing Home,750.40, 31-May-2022
1057,Revenue,CAHD,South Glos Users in South Glos Homes,Permanent Nursing,Blossom Fields Nursing Home,750.40, 31-May-2022
1058,Revenue,CAHD,South Glos Users in South Glos Homes,Permanent Nursing,Blossom Fields Nursing Home,750.40, 31-May-2022
1059,Revenue,CAHD,South Glos Users in South Glos Homes,Permanent Nursing,Blossom Fields Nursing Home,750.40, 31-May-2022
1060,Revenue,CAHD,South Glos Users in South Glos Homes,Permanent Nursing,Blossom Fields Nursing Home,750.40, 31-May-2022
1061,Revenue,CAHD,South Glos Users in South Glos Homes,Permanent Nursing,Blossom Fields Nursing Home,750.40, 31-May-2022
1062,Revenue,CAHD,South Glos Users in South Glos Homes,Permanent Nursing,Blossom Fields Nursing Home,750.40, 31-May-2022
1063,Revenue,CAHD,South Glos Users in South Glos Homes,Permanent Nursing,Blossom Fields Nursing Home,750.40, 31-May-2022
1064,Revenue,CAHD,South Glos Users in South Glos Homes,Permanent Nursing,Blossom Fields Nursing Home,750.40, 31-May-2022
1065,Revenue,CAHD,South Glos Users in South Glos Homes,Permanent Nursing,Blossom Fields Nursing Home,750.40, 31-May-2022
1066,Revenue,CAHD,South Glos Users in South Glos Homes,Permanent Nursing,Blossom Fields Nursing Home,750.40, 31-May-2022
1067,Revenue,CAHD,South Glos Users in South Glos Homes,Permanent Nursing,Blossom Fields Nursing Home,750.40, 31-May-2022
1068,Revenue,CAHD,South Glos Users in South Glos Homes,Permanent Nursing,Blossom Fields Nursing Home,750.40, 31-May-2022
1069,Revenue,CAHD,South Glos Users in South Glos Homes,Permanent Nursing,Blossom Fields Nursing Home,750.40, 31-May-2022
1070,Revenue,CAHD,South Glos Users in South Glos Homes,Permanent Nursing,Blossom Fields Nursing Home,750.40, 31-May-2022
1071,Revenue,CAHD,South Glos Users in South Glos Homes,Permanent Nursing,Blossom Fields Nursing Home,750.40, 31-May-2022
1072,Revenue,CAHD,South Glos Users in South Glos Homes,Permanent Nursing,Blossom Fields Nursing Home,750.40, 31-May-2022
1073,Revenue,CAHD,South Glos Users in South Glos Homes,Permanent Nursing,Blossom Fields Nursing Home,750.40, 31-May-2022
1074,Revenue,CAHD,South Glos Users in South Glos Homes,Permanent Nursing,Blossom Fields Nursing Home,750.40, 31-May-2022
1075,Revenue,CAHD,South Glos Users in South Glos Homes,Permanent Nursing,Blossom Fields Nursing Home,750.40, 31-May-2022
1076,Revenue,CAHD,South Glos Users in South Glos Homes,Permanent Nursing,Blossom Fields Nursing Home,750.40, 31-May-2022
1077,Revenue,CAHD,South Glos Users in South Glos Homes,Permanent Nursing,Blossom Fields Nursing Home,750.40, 31-May-2022
1078,Revenue,CAHD,South Glos Users in South Glos Homes,Permanent Nursing,Blossom Fields Nursing Home,2063.60, 03-May-2022
1079,Revenue,CAHD,South Glos Users in South Glos Homes,Permanent Nursing,Blossom Fields Nursing Home,2438.80, 03-May-2022
1080,Revenue,CAHD,South Glos Users in South Glos Homes,Permanent Nursing,Blossom Fields Nursing Home,2733.60, 03-May-2022
1081,Revenue,CAHD,North - Community based support,Permanent Residential,Blossom Fields Nursing Home,3498.00, 31-May-2022
1082,Revenue,CAHD,North - Community based support,Permanent Residential,Blossom Fields Nursing Home,3547.50, 03-May-2022
1083,Revenue,CAHD,Central - Commissioned Services,Permanent Nursing,Blossom Fields Nursing Home,3589.53, 03-May-2022
1084,Revenue,CAHD,Central - Commissioned Services,Permanent Residential,Blossom Fields Nursing Home,3816.00, 31-May-2022
1085,Revenue,CAHD,South - Commissioned Services,Permanent Nursing,Blossom Fields Nursing Home,3816.00, 31-May-2022
1086,Revenue,CAHD,Central - Commissioned Services,Permanent Residential,Blossom Fields Nursing Home,3870.00, 03-May-2022
1087,Revenue,CAHD,South - Commissioned Services,Permanent Nursing,Blossom Fields Nursing Home,3870.00, 03-May-2022
1088,Revenue,CAHD,Central - Commissioned Services,Permanent Residential,Blossom Fields Nursing Home,4028.00, 31-May-2022
1089,Revenue,CAHD,Central - Commissioned Services,Permanent Residential,Blossom Fields Nursing Home,4085.00, 03-May-2022
1090,Revenue,CAHD,South - Commissioned Services,Permanent Nursing,Blossom Fields Nursing Home,4179.64, 31-May-2022
1091,Revenue,CAHD,South - Commissioned Services,Permanent Nursing,Blossom Fields Nursing Home,4238.79, 03-May-2022
1092,Revenue,CAHD,Central - Commissioned Services,Permanent Nursing,Blossom Fields Nursing Home,4380.04, 31-May-2022
1093,Revenue,CAHD,Central - Commissioned Services,Permanent Nursing,Blossom Fields Nursing Home,4380.04, 31-May-2022
1094,Revenue,CAHD,Central - Commissioned Services,Permanent Nursing,Blossom Fields Nursing Home,4380.04, 31-May-2022
1095,Revenue,CAHD,Central - Commissioned Services,Permanent Nursing,Blossom Fields Nursing Home,4380.04, 31-May-2022
1096,Revenue,CAHD,North - S117,Permanent Nursing,Blossom Fields Nursing Home,4380.04, 31-May-2022
1097,Revenue,CAHD,South - Commissioned Services,Permanent Nursing,Blossom Fields Nursing Home,4381.20, 31-May-2022
1098,Revenue,CAHD,North - Community based support,Permanent Nursing,Blossom Fields Nursing Home,4381.20, 31-May-2022
1099,Revenue,CAHD,Central - Commissioned Services,Permanent Nursing,Blossom Fields Nursing Home,4442.02, 03-May-2022
1100,Revenue,CAHD,Central - Commissioned Services,Permanent Nursing,Blossom Fields Nursing Home,4442.02, 03-May-2022
1101,Revenue,CAHD,Central - Commissioned Services,Permanent Nursing,Blossom Fields Nursing Home,4442.02, 03-May-2022
1102,Revenue,CAHD,Central - Commissioned Services,Permanent Nursing,Blossom Fields Nursing Home,4442.02, 03-May-2022
1103,Revenue,CAHD,North - S117,Permanent Nursing,Blossom Fields Nursing Home,4442.02, 03-May-2022
1104,Revenue,CAHD,South - Commissioned Services,Permanent Nursing,Blossom Fields Nursing Home,4443.20, 03-May-2022
1105,Revenue,CAHD,North - Community based support,Permanent Nursing,Blossom Fields Nursing Home,4443.20, 03-May-2022
1106,Revenue,CAHD,Central - Commissioned Services,Permanent Nursing,Blossom Fields Nursing Home,4876.00, 31-May-2022
1107,Revenue,CAHD,Central - Commissioned Services,Permanent Nursing,Blossom Fields Nursing Home,4945.00, 03-May-2022
1108,Revenue,CAHD,North - Community based support,Respite Emergency - Nursing,Blossom Fields Nursing Home,5000.00, 31-May-2022
1109,Revenue,CAHD,Central - Commissioned Services,Permanent Nursing,Blossom Fields Nursing Home,5078.20, 31-May-2022
1110,Revenue,CAHD,Central - Commissioned Services,Permanent Nursing,Blossom Fields Nursing Home,5107.84, 31-May-2022
1111,Revenue,CAHD,Central - Commissioned Services,Permanent Nursing,Blossom Fields Nursing Home,5150.06, 03-May-2022
1112,Revenue,CAHD,South - Commissioned Services,Permanent Nursing,Blossom Fields Nursing Home,5150.06, 03-May-2022
1113,Revenue,CAHD,Central - Commissioned Services,Permanent Nursing,Blossom Fields Nursing Home,5180.12, 03-May-2022
1114,Revenue,CAHD,North - S117,Permanent Residential,Blossom Fields Nursing Home,5205.04, 31-May-2022
1115,Revenue,CAHD,North - S117,Permanent Residential,Blossom Fields Nursing Home,5278.70, 03-May-2022
1116,Revenue,CAHD,South - Commissioned Services,Permanent Nursing,Blossom Fields Nursing Home,5300.00, 31-May-2022
1117,Revenue,CAHD,South - Commissioned Services,Permanent Nursing,Blossom Fields Nursing Home,5375.00, 03-May-2022
1118,Revenue,CAHD,Central - Commissioned Services,Permanent Nursing,Blossom Fields Nursing Home,5421.92, 31-May-2022
1119,Revenue,CAHD,Central - Commissioned Services,Permanent Nursing,Blossom Fields Nursing Home,5431.24, 31-May-2022
1120,Revenue,CAHD,Central - Commissioned Services,Permanent Nursing,Blossom Fields Nursing Home,5498.65, 03-May-2022
1121,Revenue,CAHD,Central - Commissioned Services,Permanent Nursing,Blossom Fields Nursing Home,5508.10, 03-May-2022
1122,Revenue,CAHD,Central - Commissioned Services,Fees & Charges Income - General,Blossom Fields Nursing Home,5550.13, 03-May-2022
1123,Revenue,CAHD,North - Community based support,Permanent Nursing,Blossom Fields Nursing Home,6407.14, 31-May-2022
1124,Revenue,CAHD,Central - Commissioned Services,Permanent Nursing,Blossom Fields Nursing Home,7721.43, 31-May-2022
1125,Revenue,CAHD,Central - Commissioned Services,Respite Planned - Nursing,Blossom Fields Nursing Home,8561.63, 31-May-2022
1126,Revenue,CAHD,Central - Commissioned Services,Permanent Nursing,Blossom Fields Nursing Home,11171.43, 31-May-2022
1127,Revenue,CAHD,Central - Commissioned Services,Permanent Nursing,Blossom Fields Nursing Home,12105.06, 31-May-2022
1128,Revenue,CAHD,South - Commissioned Services,Fees & Charges Income - General,Blossom Fields Nursing Home,14201.80, 31-May-2022
1129,Revenue,CAHD,Central - Commissioned Services,Permanent Nursing,Blossom Fields Nursing Home,19895.47, 31-May-2022
1130,Revenue,CAHD,Central - Commissioned Services,Permanent Nursing,Blossom Fields Nursing Home,20042.85, 31-May-2022
1131,Revenue,CAHD,Statemented Support Payments to OLAs,Other L.A.s - General,Blue Coat CE VA Primary School,837.09, 20-May-2022
1132,Revenue,CAHD,Statemented Support Payments to OLAs,Other L.A.s - General,Blue Coat CE VA Primary School,1292.50, 20-May-2022
1133,Revenue,CAHD,Early Years Inclusion Fund,Other Public Bodies,Bluebells Pre School,1017.00, 05-May-2022
1134,Revenue,CAHD,Early Years High Needs Support,Other Private Contractors,Bluebells Pre School,1514.83, 20-May-2022
1135,Revenue,CAHD,South - Commissioned Services,Other Small Contracts,Bluebird Care (South Gloucestershire),4062.10, 03-May-2022
1136,Revenue,CAHD,South - Commissioned Services,Other Small Contracts,Bluebird Care (South Gloucestershire),4062.10, 06-May-2022
1137,Revenue,CAHD,South - Commissioned Services,Other Small Contracts,Bluebird Care (South Gloucestershire),4062.10, 12-May-2022
1138,Revenue,CAHD,South - Commissioned Services,Other Small Contracts,Bluebird Care (South Gloucestershire),4062.10, 18-May-2022
1139,Revenue,CAHD,South - Commissioned Services,Other Small Contracts,Bluebird Care (South Gloucestershire),4062.10, 26-May-2022
1140,Revenue,CAHD,South - Commissioned Services,Other Small Contracts,Bluebird Care (South Gloucestershire),4062.10, 26-May-2022
1141,Revenue,CAHD,North - Community based support,Other Small Contracts,Bluebird Care (South Gloucestershire),4935.79, 03-May-2022
1142,Revenue,CAHD,North - Community based support,Other Small Contracts,Bluebird Care (South Gloucestershire),4935.79, 06-May-2022
1143,Revenue,CAHD,North - Community based support,Other Small Contracts,Bluebird Care (South Gloucestershire),4935.79, 12-May-2022
1144,Revenue,CAHD,North - Community based support,Other Small Contracts,Bluebird Care (South Gloucestershire),4935.79, 18-May-2022
1145,Revenue,CAHD,North - Community based support,Other Small Contracts,Bluebird Care (South Gloucestershire),4935.79, 26-May-2022
1146,Revenue,CAHD,North - Community based support,Other Small Contracts,Bluebird Care (South Gloucestershire),4935.79, 26-May-2022
1147,Revenue,CAHD,Central - Commissioned Services,Other Small Contracts,Bluebird Care (South Gloucestershire),13695.42, 03-May-2022
1148,Revenue,CAHD,Central - Commissioned Services,Other Small Contracts,Bluebird Care (South Gloucestershire),13695.42, 06-May-2022
1149,Revenue,CAHD,Central - Commissioned Services,Other Small Contracts,Bluebird Care (South Gloucestershire),13695.42, 12-May-2022
1150,Revenue,CAHD,Central - Commissioned Services,Other Small Contracts,Bluebird Care (South Gloucestershire),13695.42, 18-May-2022
1151,Revenue,CAHD,Central - Commissioned Services,Other Small Contracts,Bluebird Care (South Gloucestershire),13695.42, 26-May-2022
1152,Revenue,CAHD,Central - Commissioned Services,Other Small Contracts,Bluebird Care (South Gloucestershire),13695.42, 26-May-2022
1153,Revenue,CAHD,CSC - Asylum Seekers - Unaccompanied,Independent Living,Blueline Healthcare Solutions Ltd T/A Blueline Car,4071.42, 04-May-2022
1154,Revenue,CAHD,CSC - Asylum Seekers - Unaccompanied,Independent Living,Blueline Healthcare Solutions Ltd T/A Blueline Car,4071.42, 04-May-2022
1155,Revenue,CAHD,CSC - Asylum Seekers - Unaccompanied,Independent Living,Blueline Healthcare Solutions Ltd T/A Blueline Car,4071.42, 04-May-2022
1156,Revenue,CAHD,CSC - Asylum Seekers - Unaccompanied,Independent Living,Blueline Healthcare Solutions Ltd T/A Blueline Car,4207.14, 30-May-2022
1157,Revenue,CAHD,CSC - Asylum Seekers - Unaccompanied,Independent Living,Blueline Healthcare Solutions Ltd T/A Blueline Car,4207.14, 30-May-2022
1158,Revenue,CAHD,CSC - Asylum Seekers - Unaccompanied,Independent Living,Blueline Healthcare Solutions Ltd T/A Blueline Car,4207.14, 30-May-2022
1159,Revenue,CAHD,"Drugs, Alcohol and Sexual Health",Other Small Contracts,Boots UK Ltd,706.12, 24-May-2022
1160,Revenue,CAHD,Cardio Vascular Disease - Risks,Other Small Contracts,Boots UK Ltd,723.56, 13-May-2022
1161,Revenue,CAHD,"Drugs, Alcohol and Sexual Health",Other Small Contracts,Boots UK Ltd,872.51, 24-May-2022
1162,Revenue,CAHD,"Drugs, Alcohol and Sexual Health",Other Small Contracts,Boots UK Ltd,900.00, 13-May-2022
1163,Revenue,CAHD,Social Lettings Agency,Prop.Serv. General Repairs,BPM Contracting Services Limited,521.59, 19-May-2022
1164,Revenue,CAHD,S28A cases,Fees & Charges Income - General,Bradbury House,-438.80, 03-May-2022
1165,Revenue,CAHD,S28A cases,Fees & Charges Income - General,Bradbury House,-438.80, 31-May-2022
1166,Revenue,CAHD,S28A cases,Permanent Residential,Bradbury House,6505.16, 03-May-2022
1167,Revenue,CAHD,S28A cases,Permanent Residential,Bradbury House,6505.16, 31-May-2022
1168,Revenue,CAHD,North - S117,Permanent Residential,Bradbury House,7106.96, 31-May-2022
1169,Revenue,CAHD,Jointly Funded H&SC Packages,Permanent Residential,Bradbury House,7106.96, 31-May-2022
1170,Revenue,CAHD,North - S117,Permanent Residential,Bradbury House,7106.96, 03-May-2022
1171,Revenue,CAHD,Jointly Funded H&SC Packages,Permanent Residential,Bradbury House,7106.96, 03-May-2022
1172,Revenue,CAHD,Central - Commissioned Services,Permanent Residential,Bradbury House,33102.46, 31-May-2022
1173,Revenue,CAHD,Cardio Vascular Disease - Risks,Other Small Contracts,Bradley Stoke Surgery,570.00, 13-May-2022
1174,Revenue,CAHD,Cardio Vascular Disease - Risks,Other Small Contracts,Bradley Stoke Surgery,668.00, 17-May-2022
1175,Revenue,CAHD,"Drugs, Alcohol and Sexual Health",Other Small Contracts,Bradley Stoke Surgery,1421.00, 17-May-2022
1176,Revenue,CAHD,"Drugs, Alcohol and Sexual Health",Other Small Contracts,Bradley Stoke Surgery,2219.58, 24-May-2022
1177,Revenue,CAHD,"Drugs, Alcohol and Sexual Health",Other Small Contracts,Bradley Stoke Surgery,2817.50, 24-May-2022
1178,Revenue,CAHD,CSC - Residential Placements,Permanent Residential,Branas ISAF Ltd,21921.34, 23-May-2022
1179,Revenue,CAHD,Central - Commissioned Services,Fees & Charges Income - General,Breadstone House Care Centre,2259.32, 31-May-2022
1180,Revenue,CAHD,Placements OLA Special Schools and RB,Other L.A.s - General,Briarwood School,792.40, 20-May-2022
1181,Revenue,CAHD,Placements OLA Special Schools and RB,Other L.A.s - General,Briarwood School,2774.72, 20-May-2022
1182,Revenue,CAHD,North - Community based support,Fees & Charges Income - General,Bridge House Care Home,-3519.80, 31-May-2022
1183,Revenue,CAHD,North - Community based support,Fees & Charges Income - General,Bridge House Care Home,-1679.52, 03-May-2022
1184,Revenue,CAHD,North - Community based support,Fees & Charges Income - General,Bridge House Care Home,-1679.52, 31-May-2022
1185,Revenue,CAHD,North - Community based support,Fees & Charges Income - General,Bridge House Care Home,-1376.65, 31-May-2022
1186,Revenue,CAHD,North - Community based support,Fees & Charges Income - General,Bridge House Care Home,-627.80, 03-May-2022
1187,Revenue,CAHD,North - Community based support,Fees & Charges Income - General,Bridge House Care Home,-627.80, 31-May-2022
1188,Revenue,CAHD,North - Community based support,Permanent Residential,Bridge House Care Home,3088.32, 31-May-2022
1189,Revenue,CAHD,North - Community based support,Permanent Residential,Bridge House Care Home,3132.02, 03-May-2022
1190,Revenue,CAHD,North - Community based support,Permanent Residential,Bridge House Care Home,3286.00, 31-May-2022
1191,Revenue,CAHD,North - Community based support,Permanent Residential,Bridge House Care Home,3332.50, 03-May-2022
1192,Revenue,CAHD,North - Community based support,Permanent Residential,Bridge House Care Home,6388.57, 31-May-2022
1193,Revenue,CAHD,North - Community based support,Permanent Nursing,Bridge House Care Home,18480.00, 31-May-2022
1194,Revenue,CAHD,North - Community based support,Permanent Residential,Bridgwater Court Care Home,10773.64, 03-May-2022
1195,Revenue,CAHD,North - Community based support,Permanent Residential,Bridgwater Court Care Home,10773.64, 31-May-2022
1196,Revenue,CAHD,Mental Health and Community Engagement,Grants to Voluntary Bodies,Bristol & Avon Chinese Womens Group,500.00, 25-May-2022
1197,Revenue,CAHD,Community Support - North,Preventative Assistance,Bristol Ambulance EMS Limited,640.00, 11-May-2022
1198,Revenue,CAHD,Community Support - North,Preventative Assistance,Bristol Ambulance EMS Limited,752.00, 06-May-2022
1199,Revenue,CAHD,SLA Grants - Support Serv,Grants to Voluntary Bodies,Bristol Area Stroke Foundation,23534.25, 17-May-2022
1200,Revenue,CAHD,Statemented Support Payments to OLAs,Other L.A.s - General,Bristol Cathedral Choir School,880.08, 20-May-2022
1201,Revenue,CAHD,Statemented Support Payments to OLAs,Other L.A.s - General,Bristol Cathedral Choir School,942.58, 20-May-2022
1202,Revenue,CAHD,Statemented Support Payments to OLAs,Other L.A.s - General,Bristol Cathedral Choir School,978.57, 23-May-2022
1203,Revenue,CAHD,Early Years Inclusion Fund,Other Public Bodies,Bristol Childcare Limited,1017.00, 03-May-2022
1204,Revenue,CAHD,Transport OLA Special Schools and RB,Client Transport,Bristol City Council,5197.74, 10-May-2022
1205,Revenue,CAHD,Statemented Support Payments to OLAs,Other L.A.s - General,Bristol City Council Schools General,635.33, 20-May-2022
1206,Revenue,CAHD,Statemented Support Payments to OLAs,Other L.A.s - General,Bristol City Council Schools General,897.42, 20-May-2022
1207,Revenue,CAHD,Placements OLA Special Schools and RB,Other L.A.s - General,Bristol Hospital Education,887.53, 20-May-2022
1208,Revenue,CAHD,Other Alternative Provision Services,Other Private Contractors,Bristol Tuition Limited,495.00, 06-May-2022
1209,Revenue,CAHD,Other Alternative Provision Services,Other Private Contractors,Bristol Tuition Limited,540.00, 06-May-2022
1210,Revenue,CAHD,Other Alternative Provision Services,Other Private Contractors,Bristol Tuition Limited,900.00, 06-May-2022
1211,Revenue,CAHD,Statemented Support Payments to OLAs,Other L.A.s - General,Broadlands Academy,835.17, 20-May-2022
1212,Revenue,CAHD,North - Community based support,Fees & Charges Income - General,Brockhills Farm,-658.96, 03-May-2022
1213,Revenue,CAHD,North - Community based support,Fees & Charges Income - General,Brockhills Farm,-658.96, 31-May-2022
1214,Revenue,CAHD,North - Community based support,Permanent Residential,Brockhills Farm,3200.00, 03-May-2022
1215,Revenue,CAHD,North - Community based support,Permanent Residential,Brockhills Farm,3200.00, 31-May-2022
1216,Revenue,CAHD,Community Support - South,Preventative Assistance,Bronev,2200.00, 13-May-2022
1217,Revenue,CAHD,Parent Partnership & Disagreement Resolutions,Fees - General,Browne Jacobson,903.00, 20-May-2022
1218,Revenue,CAHD,Parent Partnership & Disagreement Resolutions,Fees - General,Browne Jacobson,1035.00, 23-May-2022
1219,Revenue,CAHD,North - Community based support,Permanent Nursing,Brunelcare,814.07, 13-May-2022
1220,Revenue,CAHD,South Glos Users in South Glos Homes,Permanent Nursing,Brunelcare,830.80, 13-May-2022
1221,Revenue,CAHD,South Glos Users in South Glos Homes,Permanent Nursing,Brunelcare,830.80, 13-May-2022
1222,Revenue,CAHD,South Glos Users in South Glos Homes,Permanent Nursing,Brunelcare,830.80, 13-May-2022
1223,Revenue,CAHD,South Glos Users in South Glos Homes,Permanent Nursing,Brunelcare,830.80, 13-May-2022
1224,Revenue,CAHD,South Glos Users in South Glos Homes,Permanent Nursing,Brunelcare,830.80, 13-May-2022
1225,Revenue,CAHD,South Glos Users in South Glos Homes,Permanent Nursing,Brunelcare,830.80, 13-May-2022
1226,Revenue,CAHD,South - Commissioned Services,Respite Planned - Nursing,Brunelcare,987.60, 13-May-2022
1227,Revenue,CAHD,South - Commissioned Services,Permanent Nursing,Brunelcare,1023.01, 13-May-2022
1228,Revenue,CAHD,Central - Commissioned Services,Respite Planned - Nursing,Brunelcare,1358.52, 13-May-2022
1229,Revenue,CAHD,South - Commissioned Services,Respite Planned - Nursing,Brunelcare,1803.62, 13-May-2022
1230,Revenue,CAHD,Central - Commissioned Services,Respite Planned - Nursing,Brunelcare,2593.53, 13-May-2022
1231,Revenue,CAHD,South - Commissioned Services,Permanent Nursing,Brunelcare,2743.06, 13-May-2022
1232,Revenue,CAHD,Central - Commissioned Services,Permanent Nursing,Brunelcare,2876.27, 13-May-2022
1233,Revenue,CAHD,South - Commissioned Services,Permanent Nursing,Brunelcare,3096.55, 13-May-2022
1234,Revenue,CAHD,South - Commissioned Services,Permanent Nursing,Brunelcare,3154.52, 13-May-2022
1235,Revenue,CAHD,North - Community based support,Permanent Nursing,Brunelcare,3154.52, 13-May-2022
1236,Revenue,CAHD,South - Commissioned Services,Permanent Nursing,Brunelcare,3383.07, 13-May-2022
1237,Revenue,CAHD,North - S117,Permanent Nursing,Brunelcare,3828.54, 13-May-2022
1238,Revenue,CAHD,North - S117,Permanent Nursing,Brunelcare,3828.54, 13-May-2022
1239,Revenue,CAHD,North - Community based support,Permanent Nursing,Brunelcare,3828.54, 13-May-2022
1240,Revenue,CAHD,South - Commissioned Services,Permanent Nursing,Brunelcare,4659.34, 13-May-2022
1241,Revenue,CAHD,South - Commissioned Services,Other Small Contracts,Brunelcare,15360.39, 03-May-2022
1242,Revenue,CAHD,South - Commissioned Services,Other Small Contracts,Brunelcare,15360.39, 06-May-2022
1243,Revenue,CAHD,South - Commissioned Services,Other Small Contracts,Brunelcare,15360.39, 12-May-2022
1244,Revenue,CAHD,South - Commissioned Services,Other Small Contracts,Brunelcare,15360.39, 18-May-2022
1245,Revenue,CAHD,South - Commissioned Services,Other Small Contracts,Brunelcare,15360.39, 26-May-2022
1246,Revenue,CAHD,South - Commissioned Services,Other Small Contracts,Brunelcare,15360.39, 26-May-2022
1247,Revenue,CAHD,North - S117,Permanent Residential,Buckland Care,3600.00, 03-May-2022
1248,Revenue,CAHD,North - S117,Permanent Residential,Buckland Care,3600.00, 31-May-2022
1249,Revenue,CAHD,CSC - Vinney Green Secure Unit,R & M by Departments,BWS Standfast Fire & Security Systems,3859.37, 19-May-2022
1250,Revenue,CAHD,CSC - Asylum Seekers - Unaccompanied,Foster Parent Allowances,By the Bridge Ltd,611.92, 03-May-2022
1251,Revenue,CAHD,CSC - Agency Fostering,Foster Parent Allowances,By the Bridge Ltd,3214.20, 31-May-2022
1252,Revenue,CAHD,CSC - Asylum Seekers - Unaccompanied,Foster Parent Allowances,By the Bridge Ltd,4283.44, 03-May-2022
1253,Revenue,CAHD,CSC - Asylum Seekers - Unaccompanied,Foster Parent Allowances,By the Bridge Ltd,4497.61, 31-May-2022
1254,Revenue,CAHD,CSC - Asylum Seekers - Unaccompanied,Foster Parent Allowances,By the Bridge Ltd,4497.61, 31-May-2022
1255,Revenue,CAHD,CSC - Asylum Seekers - Unaccompanied,Foster Parent Allowances,By the Bridge Ltd,4589.40, 31-May-2022
1256,Revenue,CAHD,CSC - Asylum Seekers - Unaccompanied,Foster Parent Allowances,By the Bridge Ltd,4742.38, 03-May-2022
1257,Revenue,CAHD,Statemented Support Academies,Other Public Bodies,Cabot Learning Federation,526.00, 23-May-2022
1258,Revenue,CAHD,Statemented Support Academies,Other Public Bodies,Cabot Learning Federation,530.55, 23-May-2022
1259,Revenue,CAHD,Statemented Support Academies,Other Public Bodies,Cabot Learning Federation,554.13, 23-May-2022
1260,Revenue,CAHD,Statemented Support Academies,Other Public Bodies,Cabot Learning Federation,554.13, 23-May-2022
1261,Revenue,CAHD,Statemented Support Academies,Other Public Bodies,Cabot Learning Federation,577.50, 23-May-2022
1262,Revenue,CAHD,Statemented Support Payments to OLAs,Other L.A.s - General,Cabot Learning Federation,601.29, 20-May-2022
1263,Revenue,CAHD,Statemented Support Academies,Other Public Bodies,Cabot Learning Federation,632.67, 23-May-2022
1264,Revenue,CAHD,Statemented Support Academies,Other Public Bodies,Cabot Learning Federation,646.67, 23-May-2022
1265,Revenue,CAHD,Academy Resource Base Funding,Other Public Bodies,Cabot Learning Federation,648.70, 20-May-2022
1266,Revenue,CAHD,Academy Resource Base Funding,Other Public Bodies,Cabot Learning Federation,648.70, 20-May-2022
1267,Revenue,CAHD,Statemented Support Academies,Other Public Bodies,Cabot Learning Federation,661.33, 23-May-2022
1268,Revenue,CAHD,Statemented Support Payments to OLAs,Other L.A.s - General,Cabot Learning Federation,665.33, 20-May-2022
1269,Revenue,CAHD,Statemented Support Academies,Other Public Bodies,Cabot Learning Federation,671.71, 23-May-2022
1270,Revenue,CAHD,Statemented Support Academies,Other Public Bodies,Cabot Learning Federation,680.42, 23-May-2022
1271,Revenue,CAHD,Statemented Support Academies,Other Public Bodies,Cabot Learning Federation,685.33, 23-May-2022
1272,Revenue,CAHD,Statemented Support Academies,Other Public Bodies,Cabot Learning Federation,695.61, 23-May-2022
1273,Revenue,CAHD,Statemented Support Academies,Other Public Bodies,Cabot Learning Federation,705.00, 23-May-2022
1274,Revenue,CAHD,Statemented Support Academies,Other Public Bodies,Cabot Learning Federation,710.58, 23-May-2022
1275,Revenue,CAHD,Statemented Support Academies,Other Public Bodies,Cabot Learning Federation,730.98, 23-May-2022
1276,Revenue,CAHD,Statemented Support Academies,Other Public Bodies,Cabot Learning Federation,742.77, 23-May-2022
1277,Revenue,CAHD,Statemented Support Academies,Other Public Bodies,Cabot Learning Federation,778.14, 23-May-2022
1278,Revenue,CAHD,Statemented Support Academies,Other Public Bodies,Cabot Learning Federation,804.08, 23-May-2022
1279,Revenue,CAHD,Statemented Support Payments to OLAs,Other L.A.s - General,Cabot Learning Federation,809.75, 23-May-2022
1280,Revenue,CAHD,Statemented Support Academies,Other Public Bodies,Cabot Learning Federation,813.51, 23-May-2022
1281,Revenue,CAHD,Statemented Support Academies,Other Public Bodies,Cabot Learning Federation,836.67, 23-May-2022
1282,Revenue,CAHD,Statemented Support Academies,Other Public Bodies,Cabot Learning Federation,855.08, 23-May-2022
1283,Revenue,CAHD,Statemented Support Payments to OLAs,Other L.A.s - General,Cabot Learning Federation,888.33, 20-May-2022
1284,Revenue,CAHD,Statemented Support Academies,Other Public Bodies,Cabot Learning Federation,918.75, 23-May-2022
1285,Revenue,CAHD,Statemented Support Academies,Other Public Bodies,Cabot Learning Federation,966.83, 23-May-2022
1286,Revenue,CAHD,Statemented Support Academies,Other Public Bodies,Cabot Learning Federation,973.50, 23-May-2022
1287,Revenue,CAHD,Statemented Support Academies,Other Public Bodies,Cabot Learning Federation,975.58, 23-May-2022
1288,Revenue,CAHD,Academy Resource Base Funding,Other Public Bodies,Cabot Learning Federation,1013.74, 20-May-2022
1289,Revenue,CAHD,Statemented Support Academies,Other Public Bodies,Cabot Learning Federation,1019.33, 23-May-2022
1290,Revenue,CAHD,Statemented Support Academies,Other Public Bodies,Cabot Learning Federation,1028.08, 23-May-2022
1291,Revenue,CAHD,Statemented Support Payments to OLAs,Other L.A.s - General,Cabot Learning Federation,1062.33, 20-May-2022
1292,Revenue,CAHD,Statemented Support Academies,Other Public Bodies,Cabot Learning Federation,1084.17, 23-May-2022
1293,Revenue,CAHD,Statemented Support Academies,Other Public Bodies,Cabot Learning Federation,1096.47, 23-May-2022
1294,Revenue,CAHD,Statemented Support Academies,Other Public Bodies,Cabot Learning Federation,1103.25, 23-May-2022
1295,Revenue,CAHD,Statemented Support Academies,Other Public Bodies,Cabot Learning Federation,1131.84, 23-May-2022
1296,Revenue,CAHD,Statemented Support Academies,Other Public Bodies,Cabot Learning Federation,1150.25, 23-May-2022
1297,Revenue,CAHD,Academy Resource Base Funding,Other Public Bodies,Cabot Learning Federation,1175.87, 20-May-2022
1298,Revenue,CAHD,Academy Resource Base Funding,Other Public Bodies,Cabot Learning Federation,1175.87, 20-May-2022
1299,Revenue,CAHD,Academy Resource Base Funding,Other Public Bodies,Cabot Learning Federation,1175.87, 20-May-2022
1300,Revenue,CAHD,Academy Resource Base Funding,Other Public Bodies,Cabot Learning Federation,1175.87, 20-May-2022
1301,Revenue,CAHD,Academy Resource Base Funding,Other Public Bodies,Cabot Learning Federation,1175.87, 20-May-2022
1302,Revenue,CAHD,Academy Resource Base Funding,Other Public Bodies,Cabot Learning Federation,1175.87, 20-May-2022
1303,Revenue,CAHD,Academy Resource Base Funding,Other Public Bodies,Cabot Learning Federation,1175.87, 20-May-2022
1304,Revenue,CAHD,Academy Resource Base Funding,Other Public Bodies,Cabot Learning Federation,1175.87, 20-May-2022
1305,Revenue,CAHD,Statemented Support Academies,Other Public Bodies,Cabot Learning Federation,1179.67, 23-May-2022
1306,Revenue,CAHD,Statemented Support Academies,Other Public Bodies,Cabot Learning Federation,1202.67, 23-May-2022
1307,Revenue,CAHD,Statemented Support Academies,Other Public Bodies,Cabot Learning Federation,1202.67, 23-May-2022
1308,Revenue,CAHD,Statemented Support Academies,Other Public Bodies,Cabot Learning Federation,1297.08, 23-May-2022
1309,Revenue,CAHD,Statemented Support Academies,Other Public Bodies,Cabot Learning Federation,1429.42, 23-May-2022
1310,Revenue,CAHD,Academy Resource Base Funding,Other Public Bodies,Cabot Learning Federation,1540.83, 20-May-2022
1311,Revenue,CAHD,Academy Resource Base Funding,Other Public Bodies,Cabot Learning Federation,1540.83, 20-May-2022
1312,Revenue,CAHD,Academy Resource Base Funding,Other Public Bodies,Cabot Learning Federation,1540.83, 20-May-2022
1313,Revenue,CAHD,Academy Resource Base Funding,Other Public Bodies,Cabot Learning Federation,1540.83, 20-May-2022
1314,Revenue,CAHD,Statemented Support Academies,Other Public Bodies,Cabot Learning Federation,1626.67, 23-May-2022
1315,Revenue,CAHD,Statemented Support Academies,Other Public Bodies,Cabot Learning Federation,1654.33, 23-May-2022
1316,Revenue,CAHD,Statemented Support Academies,Other Public Bodies,Cabot Learning Federation,1671.08, 23-May-2022
1317,Revenue,CAHD,Academy Resource Base Funding,Other Public Bodies,Cabot Learning Federation,1702.96, 20-May-2022
1318,Revenue,CAHD,Academy Resource Base Funding,Other Public Bodies,Cabot Learning Federation,1702.96, 20-May-2022
1319,Revenue,CAHD,Academy Resource Base Funding,Other Public Bodies,Cabot Learning Federation,1702.96, 20-May-2022
1320,Revenue,CAHD,Academy Resource Base Funding,Other Public Bodies,Cabot Learning Federation,1702.96, 20-May-2022
1321,Revenue,CAHD,Academy Resource Base Funding,Other Public Bodies,Cabot Learning Federation,1702.96, 20-May-2022
1322,Revenue,CAHD,Academy Resource Base Funding,Other Public Bodies,Cabot Learning Federation,1702.96, 20-May-2022
1323,Revenue,CAHD,Statemented Support Academies,Other Public Bodies,Cabot Learning Federation,1899.58, 23-May-2022
1324,Revenue,CAHD,Academy Resource Base Funding,Other Public Bodies,Cabot Learning Federation,2189.53, 20-May-2022
1325,Revenue,CAHD,Statemented Support Academies,Other Public Bodies,Cabot Learning Federation,2227.06, 23-May-2022
1326,Revenue,CAHD,Statemented Support Payments to OLAs,Other L.A.s - General,Cabot Learning Federation,2405.34, 23-May-2022
1327,Revenue,CAHD,Academy Resource Base Funding,Other Public Bodies,Cabot Learning Federation,2513.88, 20-May-2022
1328,Revenue,CAHD,LAC Teaching Staff,Other Public Bodies,Cabot Learning Federation,3000.00, 06-May-2022
1329,Revenue,CAHD,LAC Teaching Staff,Other Public Bodies,Cabot Learning Federation,3000.00, 06-May-2022
1330,Revenue,CAHD,Academy Resource Base Funding,Other Public Bodies,Cabot Learning Federation,4246.60, 20-May-2022
1331,Revenue,CAHD,Support for Improving Educational Outcomes,Other Public Bodies,Cabot Learning Federation,8900.50, 04-May-2022
1332,Revenue,CAHD,Statemented Support Academies,Other Public Bodies,Cabot Learning Federation,9481.38, 23-May-2022
1333,Revenue,CAHD,"Drugs, Alcohol and Sexual Health",Other Small Contracts,Cadbury Heath Healthcare,805.00, 24-May-2022
1334,Revenue,CAHD,Cardio Vascular Disease - Risks,Other Small Contracts,Cadbury Heath Healthcare,1127.00, 17-May-2022
1335,Revenue,CAHD,"Drugs, Alcohol and Sexual Health",Other Small Contracts,Cadbury Heath Healthcare,2570.58, 24-May-2022
1336,Revenue,CAHD,"Drugs, Alcohol and Sexual Health",Other Small Contracts,Cadbury Heath Healthcare,3349.50, 17-May-2022
1337,Revenue,CAHD,Early Years High Needs Support,Other Private Contractors,Caerleon Childcare,515.71, 20-May-2022
1338,Revenue,CAHD,South - Commissioned Services,Fees & Charges Income - General,Caernarvon House,-1293.49, 03-May-2022
1339,Revenue,CAHD,South - Commissioned Services,Fees & Charges Income - General,Caernarvon House,-1267.84, 31-May-2022
1340,Revenue,CAHD,North - Community based support,Fees & Charges Income - General,Caernarvon House,-1036.92, 03-May-2022
1341,Revenue,CAHD,North - Community based support,Fees & Charges Income - General,Caernarvon House,-1036.92, 31-May-2022
1342,Revenue,CAHD,South - Commissioned Services,Fees & Charges Income - General,Caernarvon House,-773.60, 03-May-2022
1343,Revenue,CAHD,South - Commissioned Services,Fees & Charges Income - General,Caernarvon House,-773.60, 31-May-2022
1344,Revenue,CAHD,North - Community based support,Fees & Charges Income - General,Caernarvon House,-627.80, 03-May-2022
1345,Revenue,CAHD,North - Community based support,Fees & Charges Income - General,Caernarvon House,-627.80, 31-May-2022
1346,Revenue,CAHD,South - Commissioned Services,Permanent Nursing,Caernarvon House,2960.00, 03-May-2022
1347,Revenue,CAHD,South - Commissioned Services,Permanent Nursing,Caernarvon House,2960.00, 31-May-2022
1348,Revenue,CAHD,North - Community based support,Permanent Nursing,Caernarvon House,3339.08, 03-May-2022
1349,Revenue,CAHD,North - Community based support,Permanent Nursing,Caernarvon House,3339.08, 31-May-2022
1350,Revenue,CAHD,North - S117,Permanent Nursing,Caernarvon House,3990.24, 03-May-2022
1351,Revenue,CAHD,North - S117,Permanent Nursing,Caernarvon House,3990.24, 31-May-2022
1352,Revenue,CAHD,North - Community based support,Permanent Nursing,Caernarvon House,4710.40, 03-May-2022
1353,Revenue,CAHD,North - Community based support,Permanent Nursing,Caernarvon House,4710.40, 31-May-2022
1354,Revenue,CAHD,South - Commissioned Services,Permanent Nursing,Caernarvon House,4915.20, 03-May-2022
1355,Revenue,CAHD,South - S117,Permanent Nursing,Caernarvon House,4915.20, 03-May-2022
1356,Revenue,CAHD,South - Commissioned Services,Permanent Nursing,Caernarvon House,4915.20, 31-May-2022
1357,Revenue,CAHD,South - S117,Permanent Nursing,Caernarvon House,4915.20, 31-May-2022
1358,Revenue,CAHD,South - Commissioned Services,Permanent Nursing,Caernarvon House,9000.00, 31-May-2022
1359,Revenue,CAHD,Post 16 High Needs Placements,Other Private Contractors,Cambian Whinfell School Limited,5353.18, 06-May-2022
1360,Revenue,CAHD,Early Years Development,External Lecturers Fees,Cambium Sustainable Landscapes & Training,1830.50, 31-May-2022
1361,Revenue,CAHD,Post 16 High Needs Placements,Other Private Contractors,Candle Ltd,12357.00, 12-May-2022
1362,Revenue,CAHD,MH Purchasing - Younger,Fees & Charges Income - General,Canonbury Residential Home,-627.80, 03-May-2022
1363,Revenue,CAHD,MH Purchasing - Younger,Fees & Charges Income - General,Canonbury Residential Home,-627.80, 31-May-2022
1364,Revenue,CAHD,MH Purchasing - Younger,Permanent Residential,Canonbury Residential Home,3400.00, 03-May-2022
1365,Revenue,CAHD,MH Purchasing - Younger,Permanent Residential,Canonbury Residential Home,3400.00, 31-May-2022
1366,Revenue,CAHD,CSC - Agency Fostering,Foster Parent Allowances,Capstone Foster Care (South West) Limited,3691.17, 31-May-2022
1367,Revenue,CAHD,CSC - Agency Fostering,Foster Parent Allowances,Capstone Foster Care (South West) Limited,3691.17, 31-May-2022
1368,Revenue,CAHD,North - Community based support,Other Small Contracts,Care 1st Homecare,632.84, 03-May-2022
1369,Revenue,CAHD,North - Community based support,Other Small Contracts,Care 1st Homecare,632.84, 06-May-2022
1370,Revenue,CAHD,North - Community based support,Other Small Contracts,Care 1st Homecare,632.84, 12-May-2022
1371,Revenue,CAHD,North - Community based support,Other Small Contracts,Care 1st Homecare,632.84, 18-May-2022
1372,Revenue,CAHD,North - Community based support,Other Small Contracts,Care 1st Homecare,632.84, 26-May-2022
1373,Revenue,CAHD,North - Community based support,Other Small Contracts,Care 1st Homecare,632.84, 26-May-2022
1374,Revenue,CAHD,Central - Commissioned Services,Other Small Contracts,Care 1st Homecare,3734.65, 03-May-2022
1375,Revenue,CAHD,Central - Commissioned Services,Other Small Contracts,Care 1st Homecare,3734.65, 06-May-2022
1376,Revenue,CAHD,Central - Commissioned Services,Other Small Contracts,Care 1st Homecare,3734.65, 12-May-2022
1377,Revenue,CAHD,Central - Commissioned Services,Other Small Contracts,Care 1st Homecare,3734.65, 18-May-2022
1378,Revenue,CAHD,Central - Commissioned Services,Other Small Contracts,Care 1st Homecare,3734.65, 26-May-2022
1379,Revenue,CAHD,Central - Commissioned Services,Other Small Contracts,Care 1st Homecare,3734.65, 26-May-2022
1380,Revenue,CAHD,South - Commissioned Services,Day Care / Social Activities,Care Futures,819.90, 06-May-2022
1381,Revenue,CAHD,South - Commissioned Services,Mentoring,Care Horizons,341.76, 31-May-2022
1382,Revenue,CAHD,South - Commissioned Services,Mentoring,Care Horizons,346.56, 03-May-2022
1383,Revenue,CAHD,North - Community based support,Supported Living,Care Horizons,5560.28, 03-May-2022
1384,Revenue,CAHD,North - Community based support,Supported Living,Care Horizons,5560.28, 03-May-2022
1385,Revenue,CAHD,North - Community based support,Supported Living,Care Horizons,5935.58, 31-May-2022
1386,Revenue,CAHD,North - Community based support,Supported Living,Care Horizons,5935.58, 31-May-2022
1387,Revenue,CAHD,North - Community based support,Other Small Contracts,Care Horizons Limited,3687.94, 03-May-2022
1388,Revenue,CAHD,North - Community based support,Other Small Contracts,Care Horizons Limited,3687.94, 06-May-2022
1389,Revenue,CAHD,North - Community based support,Other Small Contracts,Care Horizons Limited,3687.94, 12-May-2022
1390,Revenue,CAHD,North - Community based support,Other Small Contracts,Care Horizons Limited,3687.94, 18-May-2022
1391,Revenue,CAHD,North - Community based support,Other Small Contracts,Care Horizons Limited,3687.94, 26-May-2022
1392,Revenue,CAHD,North - Community based support,Other Small Contracts,Care Horizons Limited,3687.94, 26-May-2022
1393,Revenue,CAHD,Central - Commissioned Services,Other Small Contracts,Care Horizons Limited,5063.87, 03-May-2022
1394,Revenue,CAHD,Central - Commissioned Services,Other Small Contracts,Care Horizons Limited,5063.87, 06-May-2022
1395,Revenue,CAHD,Central - Commissioned Services,Other Small Contracts,Care Horizons Limited,5063.87, 12-May-2022
1396,Revenue,CAHD,Central - Commissioned Services,Other Small Contracts,Care Horizons Limited,5063.87, 18-May-2022
1397,Revenue,CAHD,Central - Commissioned Services,Other Small Contracts,Care Horizons Limited,5063.87, 26-May-2022
1398,Revenue,CAHD,Central - Commissioned Services,Other Small Contracts,Care Horizons Limited,5063.87, 26-May-2022
1399,Revenue,CAHD,South - Commissioned Services,Other Small Contracts,Care Unite Ltd t/a Home Instead Senior Care,241.12, 19-May-2022
1400,Revenue,CAHD,South - Commissioned Services,Other Small Contracts,Care Unite Ltd t/a Home Instead Senior Care,843.92, 19-May-2022
1401,Revenue,CAHD,SLA Grants - Support Serv,Grants to Voluntary Bodies,Carers Support Centre,12275.00, 25-May-2022
1402,Revenue,CAHD,SLA Grants - Support Serv,Grants to Voluntary Bodies,Carers Support Centre,25275.00, 25-May-2022
1403,Revenue,CAHD,Mental Health and Community Engagement,Other Small Contracts,Carers Support Centre,60477.00, 25-May-2022
1404,Revenue,CAHD,CSC - Care Leavers Independent Living,Independent Living,Caretech Community Services,1392.84, 20-May-2022
1405,Revenue,CAHD,CSC - Care Leavers Independent Living,Independent Living,Caretech Community Services,1857.18, 20-May-2022
1406,Revenue,CAHD,CSC - Care Leavers Independent Living,Adults - Family Support,Caretech Community Services,4017.75, 20-May-2022
1407,Revenue,CAHD,CSC - Care Leavers Independent Living,Independent Living,Caretech Community Services,4499.88, 20-May-2022
1408,Revenue,CAHD,CSC - Care Leavers Independent Living,Adults - Family Support,Caretech Community Services,4499.88, 20-May-2022
1409,Revenue,CAHD,CSC - Care Leavers Independent Living,Adults - Family Support,Caretech Community Services,7000.00, 20-May-2022
1410,Revenue,CAHD,CSC - Care Leavers Independent Living,Independent Living,Caring for Communities and People,3737.14, 20-May-2022
1411,Revenue,CAHD,Supporting People Programme,Grants to Voluntary Bodies,Caring for Communities and People,12256.75, 04-May-2022
1412,Revenue,CAHD,Social Lettings Agency,Prop.Serv. General Repairs,Carpet Giant,517.07, 27-May-2022
1413,Revenue,CAHD,Statemented Support Academies,Other Public Bodies,Castle School Education Trust,505.08, 23-May-2022
1414,Revenue,CAHD,Statemented Support Academies,Other Public Bodies,Castle School Education Trust,515.08, 23-May-2022
1415,Revenue,CAHD,Statemented Support Academies,Other Public Bodies,Castle School Education Trust,530.55, 23-May-2022
1416,Revenue,CAHD,Statemented Support Academies,Other Public Bodies,Castle School Education Trust,541.58, 23-May-2022
1417,Revenue,CAHD,Statemented Support Academies,Other Public Bodies,Castle School Education Trust,543.42, 23-May-2022
1418,Revenue,CAHD,Statemented Support Academies,Other Public Bodies,Castle School Education Trust,554.13, 23-May-2022
1419,Revenue,CAHD,Statemented Support Academies,Other Public Bodies,Castle School Education Trust,560.17, 23-May-2022
1420,Revenue,CAHD,Statemented Support Academies,Other Public Bodies,Castle School Education Trust,577.71, 23-May-2022
1421,Revenue,CAHD,Statemented Support Academies,Other Public Bodies,Castle School Education Trust,577.71, 23-May-2022
1422,Revenue,CAHD,Statemented Support Academies,Other Public Bodies,Castle School Education Trust,577.71, 23-May-2022
1423,Revenue,CAHD,Statemented Support Academies,Other Public Bodies,Castle School Education Trust,630.58, 23-May-2022
1424,Revenue,CAHD,Statemented Support Academies,Other Public Bodies,Castle School Education Trust,636.66, 23-May-2022
1425,Revenue,CAHD,Statemented Support Academies,Other Public Bodies,Castle School Education Trust,672.03, 23-May-2022
1426,Revenue,CAHD,Statemented Support Academies,Other Public Bodies,Castle School Education Trust,672.03, 23-May-2022
1427,Revenue,CAHD,Statemented Support Academies,Other Public Bodies,Castle School Education Trust,691.92, 23-May-2022
1428,Revenue,CAHD,Statemented Support Academies,Other Public Bodies,Castle School Education Trust,723.17, 23-May-2022
1429,Revenue,CAHD,Statemented Support Academies,Other Public Bodies,Castle School Education Trust,754.25, 23-May-2022
1430,Revenue,CAHD,Statemented Support Academies,Other Public Bodies,Castle School Education Trust,778.14, 23-May-2022
1431,Revenue,CAHD,Statemented Support Academies,Other Public Bodies,Castle School Education Trust,778.14, 23-May-2022
1432,Revenue,CAHD,Statemented Support Academies,Other Public Bodies,Castle School Education Trust,801.92, 23-May-2022
1433,Revenue,CAHD,Statemented Support Academies,Other Public Bodies,Castle School Education Trust,821.50, 23-May-2022
1434,Revenue,CAHD,Statemented Support Academies,Other Public Bodies,Castle School Education Trust,822.50, 23-May-2022
1435,Revenue,CAHD,Statemented Support Academies,Other Public Bodies,Castle School Education Trust,848.88, 23-May-2022
1436,Revenue,CAHD,Statemented Support Academies,Other Public Bodies,Castle School Education Trust,872.46, 23-May-2022
1437,Revenue,CAHD,Statemented Support Academies,Other Public Bodies,Castle School Education Trust,888.75, 23-May-2022
1438,Revenue,CAHD,Statemented Support Academies,Other Public Bodies,Castle School Education Trust,896.08, 23-May-2022
1439,Revenue,CAHD,Statemented Support Academies,Other Public Bodies,Castle School Education Trust,906.75, 23-May-2022
1440,Revenue,CAHD,Statemented Support Academies,Other Public Bodies,Castle School Education Trust,908.00, 23-May-2022
1441,Revenue,CAHD,Statemented Support Academies,Other Public Bodies,Castle School Education Trust,941.58, 23-May-2022
1442,Revenue,CAHD,Statemented Support Academies,Other Public Bodies,Castle School Education Trust,943.17, 23-May-2022
1443,Revenue,CAHD,Statemented Support Academies,Other Public Bodies,Castle School Education Trust,943.33, 23-May-2022
1444,Revenue,CAHD,Statemented Support Academies,Other Public Bodies,Castle School Education Trust,947.08, 23-May-2022
1445,Revenue,CAHD,Statemented Support Academies,Other Public Bodies,Castle School Education Trust,954.99, 23-May-2022
1446,Revenue,CAHD,Statemented Support Academies,Other Public Bodies,Castle School Education Trust,956.00, 23-May-2022
1447,Revenue,CAHD,Statemented Support Academies,Other Public Bodies,Castle School Education Trust,1061.10, 23-May-2022
1448,Revenue,CAHD,Statemented Support Academies,Other Public Bodies,Castle School Education Trust,1071.67, 23-May-2022
1449,Revenue,CAHD,Statemented Support Academies,Other Public Bodies,Castle School Education Trust,1143.63, 23-May-2022
1450,Revenue,CAHD,Statemented Support Academies,Other Public Bodies,Castle School Education Trust,1177.50, 23-May-2022
1451,Revenue,CAHD,Statemented Support Academies,Other Public Bodies,Castle School Education Trust,1190.79, 23-May-2022
1452,Revenue,CAHD,Statemented Support Academies,Other Public Bodies,Castle School Education Trust,1202.67, 23-May-2022
1453,Revenue,CAHD,Statemented Support Academies,Other Public Bodies,Castle School Education Trust,1202.67, 23-May-2022
1454,Revenue,CAHD,Statemented Support Academies,Other Public Bodies,Castle School Education Trust,1202.92, 23-May-2022
1455,Revenue,CAHD,Statemented Support Academies,Other Public Bodies,Castle School Education Trust,1244.58, 23-May-2022
1456,Revenue,CAHD,Statemented Support Academies,Other Public Bodies,Castle School Education Trust,1248.33, 23-May-2022
1457,Revenue,CAHD,Statemented Support Academies,Other Public Bodies,Castle School Education Trust,1261.75, 23-May-2022
1458,Revenue,CAHD,Statemented Support Academies,Other Public Bodies,Castle School Education Trust,1267.50, 23-May-2022
1459,Revenue,CAHD,Statemented Support Academies,Other Public Bodies,Castle School Education Trust,1485.54, 23-May-2022
1460,Revenue,CAHD,Academy Resource Base Funding,Other Public Bodies,Castle School Education Trust,1702.96, 20-May-2022
1461,Revenue,CAHD,Academy Resource Base Funding,Other Public Bodies,Castle School Education Trust,1702.96, 20-May-2022
1462,Revenue,CAHD,Academy Resource Base Funding,Other Public Bodies,Castle School Education Trust,1702.96, 20-May-2022
1463,Revenue,CAHD,Academy Resource Base Funding,Other Public Bodies,Castle School Education Trust,1702.96, 20-May-2022
1464,Revenue,CAHD,Academy Resource Base Funding,Other Public Bodies,Castle School Education Trust,1702.96, 20-May-2022
1465,Revenue,CAHD,Academy Resource Base Funding,Other Public Bodies,Castle School Education Trust,1702.96, 20-May-2022
1466,Revenue,CAHD,Academy Resource Base Funding,Other Public Bodies,Castle School Education Trust,1702.96, 20-May-2022
1467,Revenue,CAHD,Academy Resource Base Funding,Other Public Bodies,Castle School Education Trust,1702.96, 20-May-2022
1468,Revenue,CAHD,Academy Resource Base Funding,Other Public Bodies,Castle School Education Trust,1702.96, 20-May-2022
1469,Revenue,CAHD,Academy Resource Base Funding,Other Public Bodies,Castle School Education Trust,1702.96, 20-May-2022
1470,Revenue,CAHD,Academy Resource Base Funding,Other Public Bodies,Castle School Education Trust,2189.53, 20-May-2022
1471,Revenue,CAHD,Academy Resource Base Funding,Other Public Bodies,Castle School Education Trust,2513.88, 20-May-2022
1472,Revenue,CAHD,Academy Resource Base Funding,Other Public Bodies,Castle School Education Trust,2513.88, 20-May-2022
1473,Revenue,CAHD,Academy Resource Base Funding,Other Public Bodies,Castle School Education Trust,2513.88, 20-May-2022
1474,Revenue,CAHD,Academy Resource Base Funding,Other Public Bodies,Castle School Education Trust,2513.88, 20-May-2022
1475,Revenue,CAHD,LAC Teaching Staff,Other Public Bodies,Castle School Education Trust,3000.00, 06-May-2022
1476,Revenue,CAHD,Academy Resource Base Funding,Other Public Bodies,Castle School Education Trust,3397.28, 20-May-2022
1477,Revenue,CAHD,Statemented Support Academies,Other Public Bodies,Castle School Educational Academy Trust,508.67, 23-May-2022
1478,Revenue,CAHD,Statemented Support Academies,Other Public Bodies,Castle School Educational Academy Trust,580.67, 23-May-2022
1479,Revenue,CAHD,Statemented Support Academies,Other Public Bodies,Castle School Educational Academy Trust,652.58, 23-May-2022
1480,Revenue,CAHD,Statemented Support Academies,Other Public Bodies,Castle School Educational Academy Trust,790.58, 23-May-2022
1481,Revenue,CAHD,Statemented Support Academies,Other Public Bodies,Castle School Educational Academy Trust,854.00, 23-May-2022
1482,Revenue,CAHD,Statemented Support Academies,Other Public Bodies,Castle School Educational Academy Trust,925.08, 23-May-2022
1483,Revenue,CAHD,Statemented Support Academies,Other Public Bodies,Castle School Educational Academy Trust,940.75, 23-May-2022
1484,Revenue,CAHD,Statemented Support Academies,Other Public Bodies,Castle School Educational Academy Trust,1097.25, 23-May-2022
1485,Revenue,CAHD,Statemented Support Academies,Other Public Bodies,Castle School Educational Academy Trust,1129.92, 23-May-2022
1486,Revenue,CAHD,Statemented Support Academies,Other Public Bodies,Castle School Educational Academy Trust,1148.20, 23-May-2022
1487,Revenue,CAHD,Statemented Support Academies,Other Public Bodies,Castle School Educational Academy Trust,2005.17, 23-May-2022
1488,Revenue,CAHD,LAC Teaching Staff,Other Public Bodies,Castle School Educational Academy Trust,3000.00, 06-May-2022
1489,Revenue,CAHD,CSC - CLA Placements,Client Transport,Cathedral Cars Ltd,1020.00, 04-May-2022
1490,Revenue,CAHD,CSC - CLA Placements,Client Transport,Cathedral Cars Ltd,1520.00, 16-May-2022
1491,Revenue,CAHD,North - Community based support,Day Care / Social Activities,Causeway House,610.80, 31-May-2022
1492,Revenue,CAHD,North - Community based support,Day Care / Social Activities,Causeway House,615.24, 03-May-2022
1493,Revenue,CAHD,North - Community based support,Day Care / Social Activities,Causeway House,3384.60, 31-May-2022
1494,Revenue,CAHD,North - Community based support,Day Care / Social Activities,Causeway House,3409.25, 03-May-2022
1495,Revenue,CAHD,North - Community based support,Day Care / Social Activities,Causeway House,3467.40, 31-May-2022
1496,Revenue,CAHD,North - Community based support,Day Care / Social Activities,Causeway House,3492.65, 03-May-2022
1497,Revenue,CAHD,Central - Commissioned Services,Day Care / Social Activities,Causeway House,3925.40, 31-May-2022
1498,Revenue,CAHD,Central - Commissioned Services,Day Care / Social Activities,Causeway House,3954.00, 03-May-2022
1499,Revenue,CAHD,Central - Commissioned Services,Day Care / Social Activities,Causeway House,4182.60, 31-May-2022
1500,Revenue,CAHD,Central - Commissioned Services,Day Care / Social Activities,Causeway House,4213.05, 03-May-2022
1501,Revenue,CAHD,18-25 Year Olds,Day Care / Social Activities,Causeway House,4744.80, 31-May-2022
1502,Revenue,CAHD,18-25 Year Olds,Day Care / Social Activities,Causeway House,4779.35, 03-May-2022
1503,Revenue,CAHD,North - Community based support,Day Care / Social Activities,Causeway House,5165.80, 31-May-2022
1504,Revenue,CAHD,North - Community based support,Day Care / Social Activities,Causeway House,5203.40, 03-May-2022
1505,Revenue,CAHD,South - Commissioned Services,Day Care / Social Activities,Causeway House,5646.00, 31-May-2022
1506,Revenue,CAHD,South - Commissioned Services,Day Care / Social Activities,Causeway House,5687.10, 03-May-2022
1507,Revenue,CAHD,Jointly Funded H&SC Packages,Permanent Residential,Cavendish Care Home,-1950.00, 31-May-2022
1508,Revenue,CAHD,Jointly Funded H&SC Packages,Permanent Residential,Cavendish Care Home,1560.00, 03-May-2022
1509,Revenue,CAHD,North - S117,Permanent Residential,Cavendish Care Home,2340.00, 03-May-2022
1510,Revenue,CAHD,South - S117,Respite Planned - Residential,Cavendish Care Home,5850.00, 31-May-2022
1511,Revenue,CAHD,North - S117,Permanent Residential,Cavendish Care Home,6296.67, 31-May-2022
1512,Revenue,CAHD,Central - Commissioned Services,Fees & Charges Income - General,Cedar Court Care Home,-404.12, 03-May-2022
1513,Revenue,CAHD,Central - Commissioned Services,Fees & Charges Income - General,Cedar Court Care Home,-404.12, 31-May-2022
1514,Revenue,CAHD,Central - Commissioned Services,Permanent Nursing,Cedar Court Care Home,4000.00, 03-May-2022
1515,Revenue,CAHD,Central - Commissioned Services,Permanent Nursing,Cedar Court Care Home,4000.00, 31-May-2022
1516,Revenue,CAHD,Training - Adult Services,Training Expenses,Central Consultancy & Training,1550.00, 11-May-2022
1517,Revenue,CAHD,CSC - Care Leavers Independent Living,Independent Living,Centrepeacehomes Ltd,22800.00, 23-May-2022
1518,Revenue,CAHD,South - Commissioned Services,Permanent Residential,Challenge House,2894.80, 03-May-2022
1519,Revenue,CAHD,South - Commissioned Services,Permanent Residential,Challenge House,2894.80, 31-May-2022
1520,Revenue,CAHD,Central - Commissioned Services,Fees & Charges Income - General,Challenge House,-865.72, 03-May-2022
1521,Revenue,CAHD,Central - Commissioned Services,Fees & Charges Income - General,Challenge House,-865.72, 31-May-2022
1522,Revenue,CAHD,Central - Commissioned Services,Fees & Charges Income - General,Challenge House,-833.52, 03-May-2022
1523,Revenue,CAHD,Central - Commissioned Services,Fees & Charges Income - General,Challenge House,-833.52, 31-May-2022
1524,Revenue,CAHD,North - Community based support,Fees & Charges Income - General,Challenge House,-664.56, 03-May-2022
1525,Revenue,CAHD,North - Community based support,Fees & Charges Income - General,Challenge House,-664.56, 31-May-2022
1526,Revenue,CAHD,North - Community based support,Permanent Residential,Challenge House,2314.96, 03-May-2022
1527,Revenue,CAHD,North - Community based support,Permanent Residential,Challenge House,2314.96, 31-May-2022
1528,Revenue,CAHD,Central - Commissioned Services,Permanent Residential,Challenge House,2452.44, 03-May-2022
1529,Revenue,CAHD,Central - Commissioned Services,Permanent Residential,Challenge House,2452.44, 31-May-2022
1530,Revenue,CAHD,Central - Commissioned Services,Permanent Residential,Challenge House,2819.84, 03-May-2022
1531,Revenue,CAHD,Central - Commissioned Services,Permanent Residential,Challenge House,2819.84, 31-May-2022
1532,Revenue,CAHD,North - Community based support,Permanent Residential,Challenge House,2902.76, 03-May-2022
1533,Revenue,CAHD,North - Community based support,Permanent Residential,Challenge House,2902.76, 31-May-2022
1534,Revenue,CAHD,North - Community based support,Fees & Charges Income - General,Challenge House,-1057.80, 03-May-2022
1535,Revenue,CAHD,North - Community based support,Fees & Charges Income - General,Challenge House,-1057.80, 31-May-2022
1536,Revenue,CAHD,North - Community based support,Permanent Residential,Challenge House,2894.76, 03-May-2022
1537,Revenue,CAHD,North - Community based support,Permanent Residential,Challenge House,2894.76, 31-May-2022
1538,Revenue,CAHD,North - Community based support,Fees & Charges Income - General,Challenge House,-627.80, 03-May-2022
1539,Revenue,CAHD,North - Community based support,Fees & Charges Income - General,Challenge House,-627.80, 03-May-2022
1540,Revenue,CAHD,North - Community based support,Fees & Charges Income - General,Challenge House,-627.80, 31-May-2022
1541,Revenue,CAHD,North - Community based support,Fees & Charges Income - General,Challenge House,-627.80, 31-May-2022
1542,Revenue,CAHD,North - Community based support,Permanent Nursing,Challenge House,2505.52, 03-May-2022
1543,Revenue,CAHD,North - S117,Permanent Nursing,Challenge House,2505.52, 03-May-2022
1544,Revenue,CAHD,North - Community based support,Permanent Nursing,Challenge House,2505.52, 31-May-2022
1545,Revenue,CAHD,North - S117,Permanent Nursing,Challenge House,2505.52, 31-May-2022
1546,Revenue,CAHD,North - Community based support,Permanent Nursing,Challenge House,3205.48, 03-May-2022
1547,Revenue,CAHD,North - Community based support,Permanent Nursing,Challenge House,3205.48, 31-May-2022
1548,Revenue,CAHD,North - Community based support,Fees & Charges Income - General,Challenge House,-6537.48, 31-May-2022
1549,Revenue,CAHD,North - Community based support,Fees & Charges Income - General,Challenge House,-4694.85, 31-May-2022
1550,Revenue,CAHD,North - Community based support,Fees & Charges Income - General,Challenge House,-3333.81, 31-May-2022
1551,Revenue,CAHD,North - Community based support,Fees & Charges Income - General,Challenge House,-3221.56, 31-May-2022
1552,Revenue,CAHD,North - Community based support,Fees & Charges Income - General,Challenge House,-2617.65, 31-May-2022
1553,Revenue,CAHD,North - Community based support,Fees & Charges Income - General,Challenge House,-2387.41, 03-May-2022
1554,Revenue,CAHD,South - Commissioned Services,Fees & Charges Income - General,Challenge House,-2007.45, 03-May-2022
1555,Revenue,CAHD,South - Commissioned Services,Fees & Charges Income - General,Challenge House,-1993.08, 31-May-2022
1556,Revenue,CAHD,North - Community based support,Permanent Nursing,Challenge House,-1926.97, 03-May-2022
1557,Revenue,CAHD,North - Community based support,Fees & Charges Income - General,Challenge House,-1836.16, 03-May-2022
1558,Revenue,CAHD,North - Community based support,Fees & Charges Income - General,Challenge House,-1836.16, 31-May-2022
1559,Revenue,CAHD,North - Community based support,Fees & Charges Income - General,Challenge House,-1648.49, 03-May-2022
1560,Revenue,CAHD,North - Community based support,Fees & Charges Income - General,Challenge House,-1622.84, 31-May-2022
1561,Revenue,CAHD,North - Community based support,Fees & Charges Income - General,Challenge House,-1140.52, 31-May-2022
1562,Revenue,CAHD,North - Community based support,Fees & Charges Income - General,Challenge House,-1037.92, 03-May-2022
1563,Revenue,CAHD,North - Community based support,Fees & Charges Income - General,Challenge House,-1037.92, 31-May-2022
1564,Revenue,CAHD,North - Community based support,Fees & Charges Income - General,Challenge House,-920.88, 03-May-2022
1565,Revenue,CAHD,North - Community based support,Fees & Charges Income - General,Challenge House,-920.88, 31-May-2022
1566,Revenue,CAHD,North - Community based support,Fees & Charges Income - General,Challenge House,-883.96, 31-May-2022
1567,Revenue,CAHD,North - Community based support,Fees & Charges Income - General,Challenge House,-863.20, 31-May-2022
1568,Revenue,CAHD,North - Community based support,Fees & Charges Income - General,Challenge House,-860.82, 03-May-2022
1569,Revenue,CAHD,North - Community based support,Fees & Charges Income - General,Challenge House,-810.64, 03-May-2022
1570,Revenue,CAHD,North - Community based support,Fees & Charges Income - General,Challenge House,-751.42, 03-May-2022
1571,Revenue,CAHD,North - Community based support,Fees & Charges Income - General,Challenge House,-747.96, 03-May-2022
1572,Revenue,CAHD,North - Community based support,Fees & Charges Income - General,Challenge House,-747.96, 31-May-2022
1573,Revenue,CAHD,North - Community based support,Fees & Charges Income - General,Challenge House,-747.68, 03-May-2022
1574,Revenue,CAHD,North - Community based support,Fees & Charges Income - General,Challenge House,-747.68, 31-May-2022
1575,Revenue,CAHD,North - Community based support,Fees & Charges Income - General,Challenge House,-731.28, 03-May-2022
1576,Revenue,CAHD,North - Community based support,Fees & Charges Income - General,Challenge House,-731.28, 31-May-2022
1577,Revenue,CAHD,North - Community based support,Fees & Charges Income - General,Challenge House,-631.80, 31-May-2022
1578,Revenue,CAHD,South - Commissioned Services,Fees & Charges Income - General,Challenge House,-627.80, 03-May-2022
1579,Revenue,CAHD,North - Community based support,Fees & Charges Income - General,Challenge House,-627.80, 03-May-2022
1580,Revenue,CAHD,South - Commissioned Services,Fees & Charges Income - General,Challenge House,-627.80, 31-May-2022
1581,Revenue,CAHD,North - Community based support,Fees & Charges Income - General,Challenge House,-627.80, 31-May-2022
1582,Revenue,CAHD,South - Commissioned Services,Fees & Charges Income - General,Challenge House,-618.60, 03-May-2022
1583,Revenue,CAHD,South - Commissioned Services,Fees & Charges Income - General,Challenge House,-618.60, 31-May-2022
1584,Revenue,CAHD,North - Community based support,Fees & Charges Income - General,Challenge House,282.66, 03-May-2022
1585,Revenue,CAHD,South Glos Users in South Glos Homes,Permanent Nursing,Challenge House,750.40, 03-May-2022
1586,Revenue,CAHD,South Glos Users in South Glos Homes,Permanent Nursing,Challenge House,750.40, 03-May-2022
1587,Revenue,CAHD,South Glos Users in South Glos Homes,Permanent Nursing,Challenge House,750.40, 03-May-2022
1588,Revenue,CAHD,South Glos Users in South Glos Homes,Permanent Nursing,Challenge House,750.40, 03-May-2022
1589,Revenue,CAHD,South Glos Users in South Glos Homes,Permanent Nursing,Challenge House,750.40, 03-May-2022
1590,Revenue,CAHD,South Glos Users in South Glos Homes,Permanent Nursing,Challenge House,750.40, 03-May-2022
1591,Revenue,CAHD,South Glos Users in South Glos Homes,Permanent Nursing,Challenge House,750.40, 03-May-2022
1592,Revenue,CAHD,South Glos Users in South Glos Homes,Permanent Nursing,Challenge House,750.40, 03-May-2022
1593,Revenue,CAHD,South Glos Users in South Glos Homes,Permanent Nursing,Challenge House,750.40, 03-May-2022
1594,Revenue,CAHD,South Glos Users in South Glos Homes,Permanent Nursing,Challenge House,750.40, 03-May-2022
1595,Revenue,CAHD,South Glos Users in South Glos Homes,Permanent Nursing,Challenge House,750.40, 03-May-2022
1596,Revenue,CAHD,South Glos Users in South Glos Homes,Permanent Nursing,Challenge House,750.40, 03-May-2022
1597,Revenue,CAHD,South Glos Users in South Glos Homes,Permanent Nursing,Challenge House,750.40, 03-May-2022
1598,Revenue,CAHD,South Glos Users in South Glos Homes,Permanent Nursing,Challenge House,750.40, 03-May-2022
1599,Revenue,CAHD,South Glos Users in South Glos Homes,Permanent Nursing,Challenge House,750.40, 03-May-2022
1600,Revenue,CAHD,South Glos Users in South Glos Homes,Permanent Nursing,Challenge House,750.40, 03-May-2022
1601,Revenue,CAHD,South Glos Users in South Glos Homes,Permanent Nursing,Challenge House,750.40, 03-May-2022
1602,Revenue,CAHD,South Glos Users in South Glos Homes,Permanent Nursing,Challenge House,750.40, 03-May-2022
1603,Revenue,CAHD,South Glos Users in South Glos Homes,Permanent Nursing,Challenge House,750.40, 31-May-2022
1604,Revenue,CAHD,South Glos Users in South Glos Homes,Permanent Nursing,Challenge House,750.40, 31-May-2022
1605,Revenue,CAHD,South Glos Users in South Glos Homes,Permanent Nursing,Challenge House,750.40, 31-May-2022
1606,Revenue,CAHD,South Glos Users in South Glos Homes,Permanent Nursing,Challenge House,750.40, 31-May-2022
1607,Revenue,CAHD,South Glos Users in South Glos Homes,Permanent Nursing,Challenge House,750.40, 31-May-2022
1608,Revenue,CAHD,South Glos Users in South Glos Homes,Permanent Nursing,Challenge House,750.40, 31-May-2022
1609,Revenue,CAHD,South Glos Users in South Glos Homes,Permanent Nursing,Challenge House,750.40, 31-May-2022
1610,Revenue,CAHD,South Glos Users in South Glos Homes,Permanent Nursing,Challenge House,750.40, 31-May-2022
1611,Revenue,CAHD,South Glos Users in South Glos Homes,Permanent Nursing,Challenge House,750.40, 31-May-2022
1612,Revenue,CAHD,South Glos Users in South Glos Homes,Permanent Nursing,Challenge House,750.40, 31-May-2022
1613,Revenue,CAHD,South Glos Users in South Glos Homes,Permanent Nursing,Challenge House,750.40, 31-May-2022
1614,Revenue,CAHD,South Glos Users in South Glos Homes,Permanent Nursing,Challenge House,750.40, 31-May-2022
1615,Revenue,CAHD,South Glos Users in South Glos Homes,Permanent Nursing,Challenge House,750.40, 31-May-2022
1616,Revenue,CAHD,South Glos Users in South Glos Homes,Permanent Nursing,Challenge House,750.40, 31-May-2022
1617,Revenue,CAHD,South Glos Users in South Glos Homes,Permanent Nursing,Challenge House,750.40, 31-May-2022
1618,Revenue,CAHD,South Glos Users in South Glos Homes,Permanent Nursing,Challenge House,750.40, 31-May-2022
1619,Revenue,CAHD,South Glos Users in South Glos Homes,Permanent Nursing,Challenge House,750.40, 31-May-2022
1620,Revenue,CAHD,South Glos Users in South Glos Homes,Permanent Nursing,Challenge House,750.40, 31-May-2022
1621,Revenue,CAHD,North - Community based support,Fees & Charges Income - General,Challenge House,1015.48, 31-May-2022
1622,Revenue,CAHD,North - Community based support,Fees & Charges Income - General,Challenge House,1269.35, 03-May-2022
1623,Revenue,CAHD,South - Commissioned Services,Respite Planned - Nursing,Challenge House,1821.43, 03-May-2022
1624,Revenue,CAHD,South - Commissioned Services,Permanent Nursing,Challenge House,2174.64, 31-May-2022
1625,Revenue,CAHD,South - Commissioned Services,Permanent Nursing,Challenge House,2205.41, 03-May-2022
1626,Revenue,CAHD,North - Community based support,Permanent Nursing,Challenge House,3127.44, 31-May-2022
1627,Revenue,CAHD,North - Community based support,Permanent Nursing,Challenge House,3171.70, 03-May-2022
1628,Revenue,CAHD,North - Community based support,Permanent Residential,Challenge House,3384.56, 31-May-2022
1629,Revenue,CAHD,North - Community based support,Permanent Residential,Challenge House,3392.00, 31-May-2022
1630,Revenue,CAHD,North - Community based support,Permanent Residential,Challenge House,3432.45, 03-May-2022
1631,Revenue,CAHD,North - Community based support,Permanent Residential,Challenge House,3440.00, 03-May-2022
1632,Revenue,CAHD,North - Community based support,Permanent Nursing,Challenge House,3517.28, 31-May-2022
1633,Revenue,CAHD,North - Community based support,Permanent Nursing,Challenge House,3548.80, 31-May-2022
1634,Revenue,CAHD,North - Community based support,Permanent Nursing,Challenge House,3567.05, 03-May-2022
1635,Revenue,CAHD,North - Community based support,Permanent Nursing,Challenge House,3599.02, 03-May-2022
1636,Revenue,CAHD,South - Commissioned Services,Permanent Residential,Challenge House,3604.00, 31-May-2022
1637,Revenue,CAHD,South - Commissioned Services,Permanent Residential,Challenge House,3604.00, 31-May-2022
1638,Revenue,CAHD,North - Community based support,Permanent Residential,Challenge House,3604.00, 31-May-2022
1639,Revenue,CAHD,North - Community based support,Permanent Residential,Challenge House,3604.00, 31-May-2022
1640,Revenue,CAHD,North - Community based support,Permanent Nursing,Challenge House,3604.00, 31-May-2022
1641,Revenue,CAHD,North - Community based support,Permanent Nursing,Challenge House,3604.00, 31-May-2022
1642,Revenue,CAHD,South - Commissioned Services,Permanent Residential,Challenge House,3655.00, 03-May-2022
1643,Revenue,CAHD,South - Commissioned Services,Permanent Residential,Challenge House,3655.00, 03-May-2022
1644,Revenue,CAHD,North - Community based support,Permanent Residential,Challenge House,3655.00, 03-May-2022
1645,Revenue,CAHD,North - Community based support,Permanent Nursing,Challenge House,3655.00, 03-May-2022
1646,Revenue,CAHD,North - Community based support,Permanent Nursing,Challenge House,3655.00, 03-May-2022
1647,Revenue,CAHD,North - Community based support,Permanent Nursing,Challenge House,3686.88, 31-May-2022
1648,Revenue,CAHD,North - Community based support,Permanent Residential,Challenge House,3710.00, 31-May-2022
1649,Revenue,CAHD,North - Community based support,Permanent Residential,Challenge House,3710.00, 31-May-2022
1650,Revenue,CAHD,North - Community based support,Permanent Nursing,Challenge House,3739.05, 03-May-2022
1651,Revenue,CAHD,North - Community based support,Permanent Residential,Challenge House,3762.50, 03-May-2022
1652,Revenue,CAHD,North - Community based support,Permanent Residential,Challenge House,3762.50, 03-May-2022
1653,Revenue,CAHD,South - Commissioned Services,Permanent Residential,Challenge House,3816.00, 31-May-2022
1654,Revenue,CAHD,South - Commissioned Services,Permanent Residential,Challenge House,3870.00, 03-May-2022
1655,Revenue,CAHD,North - Community based support,Permanent Residential,Challenge House,4028.00, 31-May-2022
1656,Revenue,CAHD,North - Community based support,Permanent Residential,Challenge House,4028.00, 31-May-2022
1657,Revenue,CAHD,North - Community based support,Permanent Residential,Challenge House,4085.00, 03-May-2022
1658,Revenue,CAHD,North - Community based support,Permanent Residential,Challenge House,4085.00, 03-May-2022
1659,Revenue,CAHD,North - Community based support,Respite Planned - Nursing,Challenge House,5828.57, 31-May-2022
1660,Revenue,CAHD,South - Commissioned Services,Respite Planned - Nursing,Challenge House,5950.00, 31-May-2022
1661,Revenue,CAHD,North - Community based support,Permanent Residential,Challenge House,7650.00, 31-May-2022
1662,Revenue,CAHD,North - Community based support,Permanent Residential,Challenge House,13369.29, 03-May-2022
1663,Revenue,CAHD,North - Community based support,Permanent Residential,Challenge House,14207.14, 31-May-2022
1664,Revenue,CAHD,North - Community based support,Permanent Nursing,Challenge House,16878.57, 31-May-2022
1665,Revenue,CAHD,North - Community based support,Permanent Residential,Challenge House,19425.00, 31-May-2022
1666,Revenue,CAHD,South - Commissioned Services,Permanent Nursing,Challenge House,33863.14, 31-May-2022
1667,Revenue,CAHD,North - Community based support,Fees & Charges Income - General,Challenge House,-4433.30, 03-May-2022
1668,Revenue,CAHD,Central - Commissioned Services,Fees & Charges Income - General,Challenge House,-1230.56, 03-May-2022
1669,Revenue,CAHD,Central - Commissioned Services,Fees & Charges Income - General,Challenge House,-1230.56, 31-May-2022
1670,Revenue,CAHD,Central - Commissioned Services,Fees & Charges Income - General,Challenge House,-1165.91, 31-May-2022
1671,Revenue,CAHD,Central - Commissioned Services,Fees & Charges Income - General,Challenge House,-987.40, 03-May-2022
1672,Revenue,CAHD,Central - Commissioned Services,Fees & Charges Income - General,Challenge House,-987.40, 31-May-2022
1673,Revenue,CAHD,North - Community based support,Fees & Charges Income - General,Challenge House,-933.68, 31-May-2022
1674,Revenue,CAHD,North - Community based support,Fees & Charges Income - General,Challenge House,-928.88, 03-May-2022
1675,Revenue,CAHD,North - Community based support,Fees & Charges Income - General,Challenge House,-928.88, 31-May-2022
1676,Revenue,CAHD,Central - Commissioned Services,Permanent Residential,Challenge House,1846.26, 31-May-2022
1677,Revenue,CAHD,Central - Commissioned Services,Permanent Nursing,Challenge House,2331.43, 03-May-2022
1678,Revenue,CAHD,Central - Commissioned Services,Permanent Nursing,Challenge House,2490.00, 03-May-2022
1679,Revenue,CAHD,Central - Commissioned Services,Permanent Nursing,Challenge House,2490.00, 31-May-2022
1680,Revenue,CAHD,North - Community based support,Permanent Residential,Challenge House,2600.00, 03-May-2022
1681,Revenue,CAHD,North - Community based support,Permanent Residential,Challenge House,2600.00, 31-May-2022
1682,Revenue,CAHD,Central - Commissioned Services,Permanent Nursing,Challenge House,2720.00, 31-May-2022
1683,Revenue,CAHD,North - Community based support,Permanent Residential,Challenge House,3136.52, 03-May-2022
1684,Revenue,CAHD,North - Community based support,Permanent Residential,Challenge House,3136.52, 31-May-2022
1685,Revenue,CAHD,Central - Commissioned Services,Permanent Nursing,Challenge House,3200.00, 03-May-2022
1686,Revenue,CAHD,Central - Commissioned Services,Permanent Nursing,Challenge House,3200.00, 31-May-2022
1687,Revenue,CAHD,Central - Commissioned Services,Respite Planned - Nursing,Challenge House,4662.86, 03-May-2022
1688,Revenue,CAHD,Statemented Support Academies,Other Public Bodies,Charlton Wood Primary Academy,702.17, 23-May-2022
1689,Revenue,CAHD,Statemented Support Academies,Other Public Bodies,Charlton Wood Primary Academy,1202.67, 23-May-2022
1690,Revenue,CAHD,Statemented Support Academies,Other Public Bodies,Charlton Wood Primary Academy,1202.67, 23-May-2022
1691,Revenue,CAHD,Statemented Support Academies,Other Public Bodies,Charlton Wood Primary Academy,1202.67, 23-May-2022
1692,Revenue,CAHD,Central - Commissioned Services,Other Small Contracts,Cherish Able Care Limited,675.21, 03-May-2022
1693,Revenue,CAHD,Central - Commissioned Services,Other Small Contracts,Cherish Able Care Limited,675.21, 06-May-2022
1694,Revenue,CAHD,Central - Commissioned Services,Other Small Contracts,Cherish Able Care Limited,675.21, 12-May-2022
1695,Revenue,CAHD,Central - Commissioned Services,Other Small Contracts,Cherish Able Care Limited,675.21, 18-May-2022
1696,Revenue,CAHD,Central - Commissioned Services,Other Small Contracts,Cherish Able Care Limited,675.21, 26-May-2022
1697,Revenue,CAHD,Central - Commissioned Services,Other Small Contracts,Cherish Able Care Limited,675.21, 26-May-2022
1698,Revenue,CAHD,North - Community based support,Other Small Contracts,Cherish Able Care Limited,686.06, 03-May-2022
1699,Revenue,CAHD,North - Community based support,Other Small Contracts,Cherish Able Care Limited,686.06, 06-May-2022
1700,Revenue,CAHD,North - Community based support,Other Small Contracts,Cherish Able Care Limited,686.06, 12-May-2022
1701,Revenue,CAHD,North - Community based support,Other Small Contracts,Cherish Able Care Limited,686.06, 18-May-2022
1702,Revenue,CAHD,North - Community based support,Other Small Contracts,Cherish Able Care Limited,686.06, 26-May-2022
1703,Revenue,CAHD,North - Community based support,Other Small Contracts,Cherish Able Care Limited,686.06, 26-May-2022
1704,Revenue,CAHD,South - Commissioned Services,Other Small Contracts,Cherish Able Care Limited,9494.18, 03-May-2022
1705,Revenue,CAHD,South - Commissioned Services,Other Small Contracts,Cherish Able Care Limited,9494.18, 06-May-2022
1706,Revenue,CAHD,South - Commissioned Services,Other Small Contracts,Cherish Able Care Limited,9494.18, 12-May-2022
1707,Revenue,CAHD,South - Commissioned Services,Other Small Contracts,Cherish Able Care Limited,9494.18, 18-May-2022
1708,Revenue,CAHD,South - Commissioned Services,Other Small Contracts,Cherish Able Care Limited,9494.18, 26-May-2022
1709,Revenue,CAHD,South - Commissioned Services,Other Small Contracts,Cherish Able Care Limited,9494.18, 26-May-2022
1710,Revenue,CAHD,18-25 Year Olds,Supported Living,Cherry Orchards,-2596.55, 31-May-2022
1711,Revenue,CAHD,South - Commissioned Services,Supported Living,Cherry Orchards,-2423.15, 31-May-2022
1712,Revenue,CAHD,North - Community based support,Supported Living,Cherry Orchards,-2423.15, 31-May-2022
1713,Revenue,CAHD,North - Community based support,Supported Living,Cherry Orchards,-1333.70, 31-May-2022
1714,Revenue,CAHD,South - Commissioned Services,Supported Living,Cherry Orchards,-1311.35, 31-May-2022
1715,Revenue,CAHD,North - Community based support,Supported Living,Cherry Orchards,723.36, 04-May-2022
1716,Revenue,CAHD,South - Commissioned Services,Supported Living,Cherry Orchards,1049.08, 03-May-2022
1717,Revenue,CAHD,North - Community based support,Supported Living,Cherry Orchards,1066.96, 03-May-2022
1718,Revenue,CAHD,18-25 Year Olds,Supported Living,Cherry Orchards,1126.32, 04-May-2022
1719,Revenue,CAHD,18-25 Year Olds,Supported Living,Cherry Orchards,1539.70, 25-May-2022
1720,Revenue,CAHD,South - Commissioned Services,Supported Living,Cherry Orchards,1566.48, 04-May-2022
1721,Revenue,CAHD,South - Commissioned Services,Supported Living,Cherry Orchards,1661.40, 04-May-2022
1722,Revenue,CAHD,North - Community based support,Supported Living,Cherry Orchards,1778.40, 04-May-2022
1723,Revenue,CAHD,South - Commissioned Services,Supported Living,Cherry Orchards,1938.52, 03-May-2022
1724,Revenue,CAHD,North - Community based support,Supported Living,Cherry Orchards,1938.52, 03-May-2022
1725,Revenue,CAHD,Younger MH non-res purchasing,Supported Living,Cherry Orchards,1958.12, 03-May-2022
1726,Revenue,CAHD,Younger MH non-res purchasing,Supported Living,Cherry Orchards,1958.12, 31-May-2022
1727,Revenue,CAHD,18-25 Year Olds,Supported Living,Cherry Orchards,2077.24, 03-May-2022
1728,Revenue,CAHD,Central - Commissioned Services,Supported Living,Cherry Orchards,2084.68, 04-May-2022
